Workbook

Sheet Instructions
A1: On-site Stormwater Management Calculator
A2: Instructions
A3: Version 01-04-2023
A5: To use the On-Site Stormwater Calculator you must select "Enable Content" when the Security Warning appears.
A6: Note this calculator is designed to work with Microsoft Excel 2010 or newer.
A7: Introduction
A8: This spreadsheet tool helps users implement the On-site Stormwater Management requirements for projects in the
A9: City of Seattle. In addition, this spreadsheet documents the other applicable Stormwater Code requirements for projects
A10: and provides a Site and Drainage Control Summary. Instructions for evaluating, selecting, and sizing on-site best
A11: management practices (BMPs) are provided below.
A13: Note: all projects that require Drainage Review by SDCI must include a Site and Drainage Control Summary Sheet on the
A14: Drainage and Wastewater Control Plan.
A16: Refer to Volume 1, Volume 3 (Section 3.3 and Chapter 5), and Appendix C of the Seattle Stormwater Manual (Seattle 2021) for
A17: On-site Stormwater Management requirements, BMP design requirements and infeasibility criteria.
A19: The "Project Summary" and either the "BMP Sizing" or "BMP Modeling" tabs can be used to provide documentation for
A20: compliance with the On-site List requirement.
A22: How to Use the On-site List Approach Calculator:
B23: Note: The On-site List Approach is the most commonly used method. Refer to instructions at the bottom of this page if
B24: the On-site Performance Standard will be used.
B25: Project Summary Tab:
B26: A. Fill in the light green cells in the "Project Summary" tab.
C28: Step 1: Determine if Dispersion and Infiltration are Feasible
D29: Refer to Section 3.1 and Section 3.2 in Volume 3 of the Seattle Stormwater Manual (Seattle 2021).
C31: Step 2: Calculate Areas by Surface Type
D32: Divide the project area into hard surface areas with distinct drainage pathways and conduct a BMP evaluation
D33: for each surface "sub area". Refer to Figure 1 below for an example. Enter roof and non-roof areas and number
D34: of areas into "Project Summary" tab and hit Enter. Excel tabs will be generated for each individual surface.
D35: Note: Do not create a surface tab for Permeable Pavement Facilities (PPF). PPFs are the only hard surface that
D36: will not have a surface tab. Enter the PPF area on the BMP Sizing tab.
C38: Step 3: Select the On-site List Approach (Pre-sized Approach) Calculator option
D39: Check the box for the “On-site List Approach (Pre-sized Approach) Calculator” on the Summary Tab.
D41: The On-site Lists that indicate the BMPs that must be evaluated and the order in which they must be evaluated
D42: are provided in Volume 1, Section 5.2 for all project type(s). The applicable on-site BMPs are provided in
D43: this calculator in the "Surface" tabs based on information entered in the "Project Summary" tab.
B60: Figure 1. Example Delineation of Hard Surface Areas with Distinct Drainage Pathways for a Parcel or Single Family Project.
B78: Figure 2. Example Delineation of Hard Surface Areas for Trail and Sidewalk Projects.
B80: Surface Tab(s):
C81: Step 4: Evaluate BMPs by Category
D82: On each "Surface" tab, select "Infeasible", "Not evaluated", or "Use BMP" for each category. Note: BMPs in each
D83: category may be evaluated in any order. (See detailed information in Steps 5 through 10).
C85: Step 5: Evaluate Feasibility of Category 1 BMPs
D86: Determine feasibility of the BMP(s) in Category 1. The BMP is considered infeasible if one of the following applies:
E87: -The BMP is considered infeasible per the criteria provided in the “Infeasibility Criteria” tab.
E88: -Competing needs (e.g., historic preservation laws, health and safety standards) as provided in
F89: Seattle Municipal Code (SMC), Section 22.805.070 conflict with the BMP.
E90: -The size of the BMP in the "Surface" tab(s) (generated based on "Project Summary" tab inputs)
E91: cannot be met on the site.
C93: Step 6: Select Category 1 BMP(s)
D94: If any of the Category 1 BMPs are feasible for a surface, then a Category 1 BMP must be used to manage
D95: runoff from the surface. Identify the BMP selected for the surface area by selecting "Use BMP" from
D96: the drop down menu. After BMP(s) are selected, the calculator will size the BMP for the surface area
D97: based on the facility information (e.g., ponding depth) entered in the "BMP Sizing" tab.
D98: Note: Facility sizes provided in this tool are the minimum size required. Facilities can be made larger to
D99: meet additional requirements (i.e., flow control and/or water quality treatment standards).
C101: Step 7: Document Infeasibility of Category 1 BMPs (if applicable)
D102: If all the Category 1 BMPs are deemed infeasible, select "Infeasible" and the applicable "infeasibility criteria"
D103: from the drop down menus and proceed to Step 8. If needed for clarity, the applicant shall provide a narrative
D104: description and rationale with substantial evidence sufficient to explain and justify the applicant's conclusion
D105: that On-site BMPs are infeasible.
C107: Step 8: Evaluate/Select Category 2 BMPs
D108: If all of the Category 1 BMPs are deemed infeasible, evaluate the On-site BMPs in Category 2 using the same approach
D109: described in Steps 5 through 7. Once you move to Category 2, you can select any BMP within that Category.
C111: Step 9: Evaluate/Select Category 3 BMPs
D112: If all of the Category 2 BMPs are deemed infeasible, evaluate the On-site BMPs in Category 3 using the same approach
D113: described in Steps 5 through 7. Once you move to Category 3, you can select any BMP within that Category.
C115: Step 10: Evaluate/Select Category 4 BMPs
D116: If all of the Category 3 BMPs are deemed infeasible, evaluate the On-site BMPs in Category 4 using the same approach
D117: described in Steps 5 through 7.
C119: Step 11: Evaluate/Select Category 5 BMPs (if applicable)
D120: If all of the Category 4 BMPs are deemed infeasible, evaluate the On-site BMPs in Category 5 using the same approach
D121: described in Steps 5 through 7.
B123: BMP Sizing Tab:
B124: B. Once a "Surface" tab is completed for each surface, complete the information on the "BMP Sizing" tab
D126: For each surface, select the BMP that the surface drains to. If more than one surface drains to the same BMP,
D127: indicate with the same BMP number. The appropriate sizing will be provided for each BMP based on the area
D128: of the surfaces draining to it. For BMPs with multiple design parameters (i.e., ponding depth, side slopes),
D129: select the design parameters that will be applied to the project.
B131: Project Summary Tab:
B132: C. The "Project Summary" tab summarizes the selected BMPs and BMP sizes by surface.
A134: How to Use this Spreadsheet for the On-site Performance Standard
B135: Project Summary Tab:
B136: A. Fill in the light green cells in the "Project Summary" tab.
C138: Step 1: Determine if Dispersion and Infiltration are Feasible
D139: Refer to Section 3.1 and Section 3.2 in Volume 3 of the Seattle Stormwater Manual (Seattle 2021).
C141: Step 2: Select the On-site Performance Standard Option
D142: Check the box for the “On-site Performance Standard” on the Summary Tab.
D144: When using the Performance Standard, any BMP from the Stormwater Manual may be selected in any order (i.e. the
D145: On-site Lists are not required to be used).
C147: Step 3: Conduct Stormwater Modeling Using an Approved Continuous Runoff Model
D148: Determine which On-site Stormwater Performance goal from Volume 1, Section 5.2.1 is applicable to your project
D149: and use an approved continuous runoff model to demonstrate that this standard is met. See On-site Performance
D150: Standard BMP Design in Appendix F, Section F-4 of the Seattle Stormwater Manual (Seattle 2021).
D152: Submit the calculations and a narrative describing the calculations in a Drainage Report.
C154: Step 4: Calculate Areas Tributary to Each BMP
D155: Divide the hard surface areas of the project into surfaces that are managed with each BMP selected using the
D156: continuous runoff modeling indicated above. If some hard surfaces bypass all BMPs, designate a surface for
D157: these areas to be identified as a “bypass area”.
D159: Enter the number of separate roof and non-roof areas into "Project Summary" tab and hit Enter. Instead of creating
D160: separate surface tabs, the Performance Standard mode will create user inputs for each “surface” in the BMP
D161: Modeling Tab.
C163: Step 5: Document the BMP’s Used in the BMP Modeling Tab
D164: Complete the green input fields in the BMP Modeling Tab to identify which BMP manages each “surface”. Verify that
D165: the summary of these BMPs correctly shows on the Summary tab.

Sheet Project Summary
A1: On-site Stormwater Management Calculator
A2: Site and Drainage Control Summary
A3: =Version -> Version 01-04-2023
A4: To use the On-Site List Calculator you must select "Enable Content" when the Security Warning appears.
A5: Project Information | AR5: Hidden Column
B6: Site Address | V6: SDCI Project Number
B8: Primary Contact | V8: SDOT Project Number | AR8: Type | AS8: Old
B10: Project Type | V10: Primary Contact E-mail or Phone | AR10: =IFERROR(INDEX(Lookup!$L$2:$L$9,MATCH($H$10,Project,0)),"") -> 
B12: Is this project "Closely Related" to other SDCI construction permits/projects? | AA12: ´ | AD12: Yes | AH12: No
B14: "Closely Related" SDCI Construction Permit Numbers
B16: Is this project associated with a Short Plat or Subdivision? | W16: Yes | Z16: No | AC16: SDCI MUP Number
B18: Was the project lot created or altered in size after Jan 1, 2016? | AR18: Engineer Required | AS18: =OR(S22>5000,R51>5000,AS73,AND(Q64="Yes",NOT(AA64="Simple infiltration test")),Q33="On Site Infiltration (No Off-site Point of Discharge)") -> FALSE | AT18: =IF(AS73,"Submit Continuous Runoff Model in a Drainage Report to demonstrate On-site Performance Standard (Vol. 1, Section 5.2.1) is met.",IF(AND(OR(AR10="Road",AR10="Trail"),S22>=2000),"On-site Stormwater Management is required for ≥ 2,000 sf of new plus replaced area.",IF(AND(OR(AR10="Parcel",AR10="SFR"),W18="Yes",S22>=750),"On-site Stormater Management is required for ≥ 750 sf of new plus replaced area.",IF(AND(OR(AR10="Parcel",AR10="SFR"),OR(W18="No",W18=""),S22>=1500),"On-site Stormwater Management required for ≥ 1,500 sf of new plus replaced area.","On-site Stormwater Management is not required.")))) -> On-site Stormwater Management is not required.
B20: Total Site Area | W20: sf | X20: ´ | Y20: =IF(OR(AU31=1,AU33=1),"","") ->  | Z20: Total Closely Related and/or Short Plat/Subdivision Site Area | AO20: sf | AP20: ´ | AR20: On-site Required | AS20: =AT18<>"On-site Stormwater Management is not required." -> FALSE
B22: Total New plus Replaced Hard Surface Area (NPRHS) | W22: sf | X22: ´
B24: Total New and/or Replaced Lawn/Landscaping | W24: sf | X24: ´ | Y24: =IF(OR(AU31=1,AU33=1),"","") ->  | Z24: Total Closely Related and/or Short Plat/Subdivision NPRHS | AO24: sf | AP24: ´
B26: Undisturbed and Protected Site Area | W26: sf | X26: ´
B28: Total Existing Hard Surface Area To Remain | W28: sf | X28: ´ | Z28: Total Existing Hard Surface Area (Prior to Project) | AO28: sf | AP28: ´
A30: Site Information | G30: =IF(AND(AR10="SFR",S22>=5000),"For ≥5,000 sf of NPRHS the project is a Parcel Based project.","") ->  | AU30: check boxes
B31: Note: Reference the Preliminary Assessment Report (PAR) to complete this section. | AV31: Closely related
B33: Approved Point of Stormwater Discharge | AV33: Short Plat or Subdivision?
D35: Drainage Basin | AR35: Drainage Basin Category | AS35: =IFERROR(INDEX(Lookup!$K$2:$K$19,MATCH(CONCATENATE(Q35,AE37),Lookup!$J$2:$J$19,0)),1) -> 1 | AV35: Pre-Developed Pasture Standard
D37: Is the downstream drainage system considered Capacity Constrained by SPU? | AV37: Peak Control Standard
B39: Approved Point of Wastewater Discharge | AV39: Pre-Developed Forest Standard
B41: Approved Point of Sub-Surface Discharge | AV41: Wetland Protection Standard
B43: Required Flow Control Standard | N43: Pre-Developed Pasture | Y43: Pre-Developed Forest | AK43: Peak Control | AV43: Existing Conditions Standard
N45: Wetland Protection | Y45: Existing Conditions | AK45: None | AV45: None
B47: Project will permanently discharge groundwater? | S47: ´ | AR47: Flow Control Required | AS47: =IFERROR(OR(AU35:AU43),FALSE) -> FALSE | AV47: oil control
B49: Required Water Quality Treatment Standard | S49: ´ | V49: Oil Control | AB49: Enhanced | AH49: Basic | AM49: None | AR49: Water Quality | AS49: =IFERROR(OR(AU46:AU51),FALSE) -> FALSE | AV49: enhanced
B51: Total Pollution Generating Hard Surface Area | V51: sf | W51: =IF(OR(AU31=1,AU33=1),"","") ->  | Y51: w/ Closely Related/Short Plat/Subdiv. | AO51: sf | AP51: ´ | AV51: basic
B53: Total Pollution Generating Pervious Surface Area | V53: sf | W53: =IF(OR(AU31=1,AU33=1),"","") ->  | Y53: w/ Closely Related/Short Plat/Subdiv. | AO53: sf | AP53: ´ | AV53: none
B55: Environmentally Critical Areas | L55: ´ | AR55: Dispersion Infeasible | AS55: FALSE | AV55: steep slope
D57: Steep Slope | K57: Potential Slide | R57: Riparian Corridor | Y57: Wetland | AE57: Liquefaction | AK57: Flood Prone | AR57: Infiltration Infeasible | AS57: =Q66="No" -> FALSE | AV57: potential slide
D59: Landfill | K59: Known Landslide | R59: Fish / Wildlife | Y59: Peat / Groundwater Management | AK59: Shoreline Habitat | AR59: Infiltrating Area | AS59: =SUMIF(BD81:BD84,TRUE,W81:W82) -> 0 | AV59: riparian cooridor
B61: Is there soil and/or groundwater contamination on this site? | AB61: Source Control is required | AP61: ´ | AV61: wetland
A63: Infiltration Information | J63: =IF(AND(NOT(AS20),Q33=Lookup!V10),"Infiltration evaluation is required for projects with No Off-site Point of Discharge","") ->  | AV63: liquefaction
B64: Is infiltration investigation required? | V64: =IF(Q64="","",IF(Q64="No","Why?","Type of test:")) ->  | AR64: Infiltration Exploration or Mapped | AS64: =OR(Q64="Yes",AND(Q64="No",AA64="Site is mapped as ""infltr. investigation not required""")) -> FALSE | AV64: flood prone
D66: Is infiltration on the site feasible? | V66: =IF(Q66="No","Why?",IF(AND(Q64="No",AA64="Other"),"Explain:","")) ->  | AR66: Measured Infiltration Rate | AS66: =O68 -> 0 | AV66: landfill
D68: Site Measured Infiltration Rate | Q68: x | R68: Infiltration Rate Correction Factor | AF68: = | AG68: =AD68*O68 -> 0 | AJ68: Site Design Inf Rate | AR68: Infiltration Rate (in/hr) | AS68: =IF(Q66="No",0,AG68) -> 0 | AV68: known landslide
A70: On-site Stormwater Management (select List Approach or Performance Standard) | AB70: ´ | AD70: =IF(AND(NOT(AS20),Q33<>Lookup!V10,ProjectTypeCell<>"",totalnewreplacedarea<>""),"OSM not required","") ->  | AV70: fish wildlife
D71: On-site List Approach (Pre-sized) Calculator -- Complete the Surface tabs and BMP Sizing tabs (Most commonly used) | AR71: List Apporach | AS71: TRUE | AT71: Toggle | AV71: peat
D73: On-site Performance Standard -- Stormwater modeling by Civil Engineer | AB73: ´ | AC73: (Also for No Off-site Point of Discharge) | AP73: ´ | AR73: Performance Standard | AS73: FALSE | AT73: 1 | AV73: shoreline
AR74: Areas | AS74: Sheets | AT74: Old
B75: Number of roof areas | Q75: 0 | U75: =IF(AS73,"",IF(SUM(W81:Z82)>0,IF(ROUND(SUM(W81:Z82)+SUMIF($AT$80:$AT$84,"Permeable Pavement Facility",$BB$80:$BB$84),0)>ROUND(S22,0),"Note total area entered on surface tabs (plus permeable pavement facility area) exceeds the total new plus replaced hard surface area entered above.",IF(ROUND(SUM(W81:Z82)+SUMIF($AT$80:$AT$84,"Permeable Pavement Facility",$BB$80:$BB$84),0)<ROUND(S22,0),"Note total area entered on surface tabs (plus permeable pavement facility area) does not match total new plus replaced hard surface area entered above.","")),IF(SUM(Q75:T77)=0,"Enter number of surface areas and hit Enter",""))) -> Enter number of surface areas and hit Enter | AR75: =SUM(Q75,Q77) -> 0 | AS75: =MAX(AS80:AS84) -> 0 | AT75: 0 | AU75: 0
B77: Number of other surface areas | Q77: 0 | AT77: 0 | AU77: 0
B79: Surface | E79: Surfaces Description | K79: On-site BMP | W79: Contrib. Area (sf) | AA79: Facility Size (sf) | AG79: Facility Configuration | AR79: Sheet Name | AS79: Count | AT79: BMP | AU79: BMP # from Sizing Tab | AV79: Count for BMP # | AW79: List more than 1 BMP | AX79: List Name | AY79: Roof / Non Roof | AZ79: Roof Managed | BA79: Surface Managed | BB79: Facility Size no units | BC79: Vol Managed per Year (gal) | BD79: Infiltrating BMP
AS80: -1 | AU80: 0
B81: =AS81 -> 0 | E81: =IFERROR(IF($AS$73,IF(INDEX('BMP Modeling'!$J:$J,MATCH(B81,'BMP Modeling'!$B:$B,0))="Roof","Roof: ","Surface: ") & INDEX('BMP Modeling'!P:P,MATCH(B81,'BMP Modeling'!$B:$B,0)), IF(INDIRECT("'"&AR81&"'!N9")="","",IF(INDIRECT("'"&AR81&"'!N9")="Roof",INDIRECT("'"&AR81&"'!N9")&":"&INDIRECT("'"&AR81&"'!n11"),"Surface:"&INDIRECT("'"&AR81&"'!n11")))),"") ->  | K81: =IF(AT81="","",IF($AS$73,INDEX('BMP Modeling'!X:X,MATCH(B81,'BMP Modeling'!B:B,0)),IF(AND(AW81,AV81>1),INDEX('BMP Sizing'!$K$7:$K$45,MATCH(AU81,'BMP Sizing'!$AO$7:$AO$45,0)),AT81))) ->  | W81: =IFERROR(IF($AS$73,INDEX('BMP Modeling'!D:D,MATCH(B81,'BMP Modeling'!B:B,0)),INDIRECT("'"&AR81&"'!N13")),"") ->  | AA81: =IF($AS$73,TEXT(INDEX('BMP Modeling'!$AF:$AF,MATCH(B81,'BMP Modeling'!$B:$B,0)),"#,###"),IF(AT81="None Feasible","-",IFERROR(IF(AU81<=MAX($AU$80:AU80),"^",TEXT(INDEX('BMP Sizing'!$AQ$49:$AQ$209,MATCH(AU81,'BMP Sizing'!$AN$49:$AN$209,0)),"#,##0")& " " & INDEX('BMP Sizing'!$AR$49:$AR$209,MATCH(AU81,'BMP Sizing'!$AN$49:$AN$209,0)) ),"-"))) -> - | AG81: =IFERROR(IF($AS$73,"See Plan",IF(AU81<=MAX($AU$80:AU80),"^",INDEX('BMP Sizing'!$AT$49:$AT$209,MATCH(AU81,'BMP Sizing'!$AN$49:$AN$209,0)))),"-") -> - | AR81: =$AR$10&" - Surface "&B81 -> - Surface 0 | AS81: =AS80+1 -> 0 | AT81: =IFERROR(IF($AS$73,"BMP Modeling",INDEX(INDIRECT("'"&AR81&"'!BS:BS"),MATCH(TRUE,INDIRECT("'"&AR81&"'!BX:BX"),0))),"") ->  | AU81: =IFERROR(INDEX('BMP Sizing'!$AO$7:$AO$46,MATCH(AS81,'BMP Sizing'!$B$7:$B$46,0)),"") ->  | AV81: =COUNTIF($AT$80:$AT$82,AT81) -> 3 | AW81: =INDEX(Lookup!$B$70:$B$90,MATCH(AT81,Lookup!$A$70:$A$90,0)) ->  | AX81: =TRIM(SUBSTITUTE(SUBSTITUTE(SUBSTITUTE(AT81," ",""),"-",""),"/","")&IF(AW81,AV81,"")) ->  | AY81: =IFERROR(IF(performancestd,INDEX('BMP Modeling'!J:J,MATCH(B81,'BMP Modeling'!B:B,0)),INDIRECT("'"&AR81&"'!N9")),"") ->  | AZ81: =IF(performancestd,AY81="Roof",IF(OR(AT81="Vegetated Roof System",AND(AT81="Permeable Pavement Facility",AY81="Roof")), BB81>=INT(INDEX('BMP Sizing'!$V$49:$V$209,MATCH(AU81,'BMP Sizing'!$AN$49:$AN$209,0))*INDEX('BMP Sizing'!$AP$49:$AP$209,MATCH(AU81,'BMP Sizing'!$AN$49:$AN$209,0))),AND(AND(AU81>0,AU81<>""),AY81="Roof",BC81>0,BC81<>"-"))) -> FALSE | BA81: =IF(performancestd,AY81="Non-Roof",IF(AND(AT81="Permeable Pavement Facility",AY81="Non-Roof"), BB81>=INDEX('BMP Sizing'!$V$49:$V$209,MATCH(AU81,'BMP Sizing'!$AN$49:$AN$209,0))*INDEX('BMP Sizing'!$AP$49:$AP$209,MATCH(AU81,'BMP Sizing'!$AN$49:$AN$209,0)),AND(AND(AU81>0,AU81<>""),AY81="Non-Roof",BC81>0,BC81<>"-"))) -> FALSE | BB81: =IF($AS$73,0,IF(AT81="None Feasible","-",IFERROR(IF(AU81<=MAX($AU$80:AU80),"^",INDEX('BMP Sizing'!$AQ$49:$AQ$209,MATCH(AU81,'BMP Sizing'!$AN$49:$AN$209,0))),"-"))) -> - | BC81: =IF($AS$73, IFERROR(INDEX('BMP Modeling'!$AL:$AL,MATCH(B81,'BMP Modeling'!$B:$B,0))*7.48052/158,0), IF(AT81="None Feasible","-",IFERROR(IF(AU81<=MAX($AU$80:AU80),"^",INDEX('BMP Sizing'!$AS$49:$AS$209,MATCH(AU81,'BMP Sizing'!$AN$49:$AN$209,0))),"-"))) -> - | BD81: =INDEX(Lookup!$H$70:$H$90,MATCH(AT81,Lookup!$A$70:$A$90,0)) -> 
B83: Total New/Replaced Roof Area | P83: =SUMIF($AY$80:$AY$84,"Roof",$W$80:$Z$82) -> 0 | X83: Total Roof Area Managed | AI83: =SUMIF($AZ$80:$AZ$84,TRUE,$W$80:$Z$82) -> 0
B85: Total New/Replaced Other Surface Area | P85: =SUMIF($AY$80:$AY$84,"Non-Roof",$W$80:$Z$82)+SUMIF($AT$80:$AT$84,"Permeable Pavement Facility",$BB$80:$BB$84) -> 0 | V85: ´ | X85: Total Other Surface Managed | AI85: =SUMIF($BA$80:$BA$84,TRUE,$W$80:$Z$82)+SUMIFS($BB$80:$BB$84,AT80:AT84,"Permeable Pavement Facility") -> 0
B87: Total Area Managed | P87: =IF($AS$73,SUM($W$81:$Z$82),SUM($AI$83:$AN$85)) -> 0 | V87: sf | X87: Total Volume Managed On Site | AI87: =IFERROR(TEXT(SUM($BC$81:$BC$84),"#,##0")&" gal","") -> 0 gal
B89: Estimated compost required for soil amendment | S89: =IF(S24="",0,S24*0.0062) -> 0 | V89: cy | X89: Volume of compost will be verified by the Inspector.

Sheet SFR (hidden)
A1: On-site Stormwater Management Calculator - List Approach | BZ1: Column to Use | CB1: Evaluation Required
A2: Surface Identification and BMP Evaluation for Single Family Residential Projects | BS2: None Feasible | BX2: =AND(COUNTIFS(BT19:BT89,"Feasibility",BV19:BV89,TRUE)=COUNTIF(BT19:BT89,"Feasibility"),COUNTIF(BX19:BX89,TRUE)=0) -> FALSE | BZ2: =OFFSET(CA2,0,IF($N$9="Roof",0,3)+'Project Summary'!$AS$35) -> 4 | CB2: 1 | CC2: 2 | CD2: 3 | CE2: 4 | CF2: 5 | CG2: 6
B4: Project No. | N4: ='Project Summary'!$AG$6 -> 0 | CB4: Roof | CC4: Roof | CD4: Roof | CE4: Surface | CF4: Surface | CG4: Surface
B7: Hard Surface Number | BS7: BMP | BT7: Dropdown Lookup | BU7: Grey Out | BV7: Infeasible Selected | BW7: Infeasibility Criteria Selected | BX7: BMP Selected | BY7: Other BMP in Group Selected | BZ7: Evaluation Required | CA7: Infiltration /Dispersion Infeasible | CB7: Not designated receiving water | CC7: Public combined sewer or capacity constrained | CD7: Designated Receiving Water | CE7: Not designated receiving water | CF7: Public combined sewer or capacity constrained | CG7: Designated Receiving Water
B9: Hard Surface Type | T9: ´ | W9: =IF(COUNTIF(BX19:BX89,TRUE)>1,"More than one Use BMP selected, please select only one. ","") & IF(SUMPRODUCT($BV$19:$BV$90*NOT(BW19:BW90)*NOT(BY19:BY90)) > 0,SUMPRODUCT($BV$19:$BV$90*NOT(BW19:BW90)*NOT(BY19:BY90))&" BMP(s) require infeasibility criteria.","") -> 
B11: Hard Surface Description
B13: Surface Area (sf)
A15: Category 1 (Select 1 BMP from Category 1, order does not matter, or move to Category 2) | BS15: Category 1
B17: BMP | P17: Feasibility | W17: Infeasibility Criteria
B19: Full Dispersion | BS19: Full Dispersion | BT19: =IF(CA19,"Infeasible",IF(BZ19,"Feasibility","NoEval")) -> Feasibility | BU19: =IF(OR(P19="",BX19),FALSE,OR(NOT(BZ19),BV19)) -> FALSE | BV19: =P19="Infeasible" -> FALSE | BW19: =AND(BV19,NOT(W19="")) -> FALSE | BX19: =P19="Use BMP" -> FALSE | BY19: =OR(BX22,BX25) -> FALSE | BZ19: =INDEX(CB19:CG19,MATCH($BZ$2,$CB$2:$CG$2,0)) -> TRUE | CA19: =Dispersion -> FALSE | CB19: TRUE | CC19: TRUE | CD19: TRUE | CE19: TRUE | CF19: TRUE | CG19: TRUE
B22: Infiltration Trench | BS22: Infiltration Trench | BT22: =IF(CA22,"Infeasible",IF(BZ22,"Feasibility",IF(N9="Roof","NoEval","NotRequired"))) -> NotRequired | BU22: =IF(OR(P22="",BX22),FALSE,OR(NOT(BZ22),BV22)) -> FALSE | BV22: =P22="Infeasible" -> FALSE | BW22: =AND(BV22,NOT(W22="")) -> FALSE | BX22: =P22="Use BMP" -> FALSE | BY22: =OR(BX19,BX25) -> FALSE | BZ22: =INDEX(CB22:CG22,MATCH($BZ$2,$CB$2:$CG$2,0)) -> FALSE | CA22: =AND(InfExploration,OR(InfiltrationInfeasible,MeasuredInfRate<5)) -> FALSE | CB22: TRUE | CC22: TRUE | CD22: TRUE | CE22: FALSE | CF22: FALSE | CG22: FALSE
C23: =IF($N$9="","",IF($N$9="Non-Roof","Evaluation not required but allowed.","")) -> 
B25: Dry Well | BS25: Dry Well | BT25: =IF(CA25,"Infeasible",IF(BZ25,"Feasibility",IF(N9="Roof","NoEval","NotRequired"))) -> NotRequired | BU25: =IF(OR(P25="",BX25),FALSE,OR(NOT(BZ25),BV25)) -> FALSE | BV25: =P25="Infeasible" -> FALSE | BW25: =AND(BV25,NOT(W25="")) -> FALSE | BX25: =P25="Use BMP" -> FALSE | BY25: =OR(BX19,BX22) -> FALSE | BZ25: =INDEX(CB25:CG25,MATCH($BZ$2,$CB$2:$CG$2,0)) -> FALSE | CA25: =AND(InfExploration,OR(InfiltrationInfeasible,MeasuredInfRate<5)) -> FALSE | CB25: TRUE | CC25: TRUE | CD25: TRUE | CE25: FALSE | CF25: FALSE | CG25: FALSE
C26: =IF($N$9="","",IF($N$9="Non-Roof","Evaluation not required but allowed.","")) -> 
A28: Category 2 | BS28: Category 2 | BU28: =OR(NOT(AND(BU19:BU25)),N9="") -> TRUE
B30: BMP | P30: Feasibility | W30: Infeasibility Criteria
B32: Rain Garden | BS32: Rain Garden | BT32: =IF(CA32,"Infeasible",IF(BZ32,"Feasibility","NotRequired")) -> Feasibility | BU32: =IF(OR(P32="",BX32),FALSE,OR(NOT(BZ32),BV32)) -> FALSE | BV32: =P32="Infeasible" -> FALSE | BW32: =AND(BV32,NOT(W32="")) -> FALSE | BX32: =P32="Use BMP" -> FALSE | BY32: =OR(BX35,BX38,BX41,BX44,BX47) -> FALSE | BZ32: =INDEX(CB32:CG32,MATCH($BZ$2,$CB$2:$CG$2,0)) -> TRUE | CA32: =AND(InfExploration,OR(InfiltrationInfeasible,MeasuredInfRate<0.3)) -> FALSE | CB32: =$N$13<5000 -> TRUE | CC32: =$N$13<5000 -> TRUE | CD32: TRUE | CE32: TRUE | CF32: TRUE | CG32: TRUE
C33: =IF($N$9="","",IF(BZ32,"","Evaluation not allowed for projects with greater than 5,000 sf of hard surface infiltrating on site.")) -> 
B35: Infiltrating Bioretention | BS35: Infiltrating Bioretention | BT35: =IF($CA$35,"Infeasible","Feasibility") -> Feasibility | BU35: =IF(OR(P35="",BX35),FALSE,OR(NOT(BZ35),BV35)) -> FALSE | BV35: =P35="Infeasible" -> FALSE | BW35: =AND(BV35,NOT(W35="")) -> FALSE | BX35: =P35="Use BMP" -> FALSE | BY35: =OR(BX32,BX38,BX41,BX44,BX47) -> FALSE | BZ35: =INDEX(CB35:CG35,MATCH($BZ$2,$CB$2:$CG$2,0)) -> TRUE | CA35: =AND(InfExploration,OR(InfiltrationInfeasible,MeasuredInfRate<0.3)) -> FALSE | CB35: TRUE | CC35: TRUE | CD35: TRUE | CE35: TRUE | CF35: TRUE | CG35: TRUE
B38: Rainwater Harvesting - Category 2 Sizing | BS38: Rainwater Harvesting - Category 2 | BT38: =IF($BZ$38,"Feasibility",IF($N$9="Roof","NotRequired","NoEval")) -> NoEval | BU38: =IF(OR(P38="",BX38),FALSE,OR(NOT(BZ38),BV38)) -> FALSE | BV38: =P38="Infeasible" -> FALSE | BW38: =AND(BV38,NOT(W38="")) -> FALSE | BX38: =P38="Use BMP" -> FALSE | BY38: =OR(BX32,BX35,BX41,BX44,BX47) -> FALSE | BZ38: =INDEX(CB38:CG38,MATCH($BZ$2,$CB$2:$CG$2,0)) -> FALSE | CB38: FALSE | CC38: FALSE | CD38: FALSE | CE38: FALSE | CF38: FALSE | CG38: FALSE
C39: =IF($N$9="","",IF($N$9="Roof","Evaluation not required but allowed.","")) -> 
B41: Permeable Pavement Facility | BS41: Permeable Pavement Facility | BT41: =IF($CA$41,"Infeasible","Feasibility") -> Feasibility | BU41: =IF(OR(P41="",BX41),FALSE,OR(NOT(BZ41),BV41)) -> FALSE | BV41: =P41="Infeasible" -> FALSE | BW41: =AND(BV41,NOT(W41="")) -> FALSE | BX41: =P41="Use BMP" -> FALSE | BY41: =OR(BX32,BX35,BX38,BX44,BX47) -> FALSE | BZ41: =INDEX(CB41:CG41,MATCH($BZ$2,$CB$2:$CG$2,0)) -> TRUE | CA41: =AND(InfExploration,OR(InfiltrationInfeasible,MeasuredInfRate<0.3)) -> FALSE | CB41: TRUE | CC41: TRUE | CD41: TRUE | CE41: TRUE | CF41: TRUE | CG41: TRUE
C42: =IF(BX41,"Note the surface area ("&N13&" sf) should represent the area contributing to the permeable pavement facility. Facility area will be entered on the BMP Sizing tab.","") -> 
B44: Permeable Pavement Surface | BS44: Permeable Pavement Surface | BT44: =IF(NOT($BZ$44),"NoEval",IF($CA$44,"Infeasible","Feasibility")) -> Feasibility | BU44: =IF(OR(P44="",BX44),FALSE,OR(NOT(BZ44),BV44)) -> FALSE | BV44: =P44="Infeasible" -> FALSE | BW44: =AND(BV44,NOT(W44="")) -> FALSE | BX44: =P44="Use BMP" -> FALSE | BY44: =OR(BX32,BX35,BX38,BX41,BX47) -> FALSE | BZ44: =INDEX(CB44:CG44,MATCH($BZ$2,$CB$2:$CG$2,0)) -> TRUE | CB44: FALSE | CC44: FALSE | CD44: FALSE | CE44: TRUE | CF44: TRUE | CG44: TRUE
C45: =IF(N9="","",IF(N9="Roof","Evaluation not allowed for roof surfaces.","")) -> 
B47: Sidewalk/Trail Compost-Amended Strip | BS47: Sidewalk/Trail Compost-Amended Strip | BT47: =IF(NOT($BZ$47),"NoEval",IF($CA$47,"Infeasible","Feasibility")) -> Feasibility | BU47: =IF(OR(P47="",BX47),FALSE,OR(NOT(BZ47),BV47)) -> FALSE | BV47: =P47="Infeasible" -> FALSE | BW47: =AND(BV47,NOT(W47="")) -> FALSE | BX47: =P47="Use BMP" -> FALSE | BY47: =OR(BX32,BX35,BX38,BX41,BX44) -> FALSE | BZ47: =INDEX(CB47:CG47,MATCH($BZ$2,$CB$2:$CG$2,0)) -> TRUE | CA47: =AND(InfExploration,OR(InfiltrationInfeasible,InfRate<0.15), 'Project Summary'!$AA$64<>Lookup!$R$2) -> FALSE | CB47: FALSE | CC47: FALSE | CD47: FALSE | CE47: TRUE | CF47: TRUE | CG47: TRUE
C48: =IF(N9="","",IF(N9="Roof","Evaluation not allowed for roof surfaces.","")) -> 
A50: Category 3 | BS50: Category 3 | BU50: =OR(NOT(AND(BU19:BU25,BU32:BU47)),N9="") -> TRUE
B52: BMP | P52: Feasibility | W52: Infeasibility Criteria
B54: Sheet Flow Dispersion | BS54: Sheet Flow Dispersion | BT54: =IF($CA$54,"Infeasible","Feasibility") -> Feasibility | BU54: =IF(OR(P54="",BX54),FALSE,OR(NOT(BZ54),BV54)) -> FALSE | BV54: =P54="Infeasible" -> FALSE | BW54: =AND(BV54,NOT(W54="")) -> FALSE | BX54: =P54="Use BMP" -> FALSE | BY54: =OR(BX57,BX60,BX63,BX70,BX76) -> FALSE | BZ54: =INDEX(CB54:CG54,MATCH($BZ$2,$CB$2:$CG$2,0)) -> TRUE | CA54: =Dispersion -> FALSE | CB54: TRUE | CC54: TRUE | CD54: TRUE | CE54: TRUE | CF54: TRUE | CG54: TRUE
B57: Concentrated Flow Dispersion | BS57: Concentrated Flow Dispersion | BT57: =IF(BZ57,IF($CA$57,"Infeasible","Feasibility"),"NoEval") -> Feasibility | BU57: =IF(OR(P57="",BX57),FALSE,OR(NOT(BZ57),BV57)) -> FALSE | BV57: =P57="Infeasible" -> FALSE | BW57: =AND(BV57,NOT(W57="")) -> FALSE | BX57: =P57="Use BMP" -> FALSE | BY57: =OR(BX54,BX60,BX63,BX70,BX76) -> FALSE | BZ57: =INDEX(CB57:CG57,MATCH($BZ$2,$CB$2:$CG$2,0)) -> TRUE | CA57: =Dispersion -> FALSE | CB57: FALSE | CC57: FALSE | CD57: FALSE | CE57: TRUE | CF57: TRUE | CG57: TRUE
C58: =IF($N$9="Roof","Evaluation not allowed for roof surfaces.","") -> 
B60: Splashblock Downspout Dispersion | BS60: Splashblock Downspout Dispersion | BT60: =IF(BZ60,IF($CA$60,"Infeasible","Feasibility"),"NoEval") -> NoEval | BU60: =IF(OR(P60="",BX60),FALSE,OR(NOT(BZ60),BV60)) -> FALSE | BV60: =P60="Infeasible" -> FALSE | BW60: =AND(BV60,NOT(W60="")) -> FALSE | BX60: =P60="Use BMP" -> FALSE | BY60: =OR(BX54,BX57,BX63,BX70,BX76) -> FALSE | BZ60: =INDEX(CB60:CG60,MATCH($BZ$2,$CB$2:$CG$2,0)) -> FALSE | CA60: =Dispersion -> FALSE | CB60: TRUE | CC60: TRUE | CD60: TRUE | CE60: FALSE | CF60: FALSE | CG60: FALSE
C61: =IF($N$9="","",IF($N$9="Roof","","Evaluation not allowed for non-roof surfaces.")) -> 
B63: Trench Downspout Dispersion | BS63: Trench Downspout Dispersion | BT63: =IF(BZ63,IF($CA$60,"Infeasible","Feasibility"),"NoEval") -> NoEval | BU63: =IF(OR(P63="",BX63),FALSE,OR(NOT(BZ63),BV63)) -> FALSE | BV63: =P63="Infeasible" -> FALSE | BW63: =AND(BV63,NOT(W63="")) -> FALSE | BX63: =P63="Use BMP" -> FALSE | BY63: =OR(BX54,BX57,BX60,BX70,BX76) -> FALSE | BZ63: =INDEX(CB63:CG63,MATCH($BZ$2,$CB$2:$CG$2,0)) -> FALSE | CA63: =Dispersion -> FALSE | CB63: TRUE | CC63: TRUE | CD63: TRUE | CE63: FALSE | CF63: FALSE | CG63: FALSE
C64: =IF($N$9="","",IF($N$9="Roof","","Evaluation not allowed for non-roof surfaces.")) -> 
A66: Category 4 | BS66: Category 4 | BU66: =OR(NOT(AND(BU19:BU25,BU32:BU47,BU54:BU63)),N9="") -> TRUE
B68: BMP | P68: Feasibility | W68: Infeasibility Criteria
B70: Non-Infiltrating Bioretention | BS70: Non-Infiltrating Bioretention | BT70: =IF($BZ$70,"Feasibility","NoEval") -> Feasibility | BU70: =IF(OR(P70="",BX70),FALSE,OR(NOT(BZ70),BV70)) -> FALSE | BV70: =P70="Infeasible" -> FALSE | BW70: =AND(BV70,NOT(W70="")) -> FALSE | BX70: =P70="Use BMP" -> FALSE | BY70: =OR(BX73,BX76) -> FALSE | BZ70: =INDEX(CB70:CG70,MATCH($BZ$2,$CB$2:$CG$2,0)) -> TRUE | CB70: TRUE | CC70: TRUE | CD70: TRUE | CE70: TRUE | CF70: TRUE | CG70: TRUE
B73: Rainwater Harvesting - Category 4 Sizing | BS73: Rainwater Harvesting - Category 4 | BT73: =IF($BZ$38,"Feasibility",IF($N$9="Roof","NotRequired","NoEval")) -> NoEval | BU73: =IF(OR(P73="",BX73),FALSE,OR(NOT(BZ73),BV73)) -> FALSE | BV73: =P73="Infeasible" -> FALSE | BW73: =AND(BV73,NOT(W73="")) -> FALSE | BX73: =P73="Use BMP" -> FALSE | BY73: =OR(BX70,BX76) -> FALSE | BZ73: =INDEX(CB73:CG73,MATCH($BZ$2,$CB$2:$CG$2,0)) -> FALSE | CB73: FALSE | CC73: FALSE | CD73: FALSE | CE73: FALSE | CF73: FALSE | CG73: FALSE
C74: =IF($N$9="","",IF($N$9="Roof","Evaluation not required but allowed.","")) -> 
B76: Vegetated Roof System | BS76: Vegetated Roof System | BT76: =IF($N$9="Roof","NotRequired","NoEval") -> NoEval | BU76: =IF(OR(P76="",BX76),FALSE,OR(NOT(BZ76),BV76)) -> FALSE | BV76: =P76="Infeasible" -> FALSE | BW76: =AND(BV76,NOT(W76="")) -> FALSE | BX76: =P76="Use BMP" -> FALSE | BY76: =OR(BX70,BX73) -> FALSE | BZ76: =INDEX(CB76:CG76,MATCH($BZ$2,$CB$2:$CG$2,0)) -> FALSE | CB76: FALSE | CC76: FALSE | CD76: FALSE | CE76: FALSE | CF76: FALSE | CG76: FALSE
C77: =IF($N$9="","",IF(N9="Roof","Evaluation not required but allowed.","Evaluation not allowed for non-roof surfaces.")) -> 
A79: Category 5 | BS79: Category 5 | BU79: =OR(NOT(AND(BU19:BU25,BU32:BU47,BU54:BU63,BU70:BU76)),N9="") -> TRUE
B81: BMP | P81: Feasibility | W81: Infeasibility Criteria
B83: Single-family Residential Cisterns | BS83: Single-family Residential Cisterns | BT83: =IF(BZ83,"Feasibility","NoEval") -> NoEval | BU83: =IF(OR(P83="",BX83),FALSE,OR(NOT(BZ83),BV83)) -> FALSE | BV83: =P83="Infeasible" -> FALSE | BW83: =AND(BV83,NOT(W83="")) -> FALSE | BX83: =P83="Use BMP" -> FALSE | BY83: =OR(BX86,BX89) -> FALSE | BZ83: =INDEX(CB83:CG83,MATCH($BZ$2,$CB$2:$CG$2,0)) -> FALSE | CB83: TRUE | CC83: TRUE | CD83: TRUE | CE83: FALSE | CF83: FALSE | CG83: FALSE
C84: =IF($N$9="","",IF($N$9="Roof","","Evaluation not allowed for non-roof surfaces.")) -> 
B86: Perforated Stub-out Connection | BS86: Perforated Stub-out Connection | BT86: =IF(BZ86,IF(CA86,"Infeasible","Feasibility"),"NoEval") -> NoEval | BU86: =IF(OR(P86="",BX86),FALSE,OR(NOT(BZ86),BV86)) -> FALSE | BV86: =P86="Infeasible" -> FALSE | BW86: =AND(BV86,NOT(W86="")) -> FALSE | BX86: =P86="Use BMP" -> FALSE | BY86: =OR(BX83,BX89) -> FALSE | BZ86: =INDEX(CB86:CG86,MATCH($BZ$2,$CB$2:$CG$2,0)) -> FALSE | CA86: =AND(InfExploration,OR(InfiltrationInfeasible,MeasuredInfRate<0.3)) -> FALSE | CB86: TRUE | CC86: TRUE | CD86: TRUE | CE86: FALSE | CF86: FALSE | CG86: FALSE
C87: =IF($N$9="","",IF($N$9="Roof","","Evaluation not allowed for non-roof surfaces.")) -> 
B89: Trees | BS89: Trees | BT89: =IF(BZ89,"Feasibility","NoEval") -> Feasibility | BU89: =IF(OR(P89="",BX89),FALSE,OR(NOT(BZ89),BV89)) -> FALSE | BV89: =P89="Infeasible" -> FALSE | BW89: =AND(BV89,NOT(W89="")) -> FALSE | BX89: =P89="Use BMP" -> FALSE | BY89: =OR(BX83,BX86) -> FALSE | BZ89: =INDEX(CB89:CG89,MATCH($BZ$2,$CB$2:$CG$2,0)) -> TRUE | CB89: FALSE | CC89: FALSE | CD89: FALSE | CE89: TRUE | CF89: TRUE | CG89: TRUE
C90: =IF(NOT(BZ89),"Evaluation not allowed for roof surfaces.","") -> 

Sheet Trail (hidden)
A1: On-site Stormwater Management Calculator - List Approach | BZ1: Column to Use | CB1: Evaluation Required
A2: Surface Identification and BMP Evaluation for Trail and Sidewalk Projects | BS2: None Feasible | BX2: =AND(COUNTIFS(BT19:BT52,"Feasibility",BV19:BV52,TRUE)=COUNTIF(BT19:BT52,"Feasibility"),COUNTIF(BX19:BX52,TRUE)=0) -> FALSE | BZ2: =OFFSET(CA2,0,IF($N$9="Roof",0,3)+'Project Summary'!$AS$35) -> 4 | CB2: 1 | CC2: 2 | CD2: 3 | CE2: 4 | CF2: 5 | CG2: 6
B4: Project No. | N4: ='Project Summary'!$AG$6 -> 0 | CB4: Roof | CC4: Roof | CD4: Roof | CE4: Surface | CF4: Surface | CG4: Surface
B7: Hard Surface Number | BS7: BMP | BT7: Dropdown Lookup | BU7: Grey Out | BV7: Infeasible Selected | BW7: Infeasibility Criteria Selected | BX7: BMP Selected | BY7: Other BMP in Group Selected | BZ7: Evaluation Required | CA7: Infiltration/ DispersionInfeasible | CB7: Not designated receiving water | CC7: Public combined sewer or capacity constrained | CD7: Designated Receiving Water | CE7: Not designated receiving water | CF7: Public combined sewer or capacity constrained | CG7: Designated Receiving Water
B9: Hard Surface Type | T9: ´ | W9: =IF(COUNTIF(BX19:BX79,TRUE)>1,"More than one Use BMP selected, please select only one. ","") & IF(SUMPRODUCT($BV$19:$BV$80*NOT(BW19:BW80)*NOT(BY19:BY80)) > 0,SUMPRODUCT($BV$19:$BV$80*NOT(BW19:BW80)*NOT(BY19:BY80))&" BMP(s) require infeasibility criteria.","") -> 
B11: Hard Surface Description
B13: Surface Area (sf)
A15: Category 1 (Select 1 BMP from Category 1, order does not matter, or move to Category 2) | BS15: Category 1
B17: BMP | P17: Feasibility | W17: Infeasibility Criteria
B19: Full Dispersion | BS19: Full Dispersion | BT19: =IF(BZ19,IF(CA19,"Infeasible","Feasibility"),"NoEval") -> Feasibility | BU19: =IF(OR(P19="",BX19),FALSE,OR(NOT(BZ19),BV19)) -> FALSE | BV19: =P19="Infeasible" -> FALSE | BW19: =AND(BV19,NOT(W19="")) -> FALSE | BX19: =P19="Use BMP" -> FALSE | BY19: FALSE | BZ19: =INDEX(CB19:CG19,MATCH($BZ$2,$CB$2:$CG$2,0)) -> TRUE | CA19: =Dispersion -> FALSE | CB19: FALSE | CC19: FALSE | CD19: FALSE | CE19: TRUE | CF19: TRUE | CG19: TRUE
A22: Category 2 | BS22: Category 2 | BU22: =NOT(AND(BU19:BU21,N9<>"")) -> TRUE
B24: BMP | P24: Feasibility | W24: Infeasibility Criteria
B26: Rain Garden | BS26: Rain Garden | BT26: =IF(BZ26,IF(CA26,"Infeasible","Feasibility"),"NotRequired") -> Feasibility | BU26: =IF(OR(P26="",BX26),FALSE,OR(NOT(BZ26),BV26)) -> FALSE | BV26: =P26="Infeasible" -> FALSE | BW26: =AND(BV26,NOT(W26="")) -> FALSE | BX26: =P26="Use BMP" -> FALSE | BY26: =OR(BX29,BX32,BX35) -> FALSE | BZ26: =INDEX(CB26:CG26,MATCH($BZ$2,$CB$2:$CG$2,0)) -> TRUE | CA26: =AND(InfExploration,OR(InfiltrationInfeasible,MeasuredInfRate<0.3)) -> FALSE | CB26: TRUE | CC26: TRUE | CD26: FALSE | CE26: TRUE | CF26: =O13<5000 -> TRUE | CG26: FALSE
C27: =IF($N$9="","",IF(BZ26,"","Evaluation not required.")) -> 
B29: Permeable Pavement Facility | BS29: Permeable Pavement Facility | BT29: =IF(CA29,"Infeasible",IF(BZ29,"Feasibility","NotRequired")) -> NotRequired | BU29: =IF(OR(P29="",BX29),FALSE,OR(NOT(BZ29),BV29)) -> FALSE | BV29: =P29="Infeasible" -> FALSE | BW29: =AND(BV29,NOT(W29="")) -> FALSE | BX29: =P29="Use BMP" -> FALSE | BY29: =OR(BX26,BX32,BX35) -> FALSE | BZ29: =INDEX(CB29:CG29,MATCH($BZ$2,$CB$2:$CG$2,0)) -> FALSE | CA29: =AND(InfExploration,OR(InfiltrationInfeasible,MeasuredInfRate<0.3)) -> FALSE | CB29: FALSE | CC29: FALSE | CD29: FALSE | CE29: FALSE | CF29: FALSE | CG29: FALSE
C30: =IF(BX29,"Note the surface area ("&N13&" sf) should represent the area contributing to the permeable pavement facility. Facility area will be entered on the BMP Sizing tab.", IF($N$9="","", IF(OR('Project Summary'!Q35=Lookup!I4, 'Project Summary'!Q35=Lookup!I5),"Evaluation not required but allowed if permeable pavement in ROW is greater than 2,000 sf.","Evaluation not required but allowed."))) -> 
B32: Permeable Pavement Surface | BS32: Permeable Pavement Surface | BT32: =IF(CA32,"Infeasible",IF(BZ32,"Feasibility","NotRequired")) -> Feasibility | BU32: =IF(OR(P32="",BX32),FALSE,OR(NOT(BZ32),BV32)) -> FALSE | BV32: =P32="Infeasible" -> FALSE | BW32: =AND(BV32,NOT(W32="")) -> FALSE | BX32: =P32="Use BMP" -> FALSE | BY32: =OR(BX26,BX29,BX35) -> FALSE | BZ32: =INDEX(CB32:CG32,MATCH($BZ$2,$CB$2:$CG$2,0)) -> TRUE | CB32: TRUE | CC32: TRUE | CD32: FALSE | CE32: TRUE | CF32: TRUE | CG32: FALSE
C33: =IF(N9="","", IF(BZ2=5,"Minimum permeable pavement area in ROW is 2,000 sf.", IF(BZ2=6,IF(N13<2000,"Evaluation not allowed in ROW if new plus replaced PGHS is less than 2,000 sf.","Evaluation not required but allowed if permable pavement in ROW is greater than 2,000 sf."),""))) -> 
B35: Sidewalk/Trail Compost-Amended Strip | BS35: Sidewalk/Trail Compost-Amended Strip | BT35: =IF(BZ35,"Feasibility","NotRequired") -> Feasibility | BU35: =IF(OR(P35="",BX35),FALSE,OR(NOT(BZ35),BV35)) -> FALSE | BV35: =P35="Infeasible" -> FALSE | BW35: =AND(BV35,NOT(W35="")) -> FALSE | BX35: =P35="Use BMP" -> FALSE | BY35: =OR(BX26,BX29,BX32) -> FALSE | BZ35: =INDEX(CB35:CG35,MATCH($BZ$2,$CB$2:$CG$2,0)) -> TRUE | CA35: =AND(InfExploration,OR(InfiltrationInfeasible,InfRate<0.15), 'Project Summary'!$AA$64<>Lookup!$R$2) -> FALSE | CB35: TRUE | CC35: TRUE | CD35: FALSE | CE35: TRUE | CF35: TRUE | CG35: FALSE
C36: =IF($N$9="","",IF(BZ35,"","Evaluation not required.")) -> 
A38: Category 3 | BS38: Category 3 | BU38: =NOT(AND(BU19:BU21,BU23:BU36)) -> TRUE
B40: BMP | P40: Feasibility | W40: Infeasibility Criteria
B42: Sheet Flow Dispersion | BS42: Sheet Flow Dispersion | BT42: =IF(BZ42,IF(CA42,"Infeasible","Feasibility"),"NoEval") -> Feasibility | BU42: =IF(OR(P42="",BX42),FALSE,OR(NOT(BZ42),BV42)) -> FALSE | BV42: =P42="Infeasible" -> FALSE | BW42: =AND(BV42,NOT(W42="")) -> FALSE | BX42: =P42="Use BMP" -> FALSE | BY42: =BX45 -> FALSE | BZ42: =INDEX(CB42:CG42,MATCH($BZ$2,$CB$2:$CG$2,0)) -> TRUE | CA42: =Dispersion -> FALSE | CB42: FALSE | CC42: FALSE | CD42: FALSE | CE42: TRUE | CF42: TRUE | CG42: TRUE
B45: Concentrated Dispersion | BS45: Concentrated Flow Dispersion | BT45: =IF(BZ45,IF(CA45,"Infeasible","Feasibility"),"NoEval") -> Feasibility | BU45: =IF(OR(P45="",BX45),FALSE,OR(NOT(BZ45),BV45)) -> FALSE | BV45: =P45="Infeasible" -> FALSE | BW45: =AND(BV45,NOT(W45="")) -> FALSE | BX45: =P45="Use BMP" -> FALSE | BY45: =BX42 -> FALSE | BZ45: =INDEX(CB45:CG45,MATCH($BZ$2,$CB$2:$CG$2,0)) -> TRUE | CA45: =Dispersion -> FALSE | CB45: FALSE | CC45: FALSE | CD45: FALSE | CE45: TRUE | CF45: TRUE | CG45: TRUE
C46: =IF($N$9="Roof","Evaluation not required for roof surfaces.","") -> 
A48: Category 4 | BS48: Category 4 | BU48: =NOT(AND(BU19,BU26:BU35,BU42:BU45)) -> TRUE
B50: BMP | P50: Feasibility | W50: Infeasibility Criteria
B52: Trees | BS52: Trees | BT52: =IF(BZ52,"Feasibility","NoEval") -> Feasibility | BU52: =IF(OR(P52="",BX52),FALSE,OR(NOT(BZ52),BV52)) -> FALSE | BV52: =P52="Infeasible" -> FALSE | BW52: =AND(BV52,NOT(W52="")) -> FALSE | BX52: =P52="Use BMP" -> FALSE | BY52: FALSE | BZ52: =INDEX(CB52:CG52,MATCH($BZ$2,$CB$2:$CG$2,0)) -> TRUE | CB52: FALSE | CC52: FALSE | CD52: FALSE | CE52: TRUE | CF52: TRUE | CG52: TRUE
C53: =IF($N$9="Roof","Evaluation not required for roof surfaces.","") -> 

Sheet Road (hidden)
A1: On-site Stormwater Management Calculator - List Approach | BZ1: Column to Use | CB1: Evaluation Required
A2: Surface Identification and BMP Evaluation for Roadway Projects | BS2: None Feasible | BX2: =AND(COUNTIFS(BT19:BT54,"Feasibility",BV19:BV54,TRUE)=COUNTIF(BT19:BT54,"Feasibility"),COUNTIF(BX19:BX54,TRUE)=0) -> FALSE | BZ2: =OFFSET(CA2,0,IF($N$9="Roof",0,3)+'Project Summary'!$AS$35) -> 4 | CB2: 1 | CC2: 2 | CD2: 3 | CE2: 4 | CF2: 5 | CG2: 6
B4: Project No. | N4: ='Project Summary'!$AG$6 -> 0 | CB4: Roof | CC4: Roof | CD4: Roof | CE4: Surface | CF4: Surface | CG4: Surface
B7: Hard Surface Number | BS7: BMP | BT7: Dropdown Lookup | BU7: Grey Out | BV7: Infeasible Selected | BW7: Infeasible Criteria Entered | BX7: BMP Selected | BY7: Other BMP in Group Selected | BZ7: Evaluation Required | CA7: Infiltration /Dispersion Infeasible | CB7: Not designated receiving water | CC7: Public combined sewer or capacity constrained | CD7: Designated Receiving Water | CE7: Not designated receiving water | CF7: Public combined sewer or capacity constrained | CG7: Designated Receiving Water
B9: Hard Surface Type | T9: ´ | W9: =IF(COUNTIF(BX19:BX80,TRUE)>1,"More than one Use BMP selected, please select only one. ","") & IF(SUMPRODUCT($BV$19:$BV$81*NOT(BW19:BW81)*NOT(BY19:BY81)) > 0,SUMPRODUCT($BV$19:$BV$81*NOT(BW19:BW81)*NOT(BY19:BY81))&" BMP(s) require infeasibility criteria.","") -> 
B11: Hard Surface Description | W11: :
B13: Surface Area (sf)
A15: Category 1 (Select 1 BMP from Category 1, order does not matter, or move to Category 2) | BS15: Category 1
B17: BMP | P17: Feasibility | W17: Infeasibility Criteria
B19: Full Dispersion | BS19: Full Dispersion | BT19: =IF(BZ19,IF(CA19,"Infeasible","Feasibility"),"NoEval") -> Feasibility | BU19: =IF(OR(P19="",BX19),FALSE,OR(NOT(BZ19),BV19)) -> FALSE | BV19: =P19="Infeasible" -> FALSE | BW19: =AND(BV19,NOT(W19="")) -> FALSE | BX19: =P19="Use BMP" -> FALSE | BY19: FALSE | BZ19: =INDEX(CB19:CG19,MATCH($BZ$2,$CB$2:$CG$2,0)) -> TRUE | CA19: =Dispersion -> FALSE | CB19: FALSE | CC19: FALSE | CD19: FALSE | CE19: TRUE | CF19: TRUE | CG19: TRUE
A22: Category 2 | BS22: Category 2 | BU22: =NOT(AND(BU19:BU21,N9<>"")) -> TRUE
B24: BMP | P24: Feasibility | W24: Infeasibility Criteria
B26: Rain Garden | BS26: Rain Garden | BT26: =IF(BZ26,IF(CA26,"Infeasible","Feasibility"),"NoEval") -> Feasibility | BU26: =IF(OR(P26="",BX26),FALSE,OR(NOT(BZ26),BV26)) -> FALSE | BV26: =P26="Infeasible" -> FALSE | BW26: =AND(BV26,NOT(W26="")) -> FALSE | BX26: =P26="Use BMP" -> FALSE | BY26: =OR(BX29,BX32,BX35) -> FALSE | BZ26: =INDEX(CB26:CG26,MATCH($BZ$2,$CB$2:$CG$2,0)) -> TRUE | CA26: =AND(InfExploration,OR(InfiltrationInfeasible,MeasuredInfRate<0.3)) -> FALSE | CB26: FALSE | CC26: FALSE | CD26: FALSE | CE26: =AND(NOT('Project Summary'!$AS$47),NOT('Project Summary'!$AS$49),$N$13<5000) -> TRUE | CF26: =AND(NOT('Project Summary'!$AS$47),NOT('Project Summary'!$AS$49),$N$13<5000) -> TRUE | CG26: =AND(NOT('Project Summary'!$AS$47),NOT('Project Summary'!$AS$49),$N$13<5000) -> TRUE
C27: =IF($N$9="","",IF(MeasuredInfRate<0.3,"",IF(OR('Project Summary'!AS47,'Project Summary'!AS49),"Evaluation not allowed when project requires Flow Control or Water Quality Treatment",IF(N13>=5000,"Evaluation not allowed for sites with greater than 5,000 sf of hard surface infiltrating onsite","")))) -> 
B29: Infiltrating Bioretention | BS29: Infiltrating Bioretention | BT29: =IF(BZ29,IF(CA29,"Infeasible","Feasibility"),"NoEval") -> Feasibility | BU29: =IF(OR(P29="",BX29),FALSE,OR(NOT(BZ29),BV29)) -> FALSE | BV29: =P29="Infeasible" -> FALSE | BW29: =AND(BV29,NOT(W29="")) -> FALSE | BX29: =P29="Use BMP" -> FALSE | BY29: =OR(BX26,BX32,BX35) -> FALSE | BZ29: =INDEX(CB29:CG29,MATCH($BZ$2,$CB$2:$CG$2,0)) -> TRUE | CA29: =AND(InfExploration,OR(InfiltrationInfeasible,MeasuredInfRate<0.3)) -> FALSE | CB29: FALSE | CC29: FALSE | CD29: FALSE | CE29: TRUE | CF29: TRUE | CG29: TRUE
C30: =IF(N9<>"", IF(BZ2>=5, "Evaluation is only allowed when contributing area is sufficient to warrant minimum bioretention cell size in ROW.",""),"") -> 
B32: Permeable Pavement Facility | BS32: Permeable Pavement Facility | BT32: =IF(CA32,"Infeasible", IF(BZ2=4, IF(N11="Arterial Street or Collector","NoEval","NotRequired"), IF(BZ2=5, IF(AND(N11="ROW", N13<2000),"NoEval",IF(OR(N11="ROW",N11="Other"),"NotRequired","NoEval")), IF(BZ2=6, IF(AND(N13>=2000, OR(N11="ROW",N11="Other")),"NotRequired",IF(AND(N13<2000,N11="Other"),"NoEval",IF(AND(N13<2000,N11="ROW"),"NoEval","NoEval"))),"Feasibility")))) -> NotRequired | BU32: =IF(OR(P32="",BX32),FALSE,OR(NOT(BZ32),BV32)) -> FALSE | BV32: =P32="Infeasible" -> FALSE | BW32: =AND(BV32,NOT(W32="")) -> FALSE | BX32: =P32="Use BMP" -> FALSE | BY32: =OR(BX26,BX29,BX35) -> FALSE | BZ32: =INDEX(CB32:CG32,MATCH($BZ$2,$CB$2:$CG$2,0)) -> FALSE | CA32: =AND(InfExploration,OR(InfiltrationInfeasible,MeasuredInfRate<0.3)) -> FALSE | CB32: FALSE | CC32: FALSE | CD32: FALSE | CE32: FALSE | CF32: FALSE | CG32: FALSE
C33: =IF(BX32,"Note the surface area ("&N13&" sf) should represent the area contributing to the permeable pavement facility. Facility area will be entered on the BMP Sizing tab.","") -> 
B35: Permeable Pavement Surface | BS35: Permeable Pavement Surface | BT35: =IF(BZ2=4,IF(N11="Arterial Street or Collector","NoEval",IF(CA35,"Infeasible","Feasibility")), IF(BZ2=5,IF(AND(N11="ROW",N13<2000),"NoEval",IF(OR(N11="ROW",N11="Other"),IF(CA35,"Infeasible","Feasibility"),"NoEval")), IF(BZ2=6,IF(AND(N11="Other",N13<2000),"NoEval",IF(AND(N11="ROW",N13<2000),"NoEval",IF(OR(N11="Other",N11="ROW"),IF(CA35,"Infeasible","NotRequired"),"NoEval")))))) -> Feasibility | BU35: =IF(OR(P35="",BX35),FALSE,OR(NOT(BZ35),BV35)) -> FALSE | BV35: =P35="Infeasible" -> FALSE | BW35: =AND(BV35,NOT(W35="")) -> FALSE | BX35: =P35="Use BMP" -> FALSE | BY35: =OR(BX26,BX29,BX32) -> FALSE | BZ35: =INDEX(CB35:CG35,MATCH($BZ$2,$CB$2:$CG$2,0)) -> TRUE | CB35: FALSE | CC35: FALSE | CD35: FALSE | CE35: =IF(N11="Arterial Street or Collector",FALSE,TRUE) -> TRUE | CF35: =IF(AND(N11="ROW",N13<2000),FALSE,IF(OR(N11="ROW",N11="Other"),TRUE,FALSE)) -> FALSE | CG35: =AND(N13>=2000,OR(N11="Other",N11="ROW")) -> FALSE
C36: =IF(N9="","", IF(MeasuredInfRate<0.3, "", IF(BZ2=4,IF(N11="Arterial Street or Collector","Evaluation is not allowed if roadway is an arterial street or collector.",""), IF(BZ2=5,IF(AND(N11="ROW",N13<2000),"Minimum permeable pavement area allowed in the ROW is 2,000 sf.",IF(OR(N11="ROW",N11="Other"),"","Evaluation of roadway surfaces, including alleys, is not allowed.")), IF(BZ2=6,IF(AND(N11="Other",N13<2000),"Evaluation is not allowed if new plus replaced PGHS is less than 2,000 sf.",IF(AND(N11="ROW",N13<2000),"Minimum permeable pavement area allowed in the ROW is 2,000 sf.",IF(OR(N11="Other",N11="ROW"),"","Evaluation of roadway surfaces, including alleys, is not allowed.")))))))) -> 
B38: Sidewalk/Trail Compost-Amended Strip | BS38: Sidewalk/Trail Compost-Amended Strip | BT38: =IF(N9="Roof","NoEval","NotRequired") -> NotRequired | BU38: =IF(OR(P38="",BX38),FALSE,OR(NOT(BZ38),BV38)) -> FALSE | BV38: =P38="Infeasible" -> FALSE | BW38: =AND(BV38,NOT(W38="")) -> FALSE | BX38: =P38="Use BMP" -> FALSE | BY38: =OR(BX29,BX32,BX35) -> FALSE | BZ38: =INDEX(CB38:CG38,MATCH($BZ$2,$CB$2:$CG$2,0)) -> FALSE | CA38: =AND(InfExploration,OR(InfiltrationInfeasible,InfRate<0.15), 'Project Summary'!$AA$64<>Lookup!$R$2) -> FALSE | CB38: FALSE | CC38: FALSE | CD38: FALSE | CE38: FALSE | CF38: FALSE | CG38: FALSE
C39: =IF(N9="","", "Evaluation of roadway surfaces, including alleys, is not allowed.") -> 
A41: Category 3 | BS41: Category 3 | BU41: =NOT(AND(BU19:BU21,BU25:BU39,N9<>"")) -> TRUE
B43: BMP | P43: Feasibility | W43: Infeasibility Criteria
B45: Sheet Flow Dispersion | BS45: Sheet Flow Dispersion | BT45: =IF(BZ45,IF(CA45,"Infeasible","Feasibility"),"NoEval") -> Feasibility | BU45: =IF(OR(P45="",BX45),FALSE,OR(NOT(BZ45),BV45)) -> FALSE | BV45: =P45="Infeasible" -> FALSE | BW45: =AND(BV45,NOT(W45="")) -> FALSE | BX45: =P45="Use BMP" -> FALSE | BY45: =BX47 -> FALSE | BZ45: =INDEX(CB45:CG45,MATCH($BZ$2,$CB$2:$CG$2,0)) -> TRUE | CA45: =Dispersion -> FALSE | CB45: FALSE | CC45: FALSE | CD45: FALSE | CE45: TRUE | CF45: TRUE | CG45: TRUE
B47: Concentrated Flow Dispersion | BS47: Concentrated Flow Dispersion | BT47: =IF(BZ47,IF(CA47,"Infeasible","Feasibility"),"NoEval") -> Feasibility | BU47: =IF(OR(P47="",BX47),FALSE,OR(NOT(BZ47),BV47)) -> FALSE | BV47: =P47="Infeasible" -> FALSE | BW47: =AND(BV47,NOT(W47="")) -> FALSE | BX47: =P47="Use BMP" -> FALSE | BY47: =BX45 -> FALSE | BZ47: =INDEX(CB47:CG47,MATCH($BZ$2,$CB$2:$CG$2,0)) -> TRUE | CA47: =Dispersion -> FALSE | CB47: FALSE | CC47: FALSE | CD47: FALSE | CE47: TRUE | CF47: TRUE | CG47: TRUE
A50: Category 4 | BS50: Category 4 | BU50: =NOT(AND(BU19,BU26:BU38,BU45:BU47,N9<>"")) -> TRUE
B52: BMP | P52: Feasibility | W52: Infeasibility Criteria
B54: Trees | BS54: Trees | BT54: =IF(BZ54,"Feasibility","NoEval") -> Feasibility | BU54: =IF(OR(P54="",BX54),FALSE,OR(NOT(BZ54),BV54)) -> FALSE | BV54: =P54="Infeasible" -> FALSE | BW54: =AND(BV54,NOT(W54="")) -> FALSE | BX54: =P54="Use BMP" -> FALSE | BY54: FALSE | BZ54: =INDEX(CB54:CG54,MATCH($BZ$2,$CB$2:$CG$2,0)) -> TRUE | CA54: =Dispersion -> FALSE | CB54: FALSE | CC54: FALSE | CD54: FALSE | CE54: TRUE | CF54: TRUE | CG54: TRUE

Sheet Parcel (hidden)
A1: On-site Stormwater Management Calculator - List Approach | BZ1: Column to Use | CB1: Evaluation Required
A2: Surface Identification and BMP Evaluation for Parcel-Based Projects | BS2: None Feasible | BX2: =AND(COUNTIFS(BT19:BT89,"Feasibility",BV19:BV89,TRUE)=COUNTIF(BT19:BT89,"Feasibility"),COUNTIF(BX19:BX89,TRUE)=0) -> FALSE | BZ2: =OFFSET(CA2,0,IF($N$9="Roof",0,3)+'Project Summary'!$AS$35) -> 4 | CB2: 1 | CC2: 2 | CD2: 3 | CE2: 4 | CF2: 5 | CG2: 6
B4: Project No. | N4: ='Project Summary'!$AG$6 -> 0 | CB4: Roof | CC4: Roof | CD4: Roof | CE4: Surface | CF4: Surface | CG4: Surface
B7: Hard Surface Number | BS7: BMP | BT7: Dropdown Lookup | BU7: Grey Out | BV7: Infeasible Selected | BW7: Infeasibility Criteria Selected | BX7: BMP Selected | BY7: Other BMP in Group Selected | BZ7: Evaluation Required | CA7: Dispersion/Infiltration Infeasible | CB7: Not designated receiving water | CC7: Public combined sewer or capacity constrained | CD7: Designated Receiving Water | CE7: Not designated receiving water | CF7: Public combined sewer or capacity constrained | CG7: Designated Receiving Water
B9: Hard Surface Type | T9: ´ | W9: =IF(COUNTIF(BX19:BX92,TRUE)>1,"More than one Use BMP selected, please select only one. ","") & IF(SUMPRODUCT($BV$19:$BV$93*NOT(BW19:BW93)*NOT(BY19:BY93)) > 0,SUMPRODUCT($BV$19:$BV$93*NOT(BW19:BW93)*NOT(BY19:BY93))&" BMP(s) require infeasibility criteria.","") -> 
B11: Hard Surface Description
B13: Surface Area (sf)
A15: Category 1 (Select 1 BMP from Category 1, order does not matter, or move to Category 2) | BS15: Category 1
B17: BMP | P17: Feasibility | W17: Infeasibility Criteria (see infeasibility criteria tab for full text)
B19: Full Dispersion | BS19: Full Dispersion | BT19: =IF(BZ19,IF(CA19,"Infeasible","Feasibility"),"NoEval") -> Feasibility | BU19: =IF(OR(BX19,P19=""),FALSE,OR(NOT(BZ19),BV19)) -> FALSE | BV19: =P19="Infeasible" -> FALSE | BW19: =AND(BV19,NOT(W19="")) -> FALSE | BX19: =P19="Use BMP" -> FALSE | BY19: =OR(BX22,BX25) -> FALSE | BZ19: =INDEX(CB19:CG19,MATCH($BZ$2,$CB$2:$CG$2,0)) -> TRUE | CA19: =Dispersion -> FALSE | CB19: TRUE | CC19: TRUE | CD19: TRUE | CE19: TRUE | CF19: TRUE | CG19: TRUE
B22: Infiltration Trench | BS22: Infiltration Trench | BT22: =IF(BZ22,IF(CA22,"Infeasible","Feasibility"),IF(N9="Roof","NoEval","NotRequired")) -> NotRequired | BU22: =IF(OR(BX22,P22=""),FALSE,OR(NOT(BZ22),BV22)) -> FALSE | BV22: =P22="Infeasible" -> FALSE | BW22: =AND(BV22,NOT(W22="")) -> FALSE | BX22: =P22="Use BMP" -> FALSE | BY22: =OR(BX19,BX25) -> FALSE | BZ22: =INDEX(CB22:CG22,MATCH($BZ$2,$CB$2:$CG$2,0)) -> FALSE | CA22: =AND(InfExploration,OR(InfiltrationInfeasible,MeasuredInfRate<5)) -> FALSE | CB22: TRUE | CC22: TRUE | CD22: TRUE | CE22: FALSE | CF22: FALSE | CG22: FALSE
C23: =IF(N9="","",IF(N9="Roof","","Evaluation is not required but allowed.")) -> 
B25: Dry Well | BS25: Dry Well | BT25: =IF(BZ25,IF(CA25,"Infeasible","Feasibility"),IF(N12="Roof","NoEval","NotRequired")) -> NotRequired | BU25: =IF(OR(BX25,P25=""),FALSE,OR(NOT(BZ25),BV25)) -> FALSE | BV25: =P25="Infeasible" -> FALSE | BW25: =AND(BV25,NOT(W25="")) -> FALSE | BX25: =P25="Use BMP" -> FALSE | BY25: =OR(BX19,BX22) -> FALSE | BZ25: =INDEX(CB25:CG25,MATCH($BZ$2,$CB$2:$CG$2,0)) -> FALSE | CA25: =AND(InfExploration,OR(InfiltrationInfeasible,MeasuredInfRate<5)) -> FALSE | CB25: TRUE | CC25: TRUE | CD25: TRUE | CE25: FALSE | CF25: FALSE | CG25: FALSE
C26: =IF(N9="","",IF(N9="Roof","","Evaluation is not required but allowed.")) -> 
A28: Category 2 | BS28: Category 2 | BU28: =NOT(AND(BU19:BU25,N9<>"")) -> TRUE
B30: BMP | P30: Feasibility | W30: Infeasibility Criteria
B32: Rain Garden | BS32: Rain Garden | BT32: =IF(BZ32,IF(CA32,"Infeasible","Feasibility"),"NoEval") -> Feasibility | BU32: =IF(OR(BX32,P32=""),FALSE,OR(NOT(BZ32),BV32)) -> FALSE | BV32: =P32="Infeasible" -> FALSE | BW32: =AND(BV32,NOT(W32="")) -> FALSE | BX32: =P32="Use BMP" -> FALSE | BY32: =OR(BX35,BX38,BX41,BX44,BX47) -> FALSE | BZ32: =INDEX(CB32:CG32,MATCH($BZ$2,$CB$2:$CG$2,0)) -> TRUE | CA32: =AND(InfExploration,OR(InfiltrationInfeasible,MeasuredInfRate<0.3)) -> FALSE | CB32: =AND(NOT('Project Summary'!$AS$47),NOT('Project Summary'!$AS$49),N13<5000) -> TRUE | CC32: =AND(NOT('Project Summary'!$AS$47),NOT('Project Summary'!$AS$49),N13<5000) -> TRUE | CD32: =AND(NOT('Project Summary'!$AS$47),NOT('Project Summary'!$AS$49),N13<5000) -> TRUE | CE32: =AND(NOT('Project Summary'!$AS$47),NOT('Project Summary'!$AS$49),N13<5000) -> TRUE | CF32: =AND(NOT('Project Summary'!$AS$47),NOT('Project Summary'!$AS$49),N13<5000) -> TRUE | CG32: =AND(NOT('Project Summary'!$AS$47),NOT('Project Summary'!$AS$49),N13<5000) -> TRUE
C33: =IF($N$9="","",IF(BZ32,"","Evaluation not allowed when project requires flow control or water quality treatment or >5000 SF hard surface is infiltrated onsite.")) -> 
B35: Infiltrating Bioretention | BS35: Infiltrating Bioretention | BT35: =IF(BZ35,IF(CA35,"Infeasible","Feasibility"),"NoEval") -> Feasibility | BU35: =IF(OR(BX35,P35=""),FALSE,OR(NOT(BZ35),BV35)) -> FALSE | BV35: =P35="Infeasible" -> FALSE | BW35: =AND(BV35,NOT(W35="")) -> FALSE | BX35: =P35="Use BMP" -> FALSE | BY35: =OR(BX32,BX38,BX41,BX44,BX47) -> FALSE | BZ35: =INDEX(CB35:CG35,MATCH($BZ$2,$CB$2:$CG$2,0)) -> TRUE | CA35: =AND(InfExploration,OR(InfiltrationInfeasible,MeasuredInfRate<0.3)) -> FALSE | CB35: TRUE | CC35: TRUE | CD35: TRUE | CE35: TRUE | CF35: TRUE | CG35: TRUE
B38: Rainwater Harvesting - Category 2 Sizing | BS38: Rainwater Harvesting - Category 2 | BT38: =IF(N9="Roof",IF(BZ38,"Feasibility","NotRequired"),"NoEval") -> NoEval | BU38: =IF(OR(BX38,P38=""),FALSE,OR(NOT(BZ38),BV38)) -> FALSE | BV38: =P38="Infeasible" -> FALSE | BW38: =AND(BV38,NOT(W38="")) -> FALSE | BX38: =P38="Use BMP" -> FALSE | BY38: =OR(BX32,BX35,BX41,BX44,BX47) -> FALSE | BZ38: =INDEX(CB38:CG38,MATCH($BZ$2,$CB$2:$CG$2,0)) -> FALSE | CB38: ='Project Summary'!$P$83>=10000 -> FALSE | CC38: ='Project Summary'!$P$83>=10000 -> FALSE | CD38: FALSE | CE38: FALSE | CF38: FALSE | CG38: FALSE
C39: =IF($N$9="","", IF(N9="Roof",IF(BZ2=3,"Evaluation not required but allowed.",""),"Evaluation not allowed for non-roof surfaces.")) -> 
B41: Permeable Pavement Facility | BS41: Permeable Pavement Facility | BT41: =IF($CA$41,"Infeasible","Feasibility") -> Feasibility | BU41: =IF(OR(BX41,P41=""),FALSE,OR(NOT(BZ41),BV41)) -> FALSE | BV41: =P41="Infeasible" -> FALSE | BW41: =AND(BV41,NOT(W41="")) -> FALSE | BX41: =P41="Use BMP" -> FALSE | BY41: =OR(BX32,BX35,BX38,BX44,BX47) -> FALSE | BZ41: =INDEX(CB41:CG41,MATCH($BZ$2,$CB$2:$CG$2,0)) -> TRUE | CA41: =AND(InfExploration,OR(InfiltrationInfeasible,MeasuredInfRate<0.3)) -> FALSE | CB41: TRUE | CC41: TRUE | CD41: TRUE | CE41: TRUE | CF41: TRUE | CG41: TRUE
C42: =IF(BX41,"Note: the surface area ("&N13&" sf) must represent the area contributing to the permeable pavement facility. Do not create a separate surface tab for the Permeable Pavement Facility, facility area will be entered on the BMP Sizing sheet.","") -> 
B44: Permeable Pavement Surface | BS44: Permeable Pavement Surface | BT44: =IF(NOT($BZ$44),"NoEval",IF($CA$44,"Infeasible","Feasibility")) -> Feasibility | BU44: =IF(OR(BX44,P44=""),FALSE,OR(NOT(BZ44),BV44)) -> FALSE | BV44: =P44="Infeasible" -> FALSE | BW44: =AND(BV44,NOT(W44="")) -> FALSE | BX44: =P44="Use BMP" -> FALSE | BY44: =OR(BX32,BX35,BX38,BX41,BX47) -> FALSE | BZ44: =INDEX(CB44:CG44,MATCH($BZ$2,$CB$2:$CG$2,0)) -> TRUE | CB44: FALSE | CC44: FALSE | CD44: FALSE | CE44: TRUE | CF44: TRUE | CG44: TRUE
C45: =IF(N9="","",IF(N9="Roof","Evaluation not allowed for roof surfaces.","")) -> 
B47: Sidewalk/Trail Compost-Amended Strip | BS47: Sidewalk/Trail Compost-Amended Strip | BT47: =IF(NOT($BZ$47),"NoEval","Feasibility") -> Feasibility | BU47: =IF(OR(BX47,P47=""),FALSE,OR(NOT(BZ47),BV47)) -> FALSE | BV47: =P47="Infeasible" -> FALSE | BW47: =AND(BV47,NOT(W47="")) -> FALSE | BX47: =P47="Use BMP" -> FALSE | BY47: =OR(BX32,BX35,BX38,BX41,BX44) -> FALSE | BZ47: =INDEX(CB47:CG47,MATCH($BZ$2,$CB$2:$CG$2,0)) -> TRUE | CA47: =AND(InfExploration,OR(InfiltrationInfeasible,InfRate<0.15), 'Project Summary'!$AA$64<>Lookup!$R$2) -> FALSE | CB47: FALSE | CC47: FALSE | CD47: FALSE | CE47: TRUE | CF47: TRUE | CG47: TRUE
C48: =IF(N9="","",IF(N9="Roof","Evaluation not allowed for roof surfaces.","")) -> 
A50: Category 3 | BS50: Category 3 | BU50: =NOT(AND(BU19:BU27,BU29:BU47,N9<>"")) -> TRUE
B52: BMP | P52: Feasibility | W52: Infeasibility Criteria
B54: Sheet Flow Dispersion | BS54: Sheet Flow Dispersion | BT54: =IF(BZ54,"Feasibility","Infeasible") -> Feasibility | BU54: =IF(OR(BX54,P54=""),FALSE,OR(NOT(BZ54),BV54)) -> FALSE | BV54: =P54="Infeasible" -> FALSE | BW54: =AND(BV54,NOT(W54="")) -> FALSE | BX54: =P54="Use BMP" -> FALSE | BY54: =OR(BX57,BX60,BX63) -> FALSE | BZ54: =AND(INDEX(CB54:CG54,MATCH($BZ$2,$CB$2:$CG$2,0)),NOT(CA54)) -> TRUE | CA54: =Dispersion -> FALSE | CB54: TRUE | CC54: TRUE | CD54: TRUE | CE54: TRUE | CF54: TRUE | CG54: TRUE
B57: Concentrated Flow Dispersion | BS57: Concentrated Flow Dispersion | BT57: =IF(BZ57,"Feasibility",IF(N9="Roof","NoEval","Infeasible")) -> Feasibility | BU57: =IF(OR(BX57,P57=""),FALSE,OR(NOT(BZ57),BV57)) -> FALSE | BV57: =P57="Infeasible" -> FALSE | BW57: =AND(BV57,NOT(W57="")) -> FALSE | BX57: =P57="Use BMP" -> FALSE | BY57: =OR(BX54,BX60,BX63) -> FALSE | BZ57: =AND(INDEX(CB57:CG57,MATCH($BZ$2,$CB$2:$CG$2,0)),NOT(CA57)) -> TRUE | CA57: =Dispersion -> FALSE | CB57: FALSE | CC57: FALSE | CD57: FALSE | CE57: TRUE | CF57: TRUE | CG57: TRUE
C58: =IF($N$9="Roof","Evaluation not allowed for roof surfaces.","") -> 
B60: Splashblock Downspout Dispersion | BS60: Splashblock Downspout Dispersion | BT60: =IF(BZ60,"Feasibility",IF(CA60,"Infeasible","NoEval")) -> NoEval | BU60: =IF(OR(BX60,P60=""),FALSE,OR(NOT(BZ60),BV60)) -> FALSE | BV60: =P60="Infeasible" -> FALSE | BW60: =AND(BV60,NOT(W60="")) -> FALSE | BX60: =P60="Use BMP" -> FALSE | BY60: =OR(BX54,BX57,BX63) -> FALSE | BZ60: =AND(INDEX(CB60:CG60,MATCH($BZ$2,$CB$2:$CG$2,0)),NOT(CA60)) -> FALSE | CA60: =Dispersion -> FALSE | CB60: TRUE | CC60: TRUE | CD60: TRUE | CE60: FALSE | CF60: FALSE | CG60: FALSE
C61: =IF($N$9="","",IF($N$9="Roof","","Evaluation not allowed for non-roof surfaces.")) -> 
B63: Trench Downspout Dispersion | BS63: Trench Downspout Dispersion | BT63: =IF(BZ63,"Feasibility",IF(CA63,"Infeasible","NoEval")) -> NoEval | BU63: =IF(OR(BX63,P63=""),FALSE,OR(NOT(BZ63),BV63)) -> FALSE | BV63: =P63="Infeasible" -> FALSE | BW63: =AND(BV63,NOT(W63="")) -> FALSE | BX63: =P63="Use BMP" -> FALSE | BY63: =OR(BX54,BX57,BX60) -> FALSE | BZ63: =AND(INDEX(CB63:CG63,MATCH($BZ$2,$CB$2:$CG$2,0)),NOT(CA63)) -> FALSE | CA63: =Dispersion -> FALSE | CB63: TRUE | CC63: TRUE | CD63: TRUE | CE63: FALSE | CF63: FALSE | CG63: FALSE
C64: =IF($N$9="","",IF($N$9="Roof","","Evaluation not allowed for non-roof surfaces.")) -> 
A66: Category 4 | BS66: Category 4 | BU66: =NOT(AND(BU18:BU26,BU31:BU48,BU54:BU63,N9<>"")) -> TRUE
B68: BMP | P68: Feasibility | W68: Infeasibility Criteria
B70: Non-Infiltrating Bioretention (NIB) | BS70: Non-Infiltrating Bioretention | BT70: =IF(BZ70,"Feasibility","Infeasible") -> Feasibility | BU70: =IF(OR(BX70,P70=""),FALSE,OR(NOT(BZ70),BV70)) -> FALSE | BV70: =P70="Infeasible" -> FALSE | BW70: =AND(BV70,NOT(W70="")) -> FALSE | BX70: =P70="Use BMP" -> FALSE | BY70: =OR(BX73,BX76,BX79) -> FALSE | BZ70: =INDEX(CB70:CG70,MATCH($BZ$2,$CB$2:$CG$2,0)) -> TRUE | CB70: TRUE | CC70: TRUE | CD70: TRUE | CE70: TRUE | CF70: TRUE | CG70: TRUE
BT72: "
B73: Water Quality BMP in lieu of NIB | BS73: Water Quality BMP in lieu of NIB | BT73: =IF('Project Summary'!$Q$35=Lookup!$I$5,"NoEval","UseorNotEvaluated") -> UseorNotEvaluated | BU73: =IF(OR(BX73,P73=""),FALSE,OR(NOT(BZ73),BV73)) -> FALSE | BV73: =P73="Infeasible" -> FALSE | BW73: =AND(BV73,NOT(W73="")) -> FALSE | BX73: =P73="Use BMP" -> FALSE | BY73: =OR(BX70,BX76,BX79) -> FALSE | BZ73: =INDEX(CB73:CG73,MATCH($BZ$2,$CB$2:$CG$2,0)) -> TRUE | CB73: =NOT('Project Summary'!$Q$35=Lookup!$I$5) -> TRUE | CC73: =NOT('Project Summary'!$Q$35=Lookup!$I$5) -> TRUE | CD73: =NOT('Project Summary'!$Q$35=Lookup!$I$5) -> TRUE | CE73: =NOT('Project Summary'!$Q$35=Lookup!$I$5) -> TRUE | CF73: =NOT('Project Summary'!$Q$35=Lookup!$I$5) -> TRUE | CG73: =NOT('Project Summary'!$Q$35=Lookup!$I$5) -> TRUE
C74: =IF(N9="","",IF('Project Summary'!Q35=Lookup!I5,"Evaluation not allowed in Combined Sewer Service Area.","Evaluation is allowed but not required.")) -> 
B76: Rainwater Harvesting - Category 4 Sizing | BS76: Rainwater Harvesting - Category 4 | BT76: =IF(BZ76,"NotRequired",IF(N9="Roof","NotRequired","NoEval")) -> NoEval | BU76: =IF(OR(BX76,P76=""),FALSE,OR(NOT(BZ76),BV76)) -> FALSE | BV76: =P76="Infeasible" -> FALSE | BW76: =AND(BV76,NOT(W76="")) -> FALSE | BX76: =P76="Use BMP" -> FALSE | BY76: =OR(BX70,BX73,BX79) -> FALSE | BZ76: =INDEX(CB76:CG76,MATCH($BZ$2,$CB$2:$CG$2,0)) -> FALSE | CB76: TRUE | CC76: TRUE | CD76: FALSE | CE76: FALSE | CF76: FALSE | CG76: FALSE
C77: =IF($N$9="","", IF(BZ2=3,"Evaluation not required but allowed.", IF(N9="Roof","Evaluation not required for less than 20,000 sf of new and replaced rooftop but allowed.","Evaluation not allowed for non-roof surfaces."))) -> 
B79: Vegetated Roof System | BS79: Vegetated Roof System | BT79: =IF(BZ79,IF(N9="Roof","NotRequired","NoEval"),"NotRequired") -> NotRequired | BU79: =IF(OR(BX79,P79=""),FALSE,OR(NOT(BZ79),BV79)) -> FALSE | BV79: =P79="Infeasible" -> FALSE | BW79: =AND(BV79,NOT(W79="")) -> FALSE | BX79: =P79="Use BMP" -> FALSE | BY79: =OR(BX70,BX73,BX76) -> FALSE | BZ79: =INDEX(CB79:CG79,MATCH($BZ$2,$CB$2:$CG$2,0)) -> FALSE | CB79: TRUE | CC79: TRUE | CD79: FALSE | CE79: FALSE | CF79: FALSE | CG79: FALSE
C80: =IF($N$9="","",IF(N9="Roof",IF(NOT(BZ79),"Evaluation not required but allowed.","Evaluation not required for less than 5,000 sf of new plus replaced rooftop surface."),"Evaluation not allowed for non-roof surfaces.")) -> 
A82: Category 5 | BS82: Category 5 | BU82: =NOT(AND(BU19:BU27,BU29:BU46,BU51:BU63,BU70:BU79,N9<>"")) -> TRUE
B84: BMP | P84: Feasibility | W84: Infeasibility Criteria
B86: Perforated Stub-out Connection | BS86: Perforated Stub-out Connection | BT86: =IF(N9="Roof",IF(CA86,"Infeasible","Feasibility"),"NoEval") -> NoEval | BU86: =IF(OR(BX86,P86=""),FALSE,OR(NOT(BZ86),BV86)) -> FALSE | BV86: =P86="Infeasible" -> FALSE | BW86: =AND(BV86,NOT(W86="")) -> FALSE | BX86: =P86="Use BMP" -> FALSE | BY86: =BX89 -> FALSE | BZ86: =INDEX(CB86:CG86,MATCH($BZ$2,$CB$2:$CG$2,0)) -> FALSE | CA86: =AND(InfExploration,OR(InfiltrationInfeasible,MeasuredInfRate<0.3)) -> FALSE | CB86: TRUE | CC86: TRUE | CD86: TRUE | CE86: FALSE | CF86: FALSE | CG86: FALSE
C87: =IF($N$9="","",IF(N9="Roof","","Evaluation not allowed for non-roof surfaces.")) -> 
B89: Trees | BS89: Trees | BT89: =IF(N9="Roof","NoEval","Feasibility") -> Feasibility | BU89: =IF(OR(BX89,P89=""),FALSE,OR(NOT(BZ89),BV89)) -> FALSE | BV89: =P89="Infeasible" -> FALSE | BW89: =AND(BV89,NOT(W89="")) -> FALSE | BX89: =P89="Use BMP" -> FALSE | BY89: =BX86 -> FALSE | BZ89: =INDEX(CB89:CG89,MATCH($BZ$2,$CB$2:$CG$2,0)) -> TRUE | CB89: FALSE | CC89: FALSE | CD89: FALSE | CE89: TRUE | CF89: TRUE | CG89: TRUE
C90: =IF(NOT(BZ89),"Evaluation not allowed for roof surfaces.","") -> 

Sheet Lookup (hidden)
A1: Project Type | B1: Surface Type | C1: BMP Feasibility | D1: Ponding Depths | E1: Side slopes | F1: YesNo | G1: Check | H1: No Eval | I1: Drainage Basin | J1: Basin + Capacity Constrained | K1: On-Site List Lookup Column | L1: Sheet Name | M1: Infeasible Infiltration | O1: Empty List | P1: Environmentally Critical Areas | Q1: Dispersion Infeasible | R1: Infiltration Investigation No | S1: Infiltration Investigation Yes | T1: Infiltration Infeasible | U1: ROW Surface List | V1: Approved Point of Stormwater Discharge | W1: Approved Point of Sub Discharge | X1: Approved Point of Wastewater Discharge | Y1: Does Not Apply
A2: Single-Family Residential | B2: Roof | C2: - | D2: 6 | E2: Vertical | F2: Yes | H2: Not Evaluated | I2: Listed Creek Basin | J2: Listed Creek BasinYes | K2: 1 | L2: SFR | M2: Infeasible | O2: ="" ->  | P2: No | Q2: Site cannot meet required horizontal setbacks | R2: Site is mapped as "infltr. investigation not required" | S2: Simple infiltration test | T2: Can’t meet setbacks from structures/property lines | U2: ROW | V2: Public Storm Drain Main | W2: Public Storm Drain Main | X2: Public Sanitary Sewer Main | Y2: Does Not Apply for Roadway or Trail and Sidewalk projects
A3: Trail and Sidewalk | B3: Non-Roof | C3: Infeasible | D3: 12 | E3: 3H:1V | F3: No | G3: ✓ | H3: Evaluation not required for roof. | I3: Non-listed Creek Basin | J3: Non-listed Creek BasinYes | K3: 1 | L3: Trail | M3: Infiltration is infeasible on site. | P3: Geologic Hazard/ Steep Slope Area | Q3: Site constraints make dispersion infeasible | R3: Other | S3: Small PIT test | T3: Can’t meet separation from groundwater/hard pan | U3: Alley | V3: Drainage Ditch | W3: Drainage Ditch | X3: Public Combined Sewer Main
A4: Parcel-Based | C4: Use BMP | H4: Evaluation not required for other surfaces. | I4: Designated Receiving Water | J4: Designated Receiving WaterYes | K4: 2 | L4: Parcel | M4: Dispersion is infeasible | P4: Flood-prone Area | Q4: Site cannot meet flow path requirements | S4: Large PIT test | T4: Can’t meet setbacks from environmental “Site Constraints” | U4: Arterial Street or Collector | V4: Drainage Culvert | W4: Drainage Culvert | X4: Existing Septic System (King County Public Health Department Approval Required)
A5: Roadway | C5: Not Evaluated | I5: Combined Sewer Service Area | J5: Combined Sewer Service AreaYes | K5: 2 | L5: Road | P5: Wetland | Q5: One or more of the infeasibility criteria for “All Dispersion BMPs” (Appendix C, Table C.1) apply. | S5: Deep infiltration test | T5: Measured infl rate is less than 0.3 inch/hour | U5: Roadway | V5: Curb Weep Hole | W5: Direct to Receiving Water
A6: Utility | C6: None Feasible | I6: Small Lake Basins | J6: Small Lake BasinsYes | K6: 1 | L6: x | P6: Fish and Wildlife Conservation Area | T6: Infeasibility criteria for “All Infiltration BMPs” applies | U6: Other | V6: Alley Surface Drain | W6: Wetland
A7: Pavement Maintenance | I7: Wetland | J7: WetlandYes | K7: 1 | L7: x | P7: Abandoned Landfill | T7: Site is mapped as "infltr. investigation not required" | V7: Direct to Receiving Water | W7: Public Combined Sewer Main
A8: Remediation | I8: N/A for Single Family Projects | J8: Listed Creek BasinNo | K8: 1 | L8: x | V8: Wetland | W8: On Site Infiltration
A9: Stormwater Retrofit | J9: Non-listed Creek BasinNo | K9: 1 | L9: x | V9: Public Combined Sewer Main
J10: Designated Receiving WaterNo | K10: 3 | V10: On Site Infiltration (No Off-site Point of Discharge)
J11: Combined Sewer Service AreaNo | K11: 2 | V11: Other
J12: Small Lake BasinsNo | K12: 1
J13: WetlandNo | K13: 1
J14: Listed Creek Basin | K14: 1
J15: Non-listed Creek Basin | K15: 1
J16: Designated Receiving Water | K16: 3
J17: Combined Sewer Service Area | K17: 2
J18: Small Lake Basins | K18: 1
J19: Wetland | K19: 1
A20: Full Dispersion | B20: Infiltration Trench | C20: Dry Well | D20: Rain Garden | E20: Infiltrating Bioretention | F20: Rainwater Harvesting | G20: Permeable Pavement Facility | H20: Permeable Pavement Surface | I20: Sheet Flow Dispersion | J20: Concentrated Dispersion | K20: Splashblock Downspout Dispersion | L20: Trench Downspout Dispersion | M20: Non-Infiltrating Bioretention | N20: Vegetated Roof | O20: Single-family Residential Cisterns | P20: Perforated Stub-out Connection | Q20: New or Retained Trees | R20: Sidewalk/Trail Compost-Amended Strip | S20: Water Quality BMP in lieu of NIB
A21: Full Dispersion | B21: Infiltration Trench #1 | C21: Dry Well #1 | D21: Rain Garden #1 | E21: Infiltrating Bioretention #1 | F21: Rainwater Harvesting - Category 2 | G21: Permeable Pavement Facility #1 | H21: Permeable Pavement Surface #1 | I21: Sheet Flow Dispersion | J21: Concentrated Flow Dispersion | K21: Splashblock Downspout Dispersion | L21: Trench Downspout Dispersion | M21: Non-Infiltrating Bioretention #1 | N21: Vegetated Roof System #1 | O21: Single-family Residential Cisterns #1 | P21: Perforated Stub-out Connection | Q21: Trees #1 | R21: Sidewalk/Trail Compost-Amended Strip | S21: Water Quality BMP in lieu of NIB #1
B22: Infiltration Trench #2 | C22: Dry Well #2 | D22: Rain Garden #2 | E22: Infiltrating Bioretention #2 | F22: Rainwater Harvesting - Category 4 | G22: Permeable Pavement Facility #2 | H22: Permeable Pavement Surface #2 | M22: Non-Infiltrating Bioretention #2 | N22: Vegetated Roof System #2 | O22: Single-family Residential Cisterns #2 | Q22: Trees #2 | S22: Water Quality BMP in lieu of NIB #2
B23: Infiltration Trench #3 | C23: Dry Well #3 | D23: Rain Garden #3 | E23: Infiltrating Bioretention #3 | G23: Permeable Pavement Facility #3 | H23: Permeable Pavement Surface #3 | M23: Non-Infiltrating Bioretention #3 | N23: Vegetated Roof System #3 | O23: Single-family Residential Cisterns #3 | Q23: Trees #3 | S23: Water Quality BMP in lieu of NIB #3
B24: Infiltration Trench #4 | C24: Dry Well #4 | D24: Rain Garden #4 | E24: Infiltrating Bioretention #4 | G24: Permeable Pavement Facility #4 | H24: Permeable Pavement Surface #4 | M24: Non-Infiltrating Bioretention #4 | N24: Vegetated Roof System #4 | O24: Single-family Residential Cisterns #4 | Q24: Trees #4 | S24: Water Quality BMP in lieu of NIB #4
B25: Infiltration Trench #5 | C25: Dry Well #5 | D25: Rain Garden #5 | E25: Infiltrating Bioretention #5 | G25: Permeable Pavement Facility #5 | H25: Permeable Pavement Surface #5 | M25: Non-Infiltrating Bioretention #5 | N25: Vegetated Roof System #5 | O25: Single-family Residential Cisterns #5 | Q25: Trees #5 | S25: Water Quality BMP in lieu of NIB #5
B26: Infiltration Trench #6 | C26: Dry Well #6 | D26: Rain Garden #6 | E26: Infiltrating Bioretention #6 | G26: Permeable Pavement Facility #6 | H26: Permeable Pavement Surface #6 | M26: Non-Infiltrating Bioretention #6 | N26: Vegetated Roof System #6 | O26: Single-family Residential Cisterns #6 | Q26: Trees #6 | S26: Water Quality BMP in lieu of NIB #6
B27: Infiltration Trench #7 | C27: Dry Well #7 | D27: Rain Garden #7 | E27: Infiltrating Bioretention #7 | G27: Permeable Pavement Facility #7 | H27: Permeable Pavement Surface #7 | M27: Non-Infiltrating Bioretention #7 | N27: Vegetated Roof System #7 | O27: Single-family Residential Cisterns #7 | Q27: Trees #7 | S27: Water Quality BMP in lieu of NIB #7
B28: Infiltration Trench #8 | C28: Dry Well #8 | D28: Rain Garden #8 | E28: Infiltrating Bioretention #8 | G28: Permeable Pavement Facility #8 | H28: Permeable Pavement Surface #8 | M28: Non-Infiltrating Bioretention #8 | N28: Vegetated Roof System #8 | O28: Single-family Residential Cisterns #8 | Q28: Trees #8 | S28: Water Quality BMP in lieu of NIB #8
B29: Infiltration Trench #9 | C29: Dry Well #9 | D29: Rain Garden #9 | E29: Infiltrating Bioretention #9 | G29: Permeable Pavement Facility #9 | H29: Permeable Pavement Surface #9 | M29: Non-Infiltrating Bioretention #9 | N29: Vegetated Roof System #9 | O29: Single-family Residential Cisterns #9 | Q29: Trees #9 | S29: Water Quality BMP in lieu of NIB #9
B30: Infiltration Trench #10 | C30: Dry Well #10 | D30: Rain Garden #10 | E30: Infiltrating Bioretention #10 | G30: Permeable Pavement Facility #10 | H30: Permeable Pavement Surface #10 | M30: Non-Infiltrating Bioretention #10 | N30: Vegetated Roof System #10 | O30: Single-family Residential Cisterns #10 | Q30: Trees #10 | S30: Water Quality BMP in lieu of NIB #10
B31: Infiltration Trench #11 | C31: Dry Well #11 | D31: Rain Garden #11 | E31: Infiltrating Bioretention #11 | G31: Permeable Pavement Facility #11 | H31: Permeable Pavement Surface #11 | M31: Non-Infiltrating Bioretention #11 | N31: Vegetated Roof System #11 | O31: Single-family Residential Cisterns #11 | Q31: Trees #11 | S31: Water Quality BMP in lieu of NIB #11
B32: Infiltration Trench #12 | C32: Dry Well #12 | D32: Rain Garden #12 | E32: Infiltrating Bioretention #12 | G32: Permeable Pavement Facility #12 | H32: Permeable Pavement Surface #12 | M32: Non-Infiltrating Bioretention #12 | N32: Vegetated Roof System #12 | O32: Single-family Residential Cisterns #12 | Q32: Trees #12 | S32: Water Quality BMP in lieu of NIB #12
B33: Infiltration Trench #13 | C33: Dry Well #13 | D33: Rain Garden #13 | E33: Infiltrating Bioretention #13 | G33: Permeable Pavement Facility #13 | H33: Permeable Pavement Surface #13 | M33: Non-Infiltrating Bioretention #13 | N33: Vegetated Roof System #13 | O33: Single-family Residential Cisterns #13 | Q33: Trees #13 | S33: Water Quality BMP in lieu of NIB #13
B34: Infiltration Trench #14 | C34: Dry Well #14 | D34: Rain Garden #14 | E34: Infiltrating Bioretention #14 | G34: Permeable Pavement Facility #14 | H34: Permeable Pavement Surface #14 | M34: Non-Infiltrating Bioretention #14 | N34: Vegetated Roof System #14 | O34: Single-family Residential Cisterns #14 | Q34: Trees #14 | S34: Water Quality BMP in lieu of NIB #14
B35: Infiltration Trench #15 | C35: Dry Well #15 | D35: Rain Garden #15 | E35: Infiltrating Bioretention #15 | G35: Permeable Pavement Facility #15 | H35: Permeable Pavement Surface #15 | M35: Non-Infiltrating Bioretention #15 | N35: Vegetated Roof System #15 | O35: Single-family Residential Cisterns #15 | Q35: Trees #15 | S35: Water Quality BMP in lieu of NIB #15
B36: Infiltration Trench #16 | C36: Dry Well #16 | D36: Rain Garden #16 | E36: Infiltrating Bioretention #16 | G36: Permeable Pavement Facility #16 | H36: Permeable Pavement Surface #16 | M36: Non-Infiltrating Bioretention #16 | N36: Vegetated Roof System #16 | O36: Single-family Residential Cisterns #16 | Q36: Trees #16 | S36: Water Quality BMP in lieu of NIB #16
B37: Infiltration Trench #17 | C37: Dry Well #17 | D37: Rain Garden #17 | E37: Infiltrating Bioretention #17 | G37: Permeable Pavement Facility #17 | H37: Permeable Pavement Surface #17 | M37: Non-Infiltrating Bioretention #17 | N37: Vegetated Roof System #17 | O37: Single-family Residential Cisterns #17 | Q37: Trees #17 | S37: Water Quality BMP in lieu of NIB #17
B38: Infiltration Trench #18 | C38: Dry Well #18 | D38: Rain Garden #18 | E38: Infiltrating Bioretention #18 | G38: Permeable Pavement Facility #18 | H38: Permeable Pavement Surface #18 | M38: Non-Infiltrating Bioretention #18 | N38: Vegetated Roof System #18 | O38: Single-family Residential Cisterns #18 | Q38: Trees #18 | S38: Water Quality BMP in lieu of NIB #18
B39: Infiltration Trench #19 | C39: Dry Well #19 | D39: Rain Garden #19 | E39: Infiltrating Bioretention #19 | G39: Permeable Pavement Facility #19 | H39: Permeable Pavement Surface #19 | M39: Non-Infiltrating Bioretention #19 | N39: Vegetated Roof System #19 | O39: Single-family Residential Cisterns #19 | Q39: Trees #19 | S39: Water Quality BMP in lieu of NIB #19
B40: Infiltration Trench #20 | C40: Dry Well #20 | D40: Rain Garden #20 | E40: Infiltrating Bioretention #20 | G40: Permeable Pavement Facility #20 | H40: Permeable Pavement Surface #20 | M40: Non-Infiltrating Bioretention #20 | N40: Vegetated Roof System #20 | O40: Single-family Residential Cisterns #20 | Q40: Trees #20 | S40: Water Quality BMP in lieu of NIB #20
B42: List 1 | C42: List 1 | D42: List 1 | E42: List 1 | G42: List 1 | M42: List 1 | N42: List 1 | Q42: List 1 | R42: List 1
B43: 18 | C43: 4 | D43: 2 | E43: 2 | G43: 6 | M43: 2 | N43: Single-Course | Q43: New Deciduous | R43: < 10
B44: 36 | D44: 6 | E44: 6 | G44: 12 | M44: 6 | N44: Multi-Course | Q44: New Evergreen | R44: ≥ 10
E45: 12 | M45: 12 | Q45: Retain Deciduous
D46: List 2 | E46: List 2 | G46: List 2 | M46: List 2 | N46: List 2 | Q46: Retain Evergreen
D47: Sloped sides | E47: Sloped sides | G47: 0% | M47: Sloped sides | N47: 4
D48: Vertical sides | E48: Vertical sides | G48: 5% | M48: Vertical sides | N48: 8 | Q48: List 2
G49: 10% | Q49: 1
E50: List 3 | G50: 15% | N50: List 3 | Q50: 2
E51: Underdrain | G51: 20% | Q51: 3
E52: No Underdrain | G52: 25% | Q52: 4
G53: 30% | Q53: 5
G54: 35% | Q54: 6
G55: 40% | Q55: 7
G56: 45% | Q56: 8
G57: 50% | Q57: 9
G58: 55% | Q58: 10
G59: 60% | Q59: 11
G60: 65% | Q60: 12
G61: 70% | Q61: 13
G62: 75% | Q62: 14
G63: 80% | Q63: 15
G64: 85% | Q64: 16
G65: 90% | Q65: 17
G66: 95% | Q66: 18
G67: 100% | Q67: 19
Q68: 20
A69: BMPs | B69: List More than One BMP option | C69: Sizing Input 1 | D69: Sizing Input 2 | E69: Sizing Input 3 | F69: Units 1 | G69: Units 2 | H69: Infiltrating BMP | Q69: 21
A70: Full Dispersion | B70: FALSE | C70: =NA() ->  | D70: =NA() ->  | E70: =NA() ->  | F70: =NA() ->  | G70: =NA() ->  | H70: FALSE | Q70: 22
A71: Infiltration Trench | B71: TRUE | C71: =NA() ->  | D71: =NA() ->  | E71: =NA() ->  | F71: =NA() ->  | G71: =NA() ->  | H71: TRUE | Q71: 23
A72: Dry Well | B72: TRUE | C72: Aggregate Depth (ft) | D72: =NA() ->  | E72: =NA() ->  | F72: ft | G72: =NA() ->  | H72: TRUE | Q72: 24
A73: Rain Garden | B73: TRUE | C73: Ponding Depth (inch) | D73: Sideslopes | E73: =NA() ->  | F73: inch | G73: =NA() ->  | H73: TRUE | Q73: 25
A74: Infiltrating Bioretention | B74: TRUE | C74: Ponding Depth (inch) | D74: Sideslopes | E74: Underdrain | F74: inch | G74: =NA() ->  | H74: TRUE | Q74: 26
A75: Rainwater Harvesting - Category 2 | B75: FALSE | C75: =NA() ->  | D75: =NA() ->  | E75: =NA() ->  | F75: gal | G75: =NA() ->  | H75: FALSE | Q75: 27
A76: Rainwater Harvesting - Category 4 | B76: FALSE | C76: =NA() ->  | D76: =NA() ->  | E76: =NA() ->  | F76: =NA() ->  | G76: =NA() ->  | H76: FALSE | Q76: 28
A77: Permeable Pavement Facility | B77: TRUE | C77: Avg. Storage Depth (inch) | D77: % Pollution Generating | E77: =NA() ->  | F77: inch | G77: PGHS | H77: TRUE | Q77: 29
A78: Permeable Pavement Surface | B78: TRUE | C78: =NA() ->  | D78: =NA() ->  | E78: =NA() ->  | F78: =NA() ->  | G78: =NA() ->  | H78: FALSE | Q78: 30
A79: Sheet Flow Dispersion | B79: FALSE | C79: =NA() ->  | D79: =NA() ->  | E79: =NA() ->  | F79: =NA() ->  | G79: =NA() ->  | H79: FALSE | Q79: 31
A80: Concentrated Flow Dispersion | B80: FALSE | C80: =NA() ->  | D80: =NA() ->  | E80: =NA() ->  | F80: =NA() ->  | G80: =NA() ->  | H80: FALSE | Q80: 32
A81: Splashblock Downspout Dispersion | B81: FALSE | C81: =NA() ->  | D81: =NA() ->  | E81: =NA() ->  | F81: =NA() ->  | G81: =NA() ->  | H81: FALSE | Q81: 33
A82: Trench Downspout Dispersion | B82: FALSE | C82: =NA() ->  | D82: =NA() ->  | E82: =NA() ->  | F82: =NA() ->  | G82: =NA() ->  | H82: FALSE | Q82: 34
A83: Non-Infiltrating Bioretention | B83: TRUE | C83: Ponding Depth (inch) | D83: Sideslopes | E83: =NA() ->  | F83: inch | G83: =NA() ->  | H83: FALSE | Q83: 35
A84: Vegetated Roof System | B84: TRUE | C84: Course | D84: Media Depth (inch) | E84: =NA() ->  | F84: =NA() ->  | G84: inch | H84: FALSE | Q84: 36
A85: Perforated Stub-out Connection | B85: FALSE | C85: =NA() ->  | D85: =NA() ->  | E85: =NA() ->  | F85: =NA() ->  | G85: =NA() ->  | H85: TRUE | Q85: 37
A86: Single-family Residential Cisterns | B86: TRUE | C86: =NA() ->  | D86: =NA() ->  | E86: =NA() ->  | F86: =NA() ->  | G86: =NA() ->  | H86: FALSE | Q86: 38
A87: Trees | B87: TRUE | C87: Type | D87: Number | E87: =NA() ->  | F87: =NA() ->  | G87: =NA() ->  | H87: FALSE | Q87: 39
A88: Sidewalk/Trail Compost-Amended Strip | B88: FALSE | D88: =NA() ->  | E88: =NA() ->  | F88: ft | G88: =NA() ->  | H88: TRUE | Q88: 40
A89: None Feasible | B89: FALSE | H89: FALSE | Q89: 41
A90: Water Quality BMP in lieu of NIB | B90: TRUE | H90: TRUE | Q90: 42
Q91: 43
A92: BMP | B92: List 1 | C92: List 2 | D92: List 3 | E92: Combined Lookup | F92: Sizing Factor | G92: Volume Managed CF/SF | H92: Facility Units | I92: Notes | Q92: 44
A93: Full Dispersion | E93: =TRIM(CONCATENATE(A93,B93,C93,D93)) -> Full Dispersion | F93: =NA() ->  | G93: =2.1*0.768 -> 1.6128 | Q93: 45
A94: Sidewalk/Trail Compost-Amended Strip | B94: ≥ 10 | E94: =A94 -> Sidewalk/Trail Compost-Amended Strip | F94: =IF(InfRate<0.15,0,IF(InfRate<0.3,0.42, IF(InfRate<0.06,0.29,0.21))) -> 0 | G94: =2.1*0.828 -> 1.7388 | H94: sf
A95: Sidewalk/Trail Compost-Amended Strip | B95: < 10 | E95: =A95 -> Sidewalk/Trail Compost-Amended Strip | F95: =IF(InfRate<0.15,0,IF(InfRate<0.3,0.33,IF(InfRate<0.06,0.21,0.13))) -> 0 | G95: =2.1*0.828 -> 1.7388 | H95: sf
A96: Infiltration Trench | E96: =TRIM(CONCATENATE(A96,B96,C96,D96)) -> Infiltration Trench | F96: =IF(InfRate<1,0,IF(InfRate<2.5,0.15,IF(InfRate<5,0.105,IF(InfRate<7.5,0.057,IF(InfRate<10,0.048,0.04))))) -> 0 | G96: =IF(F96=0,NA(),2.3*0.8108811) ->  | H96: sf | I96: Volume Managed modeling done specifically for tool. See Volume Managed.xlsx. 1.5' Trench, 0.25 in/hr.
A97: Dry Well | B97: 4 | E97: Dry Well4 | F97: =IF(InfRate<2.5,0,IF(InfRate<5,0.024,IF(InfRate<7.5,0.024,IF(InfRate<10,0.023,0.021)))) -> 0 | G97: =IF(F97=0,NA(),2.1*0.8149233) ->  | H97: sf | I97: Modeling done specifically for tool. See Volume Managed.xlsx. 4' Drywell, 0.25 in/hr.
A98: Rain Garden | B98: 2 | C98: Sloped sides | E98: Rain Garden2Sloped sides | F98: =IF(InfRate<0.15,0,IF(InfRate<0.3,0.061, 0.045)) -> 0 | G98: =IF(F98=0,NA(),2.1*0.864) ->  | H98: sf | I98: To develop sizing that meets Ecology’s requirements, we first developed sizing factors that provide a 5% wetted surface area (Table 1 below) and sizing factors that meet the LID Performance Standard for a forest condition (Table 2 below). We then selected the larger of the two sizing factors for each ponding depth/infitlration rate scenario (highlighted in red in the tables below) and used them for the On-site List Sizing (provided in the table above). [[refer to O:\proj\Y2019\19-07117-001\Modeling\ and 20-1116_OnSiteList_Sizing.xlsx and On-site List Sizing for Bioretention (Stormwater Manual Volume 3 ̶ Table 5.21)]]
A99: Rain Garden | B99: 6 | C99: Sloped sides | E99: Rain Garden6Sloped sides | F99: =IF(OR(ProjectTypeCell="Roadway",ProjectTypeCell="Trail and Sidewalk"),-999,IF(InfRate<0.3,0,0.035)) -> 0 | G99: =IF(OR(F99=0, F99=-999),NA(),2.1*0.864) ->  | H99: sf | I99: Green cells updated 2020
A100: Rain Garden | B100: 2 | C100: Vertical sides | E100: Rain Garden2Vertical sides | F100: -999 | G100: =NA() ->  | H100: sf
A101: Rain Garden | B101: 6 | C101: Vertical sides | E101: Rain Garden6Vertical sides | F101: =IF(OR(ProjectTypeCell="Roadway",ProjectTypeCell="Trail and Sidewalk"),-999,IF(InfRate<0.3,0,0.05)) -> 0 | G101: =IF(OR(F101=0,F101=-999),NA(),2.1*0.844) ->  | H101: sf | I101: Rain garden ponding over 3" not allowed for Road or Trail projects
A102: Infiltrating Bioretention | B102: 2 | C102: Sloped sides | D102: No Underdrain | E102: Infiltrating Bioretention2Sloped sidesNo Underdrain | F102: =IF(InfRate<0.3,0,0.045) -> 0 | G102: =IF(F102=0,NA(),2.1*0.864) ->  | H102: sf
A103: Infiltrating Bioretention | B103: 6 | C103: Sloped sides | D103: No Underdrain | E103: Infiltrating Bioretention6Sloped sidesNo Underdrain | F103: =IF(InfRate<0.3,0,0.035) -> 0 | G103: =IF(F103=0,NA(),2.1*0.864) ->  | H103: sf
A104: Infiltrating Bioretention | B104: 12 | C104: Sloped sides | D104: No Underdrain | E104: Infiltrating Bioretention12Sloped sidesNo Underdrain | F104: =IF(InfRate<0.6,0,0.023) -> 0 | G104: =IF(F104=0,NA(),2.1*0.864) ->  | H104: sf
A105: Infiltrating Bioretention | B105: 2 | C105: Vertical sides | D105: No Underdrain | E105: Infiltrating Bioretention2Vertical sidesNo Underdrain | F105: -999 | G105: =NA() ->  | H105: sf
A106: Infiltrating Bioretention | B106: 6 | C106: Vertical sides | D106: No Underdrain | E106: Infiltrating Bioretention6Vertical sidesNo Underdrain | F106: =IF(InfRate<0.3,0,0.05) -> 0 | G106: =IF(OR(F106=0,F106=-999),NA(),2.1*0.844) ->  | H106: sf
A107: Infiltrating Bioretention | B107: 12 | C107: Vertical sides | D107: No Underdrain | E107: Infiltrating Bioretention12Vertical sidesNo Underdrain | F107: =IF(InfRate<0.6,0,0.05) -> 0 | G107: =IF(F107=0,NA(),2.1*0.844) ->  | H107: sf
A108: Infiltrating Bioretention | B108: 2 | C108: Sloped sides | D108: Underdrain | E108: Infiltrating Bioretention2Sloped sidesUnderdrain | F108: =IF(InfRate<0.15,0,IF(InfRate<0.3,0.068,0.05)) -> 0 | G108: =IF(F108=0,NA(),2.1*0.864) ->  | H108: sf
A109: Infiltrating Bioretention | B109: 6 | C109: Sloped sides | D109: Underdrain | E109: Infiltrating Bioretention6Sloped sidesUnderdrain | F109: =IF(InfRate<0.15,0,IF(InfRate<0.3,0.047,0.039)) -> 0 | G109: =IF(F109=0,NA(),2.1*0.864) ->  | H109: sf
A110: Infiltrating Bioretention | B110: 12 | C110: Sloped sides | D110: Underdrain | E110: Infiltrating Bioretention12Sloped sidesUnderdrain | F110: =IF(InfRate<0.15,0,IF(InfRate<0.3,0.028,0.026)) -> 0 | G110: =IF(F110=0,NA(),2.1*0.864) ->  | H110: sf
A111: Infiltrating Bioretention | B111: 2 | C111: Vertical sides | D111: Underdrain | E111: Infiltrating Bioretention2Vertical sidesUnderdrain | F111: -999 | G111: =NA() ->  | H111: sf
A112: Infiltrating Bioretention | B112: 6 | C112: Vertical sides | D112: Underdrain | E112: Infiltrating Bioretention6Vertical sidesUnderdrain | F112: =IF(InfRate<0.15,0,IF(InfRate<0.3,0.072,0.056)) -> 0 | G112: =IF(OR(F112=0,F112=-999),NA(),2.1*0.844) ->  | H112: sf
A113: Infiltrating Bioretention | B113: 12 | C113: Vertical sides | D113: Underdrain | E113: Infiltrating Bioretention12Vertical sidesUnderdrain | F113: =IF(InfRate<0.15,0,IF(InfRate<0.3,0.057,0.056)) -> 0 | G113: =IF(F113=0,NA(),2.1*0.844) ->  | H113: sf
A114: Rainwater Harvesting - Category 2 | E114: Rainwater Harvesting - Category 2 | F114: 1 | G114: =NA() ->  | H114: gal
A115: Rainwater Harvesting - Category 4 | E115: =TRIM(CONCATENATE(A115,B115,C115,D115)) -> Rainwater Harvesting - Category 4 | F115: 1 | G115: =NA() ->  | H115: gal
A116: Permeable Pavement Facility | B116: 6 | C116: 0% | E116: Permeable Pavement Facility60% | F116: =0.3*C116+0.2 -> 0.2 | G116: =2.1 -> 2.1 | H116: sf | I116: Area weighted sizing factor. 50% for PGHS, 20% for Non-PGHS
A117: Permeable Pavement Facility | B117: 6 | C117: 5% | E117: Permeable Pavement Facility65% | F117: =0.3*C117+0.2 -> 0.215 | G117: =2.1 -> 2.1 | H117: sf
A118: Permeable Pavement Facility | B118: 6 | C118: 10% | E118: Permeable Pavement Facility610% | F118: 0.23 | G118: =2.1 -> 2.1 | H118: sf
A119: Permeable Pavement Facility | B119: 6 | C119: 15% | E119: Permeable Pavement Facility615% | F119: 0.245 | G119: 2.1 | H119: sf
A120: Permeable Pavement Facility | B120: 6 | C120: 20% | E120: Permeable Pavement Facility620% | F120: 0.26 | G120: 2.1 | H120: sf
A121: Permeable Pavement Facility | B121: 6 | C121: 25% | E121: Permeable Pavement Facility625% | F121: 0.275 | G121: 2.1 | H121: sf
A122: Permeable Pavement Facility | B122: 6 | C122: 30% | E122: Permeable Pavement Facility630% | F122: 0.29 | G122: 2.1 | H122: sf
A123: Permeable Pavement Facility | B123: 6 | C123: 35% | E123: Permeable Pavement Facility635% | F123: 0.305 | G123: 2.1 | H123: sf
A124: Permeable Pavement Facility | B124: 6 | C124: 40% | E124: Permeable Pavement Facility640% | F124: 0.32 | G124: 2.1 | H124: sf
A125: Permeable Pavement Facility | B125: 6 | C125: 45% | E125: Permeable Pavement Facility645% | F125: 0.335 | G125: 2.1 | H125: sf
A126: Permeable Pavement Facility | B126: 6 | C126: 50% | E126: Permeable Pavement Facility650% | F126: 0.35 | G126: 2.1 | H126: sf
A127: Permeable Pavement Facility | B127: 6 | C127: 55% | E127: Permeable Pavement Facility655% | F127: 0.365 | G127: 2.1 | H127: sf
A128: Permeable Pavement Facility | B128: 6 | C128: 60% | E128: Permeable Pavement Facility660% | F128: 0.38 | G128: 2.1 | H128: sf
A129: Permeable Pavement Facility | B129: 6 | C129: 65% | E129: Permeable Pavement Facility665% | F129: 0.395 | G129: 2.1 | H129: sf
A130: Permeable Pavement Facility | B130: 6 | C130: 70% | E130: Permeable Pavement Facility670% | F130: 0.41 | G130: 2.1 | H130: sf
A131: Permeable Pavement Facility | B131: 6 | C131: 75% | E131: Permeable Pavement Facility675% | F131: 0.425 | G131: 2.1 | H131: sf
A132: Permeable Pavement Facility | B132: 6 | C132: 80% | E132: Permeable Pavement Facility680% | F132: 0.44 | G132: 2.1 | H132: sf
A133: Permeable Pavement Facility | B133: 6 | C133: 85% | E133: Permeable Pavement Facility685% | F133: 0.455 | G133: 2.1 | H133: sf
A134: Permeable Pavement Facility | B134: 6 | C134: 90% | E134: Permeable Pavement Facility690% | F134: 0.47 | G134: 2.1 | H134: sf
A135: Permeable Pavement Facility | B135: 6 | C135: 95% | E135: Permeable Pavement Facility695% | F135: 0.485 | G135: 2.1 | H135: sf
A136: Permeable Pavement Facility | B136: 6 | C136: 100% | E136: Permeable Pavement Facility6100% | F136: 0.5 | G136: 2.1 | H136: sf
A137: Permeable Pavement Facility | B137: 12 | C137: 0% | E137: Permeable Pavement Facility120% | F137: =0.3*C137+0.2 -> 0.2 | G137: =2.1 -> 2.1 | H137: sf
A138: Permeable Pavement Facility | B138: 12 | C138: 5% | E138: Permeable Pavement Facility125% | F138: =0.3*C138+0.2 -> 0.215 | G138: =2.1 -> 2.1 | H138: sf
A139: Permeable Pavement Facility | B139: 12 | C139: 10% | E139: Permeable Pavement Facility1210% | F139: 0.23 | G139: =2.1 -> 2.1 | H139: sf
A140: Permeable Pavement Facility | B140: 12 | C140: 15% | E140: Permeable Pavement Facility1215% | F140: 0.245 | G140: 2.1 | H140: sf
A141: Permeable Pavement Facility | B141: 12 | C141: 20% | E141: Permeable Pavement Facility1220% | F141: 0.26 | G141: 2.1 | H141: sf
A142: Permeable Pavement Facility | B142: 12 | C142: 25% | E142: Permeable Pavement Facility1225% | F142: 0.275 | G142: 2.1 | H142: sf
A143: Permeable Pavement Facility | B143: 12 | C143: 30% | E143: Permeable Pavement Facility1230% | F143: 0.29 | G143: 2.1 | H143: sf
A144: Permeable Pavement Facility | B144: 12 | C144: 35% | E144: Permeable Pavement Facility1235% | F144: 0.305 | G144: 2.1 | H144: sf
A145: Permeable Pavement Facility | B145: 12 | C145: 40% | E145: Permeable Pavement Facility1240% | F145: 0.32 | G145: 2.1 | H145: sf
A146: Permeable Pavement Facility | B146: 12 | C146: 45% | E146: Permeable Pavement Facility1245% | F146: 0.335 | G146: 2.1 | H146: sf
A147: Permeable Pavement Facility | B147: 12 | C147: 50% | E147: Permeable Pavement Facility1250% | F147: 0.35 | G147: 2.1 | H147: sf
A148: Permeable Pavement Facility | B148: 12 | C148: 55% | E148: Permeable Pavement Facility1255% | F148: 0.365 | G148: 2.1 | H148: sf
A149: Permeable Pavement Facility | B149: 12 | C149: 60% | E149: Permeable Pavement Facility1260% | F149: 0.38 | G149: 2.1 | H149: sf
A150: Permeable Pavement Facility | B150: 12 | C150: 65% | E150: Permeable Pavement Facility1265% | F150: 0.395 | G150: 2.1 | H150: sf
A151: Permeable Pavement Facility | B151: 12 | C151: 70% | E151: Permeable Pavement Facility1270% | F151: 0.41 | G151: 2.1 | H151: sf
A152: Permeable Pavement Facility | B152: 12 | C152: 75% | E152: Permeable Pavement Facility1275% | F152: 0.425 | G152: 2.1 | H152: sf
A153: Permeable Pavement Facility | B153: 12 | C153: 80% | E153: Permeable Pavement Facility1280% | F153: 0.44 | G153: 2.1 | H153: sf
A154: Permeable Pavement Facility | B154: 12 | C154: 85% | E154: Permeable Pavement Facility1285% | F154: 0.455 | G154: 2.1 | H154: sf
A155: Permeable Pavement Facility | B155: 12 | C155: 90% | E155: Permeable Pavement Facility1290% | F155: 0.47 | G155: 2.1 | H155: sf
A156: Permeable Pavement Facility | B156: 12 | C156: 95% | E156: Permeable Pavement Facility1295% | F156: 0.485 | G156: 2.1 | H156: sf
A157: Permeable Pavement Facility | B157: 12 | C157: 100% | E157: Permeable Pavement Facility12100% | F157: 0.5 | G157: 2.1 | H157: sf
A158: Permeable Pavement Surface | E158: Permeable Pavement Surface | F158: 1 | G158: =2.1*(1+0.85)/2 -> 1.9425 | H158: sf
A159: Sheet Flow Dispersion | E159: Sheet Flow Dispersion | F159: =NA() ->  | G159: =2.1*0.768 -> 1.6128
A160: Concentrated Dispersion | E160: Concentrated Dispersion | F160: =NA() ->  | G160: =2.1*0.768 -> 1.6128
A161: Splashblock Downspout Dispersion | E161: =TRIM(CONCATENATE(A161,B161,C161,D161)) -> Splashblock Downspout Dispersion | F161: =NA() ->  | G161: =2.1*0.768 -> 1.6128
A162: Trench Downspout Dispersion | E162: Trench Downspout Dispersion | F162: =NA() ->  | G162: =2.1*0.768 -> 1.6128
A163: Non-Infiltrating Bioretention | B163: 2 | C163: Sloped sides | E163: Non-Infiltrating Bioretention2Sloped sides | F163: =NA() ->  | G163: =0.46*2.1 -> 0.966 | H163: sf | I163: DMA dependent, handled on BMP Sizing tab
A164: Non-Infiltrating Bioretention | B164: 6 | C164: Sloped sides | E164: =TRIM(CONCATENATE(A164,B164,C164,D164)) -> Non-Infiltrating Bioretention6Sloped sides | F164: =NA() ->  | G164: =0.46*2.1 -> 0.966 | H164: sf | I164: DMA dependent, handled on BMP Sizing tab
A165: Non-Infiltrating Bioretention | B165: 12 | C165: Sloped sides | E165: =TRIM(CONCATENATE(A165,B165,C165,D165)) -> Non-Infiltrating Bioretention12Sloped sides | F165: =NA() ->  | G165: 0.966 | H165: sf | I165: DMA dependent, handled on BMP Sizing tab
A166: Non-Infiltrating Bioretention | B166: 2 | C166: Vertical sides | E166: Non-Infiltrating Bioretention2Vertical sides | F166: -999 | G166: =NA() ->  | H166: sf
A167: Non-Infiltrating Bioretention | B167: 6 | C167: Vertical sides | E167: Non-Infiltrating Bioretention6Vertical sides | F167: 0.012 | G167: 0.966 | H167: sf
A168: Non-Infiltrating Bioretention | B168: 12 | C168: Vertical sides | E168: Non-Infiltrating Bioretention12Vertical sides | F168: 0.01 | G168: 0.966 | H168: sf
A169: Vegetated Roof System | B169: Single-Course | C169: 4 | E169: Vegetated Roof SystemSingle-Course4 | F169: 0.8 | G169: =2.1*0.458 -> 0.9618 | H169: sf
A170: Vegetated Roof System | B170: Multi-Course | C170: 4 | E170: Vegetated Roof SystemMulti-Course4 | F170: 0.8 | G170: =2.1*0.458 -> 0.9618 | H170: sf
A171: Vegetated Roof System | B171: Single-Course | C171: 8 | E171: Vegetated Roof SystemSingle-Course8 | F171: 0.8 | G171: =2.1*0.458 -> 0.9618 | H171: sf
A172: Vegetated Roof System | B172: Multi-Course | C172: 8 | E172: Vegetated Roof SystemMulti-Course8 | F172: 0.8 | G172: =2.1*0.458 -> 0.9618 | H172: sf
A173: Perforated Stub-out Connection | E173: Perforated Stub-out Connection | F173: =NA() ->  | G173: =2.1*IF(InfRate<0.05,0.07,IF(InfRate<0.15,0.13,0.18)) -> 0.147 | I173: From meghan modeling for perf stub outs 09/28/2015
A174: Single-family Residential Cisterns | B174: 0 | E174: Single-family Residential Cisterns0 | F174: 0 | G174: 0 | H174: sf
A175: Single-family Residential Cisterns | B175: 400 | E175: Single-family Residential Cisterns400 | F175: 0.036 | G175: =2.1*0.95 -> 1.995 | H175: min. 3 ft depth | I175: =RIGHT(H175,15) -> min. 3 ft depth
A176: Single-family Residential Cisterns | B176: 500 | E176: Single-family Residential Cisterns500 | F176: 0.036 | G176: 1.995 | H176: min. 3 ft depth
A177: Single-family Residential Cisterns | B177: 600 | E177: Single-family Residential Cisterns600 | F177: 0.036 | G177: 1.995 | H177: min. 3 ft depth
A178: Single-family Residential Cisterns | B178: 700 | E178: Single-family Residential Cisterns700 | F178: 0.036 | G178: 1.995 | H178: min. 3 ft depth
A179: Single-family Residential Cisterns | B179: 800 | E179: Single-family Residential Cisterns800 | F179: 0.028 | G179: 1.995 | H179: min. 4 ft depth
A180: Single-family Residential Cisterns | B180: 900 | E180: Single-family Residential Cisterns900 | F180: 0.024 | G180: 1.995 | H180: min. 4 ft depth
A181: Single-family Residential Cisterns | B181: 1000 | E181: Single-family Residential Cisterns1000 | F181: 0.02 | G181: 1.995 | H181: min. 4 ft depth
A182: Single-family Residential Cisterns | B182: 1100 | E182: Single-family Residential Cisterns1100 | F182: 0.017 | G182: 1.995 | H182: in.. 4 ft depth
A183: Single-family Residential Cisterns | B183: 1200 | E183: Single-family Residential Cisterns1200 | F183: 0.014 | G183: 1.995 | H183: min. 4 ft depth
A184: Single-family Residential Cisterns | B184: 1300 | E184: Single-family Residential Cisterns1300 | F184: 0.014 | G184: 1.995 | H184: min. 5 ft depth
A185: Single-family Residential Cisterns | B185: 1400 | E185: Single-family Residential Cisterns1400 | F185: 0.013 | G185: 1.995 | H185: min. 5 ft depth
A186: Single-family Residential Cisterns | B186: 1500 | E186: Single-family Residential Cisterns1500 | F186: 0.013 | G186: 1.995 | H186: min. 5 ft depth
A187: Single-family Residential Cisterns | B187: 1600 | E187: Single-family Residential Cisterns1600 | F187: 0.013 | G187: 1.995 | H187: min. 5 ft depth
A188: Single-family Residential Cisterns | B188: 1700 | E188: Single-family Residential Cisterns1700 | F188: 0.013 | G188: 1.995 | H188: min. 5 ft depth
A189: Single-family Residential Cisterns | B189: 1800 | E189: Single-family Residential Cisterns1800 | F189: 0.013 | G189: 1.995 | H189: min. 5 ft depth
A190: Single-family Residential Cisterns | B190: 1900 | E190: Single-family Residential Cisterns1900 | F190: 0.012 | G190: 1.995 | H190: min. 5 ft depth
A191: Single-family Residential Cisterns | B191: 2000 | E191: Single-family Residential Cisterns2000 | F191: 0.016 | G191: 1.995 | H191: min. 5 ft depth
A192: Single-family Residential Cisterns | B192: 2100 | E192: Single-family Residential Cisterns2100 | F192: 0.016 | G192: 1.995 | H192: min. 5 ft depth
A193: Single-family Residential Cisterns | B193: 2200 | E193: Single-family Residential Cisterns2200 | F193: 0.016 | G193: 1.995 | H193: min. 5 ft depth
A194: Single-family Residential Cisterns | B194: 2300 | E194: Single-family Residential Cisterns2300 | F194: 0.016 | G194: 1.995 | H194: min. 5 ft depth
A195: Single-family Residential Cisterns | B195: 2400 | E195: Single-family Residential Cisterns2400 | F195: 0.016 | G195: 1.995 | H195: min. 5 ft depth
A196: Single-family Residential Cisterns | B196: 2500 | E196: Single-family Residential Cisterns2500 | F196: 0.016 | G196: 1.995 | H196: min. 5 ft depth
A197: Single-family Residential Cisterns | B197: 2600 | E197: Single-family Residential Cisterns2600 | F197: 0.016 | G197: 1.995 | H197: min. 5 ft depth
A198: Single-family Residential Cisterns | B198: 2700 | E198: Single-family Residential Cisterns2700 | F198: 0.016 | G198: 1.995 | H198: min. 5 ft depth
A199: Single-family Residential Cisterns | B199: 2800 | E199: Single-family Residential Cisterns2800 | F199: 0.016 | G199: 1.995 | H199: min. 5 ft depth
A200: Single-family Residential Cisterns | B200: 2900 | E200: Single-family Residential Cisterns2900 | F200: 0.016 | G200: 1.995 | H200: min. 5 ft depth
A201: Single-family Residential Cisterns | B201: 3000 | E201: Single-family Residential Cisterns3000 | F201: 0.019 | G201: 1.995 | H201: min. 5 ft depth
... 55 more rows

Sheet log (hidden)
A2: 2 | B2: 2023-01-06T09:36:52 | C2: Workbook_Open

Sheet BMP Modeling (hidden)
A1: On-site Stormwater Management Calculator
A2: BMP Modeling Results
A3: =Version -> Version 01-04-2023
B5: For the On-Site Performance Standard the modeling approach for each BMP design shall be applied. Refer to Section 4.1.3 and Appendix F in the Seattle Stormwater Manual for modeling requirements and guidelines.
A8: Surface | D8: Contributing Area (sf) | J8: Hard Surface Type | P8: Hard Surface Description | X8: BMP Name | AF8: Facility Size (sf) | AL8: Total Volume Infiltrated (cf)* | AR8: Optional Notes
B10: 1
B12: 2
B14: 3
B16: 4
B18: 5
B20: 6
B22: 7
B24: 8
B26: 9
B28: 10
B30: 11
B32: 12
B34: 13
B36: 14
B38: 15
B40: 16
B42: 17
B44: 18
B46: 19
B48: 20
B50: * Total volume infiltrated over the required 158-year continuous runoff model simulation in cubic feet (i.e. total volume infiltrated from the WWHM or MGS Flood output). The calculator will convert the volume to gallons and display the average annual volume infiltrated on the Project Summary tab. (If a pre-sized table is used rather than modeling, leave this field blank.)

Sheet BMP Sizing
A1: On-site Stormwater Management Calculator - List Approach
A2: BMP Sizing
A3: =Version -> Version 01-04-2023
B4: More than one surface can drain to the same BMP. For example, a garage roof and driveway may be managed by a single infiltration trench. Please indicate which surfaces are draining to which BMPs in the dropdown menus.
B5: Surface | F5: Area (sf) | K5: Select BMP | AN5: Dropdown List | AO5: Unique Count | AP5: BMP Type | AQ5: Can there be more than one BMP | AR5: Match
B7: 1 | F7: =IFERROR(INDEX('Project Summary'!$W$81:$W$82,MATCH(B7,'Project Summary'!$AS$81:$AS$84,0)),"") ->  | AA7: =IFERROR(IF(AND(K7<>"",NOT(AR7)),IF(AN7="","Select BMP on Surface Tab.","Selected BMP doesn't match Surface Tab."),""),"") ->  | AN7: =IFERROR(INDEX('Project Summary'!$AX$81:$AX$84,MATCH(B7,'Project Summary'!$AS$81:$AS$84,0)),"NoLIst") -> NoLIst | AO7: =IF(LEFT(K7,3)=LEFT(AN7,3),IF(K7<>"",1,""),"") ->  | AP7: =IFERROR(INDEX('Project Summary'!$AT$81:$AT$84,MATCH(B7,'Project Summary'!$AS$81:$AS$84,0)),"") ->  | AQ7: =INDEX(Lookup!$B$70:$B$90,MATCH(AP7,Lookup!$A$70:$A$90,0)) ->  | AR7: =OR(LEFT(K7,LEN(K7)-LEN(AO7)-2)=AP7,K7=AP7,LEFT(K7,LEN(K7)-LEN(AO7)-1)=AP7) -> 
B9: 2 | C9: 2 | F9: =IFERROR(INDEX('Project Summary'!$W$81:$W$82,MATCH(B9,'Project Summary'!$AS$81:$AS$84,0)),"") ->  | AA9: =IFERROR(IF(AND(K9<>"",NOT(AR9)),IF(AN9="","Select BMP on Surface Tab.","Selected BMP doesn't match Surface Tab."),""),"") ->  | AN9: =IFERROR(INDEX('Project Summary'!$AX$81:$AX$84,MATCH(B9,'Project Summary'!$AS$81:$AS$84,0)),"NoLIst") -> NoLIst | AO9: =IF(OR(K9="",LEFT(K9,3)<>LEFT(AN9,3)),"",IF(AQ9,IFERROR(INDEX($AO$7:AO8,MATCH(K9,$K$7:K9,0)),MAX($AO$7:AO8)+1),MAX($AO$7:AO8)+1)) ->  | AP9: =IFERROR(INDEX('Project Summary'!$AT$81:$AT$84,MATCH(B9,'Project Summary'!$AS$81:$AS$84,0)),"") ->  | AQ9: =INDEX(Lookup!$B$70:$B$90,MATCH(AP9,Lookup!$A$70:$A$90,0)) ->  | AR9: =OR(LEFT(K9,LEN(K9)-LEN(AO9)-2)=AP9,K9=AP9,LEFT(K9,LEN(K9)-LEN(AO9)-1)=AP9) -> 
B11: 3 | C11: 3 | F11: =IFERROR(INDEX('Project Summary'!$W$81:$W$82,MATCH(B11,'Project Summary'!$AS$81:$AS$84,0)),"") ->  | AA11: =IFERROR(IF(AND(K11<>"",NOT(AR11)),IF(AN11="","Select BMP on Surface Tab.","Selected BMP doesn't match Surface Tab."),""),"") ->  | AN11: =IFERROR(INDEX('Project Summary'!$AX$81:$AX$84,MATCH(B11,'Project Summary'!$AS$81:$AS$84,0)),"NoLIst") -> NoLIst | AO11: =IF(OR(K11="",LEFT(K11,3)<>LEFT(AN11,3)),"",IF(AQ11,IFERROR(INDEX($AO$7:AO10,MATCH(K11,$K$7:K11,0)),MAX($AO$7:AO10)+1),MAX($AO$7:AO10)+1)) ->  | AP11: =IFERROR(INDEX('Project Summary'!$AT$81:$AT$84,MATCH(B11,'Project Summary'!$AS$81:$AS$84,0)),"") ->  | AQ11: =INDEX(Lookup!$B$70:$B$90,MATCH(AP11,Lookup!$A$70:$A$90,0)) ->  | AR11: =OR(LEFT(K11,LEN(K11)-LEN(AO11)-2)=AP11,K11=AP11,LEFT(K11,LEN(K11)-LEN(AO11)-1)=AP11) -> 
B13: 4 | C13: 4 | F13: =IFERROR(INDEX('Project Summary'!$W$81:$W$82,MATCH(B13,'Project Summary'!$AS$81:$AS$84,0)),"") ->  | AA13: =IFERROR(IF(AND(K13<>"",NOT(AR13)),IF(AN13="","Select BMP on Surface Tab.","Selected BMP doesn't match Surface Tab."),""),"") ->  | AN13: =IFERROR(INDEX('Project Summary'!$AX$81:$AX$84,MATCH(B13,'Project Summary'!$AS$81:$AS$84,0)),"NoLIst") -> NoLIst | AO13: =IF(OR(K13="",LEFT(K13,3)<>LEFT(AN13,3)),"",IF(AQ13,IFERROR(INDEX($AO$7:AO12,MATCH(K13,$K$7:K13,0)),MAX($AO$7:AO12)+1),MAX($AO$7:AO12)+1)) ->  | AP13: =IFERROR(INDEX('Project Summary'!$AT$81:$AT$84,MATCH(B13,'Project Summary'!$AS$81:$AS$84,0)),"") ->  | AQ13: =INDEX(Lookup!$B$70:$B$90,MATCH(AP13,Lookup!$A$70:$A$90,0)) ->  | AR13: =OR(LEFT(K13,LEN(K13)-LEN(AO13)-2)=AP13,K13=AP13,LEFT(K13,LEN(K13)-LEN(AO13)-1)=AP13) -> 
B15: 5 | C15: 5 | F15: =IFERROR(INDEX('Project Summary'!$W$81:$W$82,MATCH(B15,'Project Summary'!$AS$81:$AS$84,0)),"") ->  | AA15: =IFERROR(IF(AND(K15<>"",NOT(AR15)),IF(AN15="","Select BMP on Surface Tab.","Selected BMP doesn't match Surface Tab."),""),"") ->  | AN15: =IFERROR(INDEX('Project Summary'!$AX$81:$AX$84,MATCH(B15,'Project Summary'!$AS$81:$AS$84,0)),"NoLIst") -> NoLIst | AO15: =IF(OR(K15="",LEFT(K15,3)<>LEFT(AN15,3)),"",IF(AQ15,IFERROR(INDEX($AO$7:AO14,MATCH(K15,$K$7:K15,0)),MAX($AO$7:AO14)+1),MAX($AO$7:AO14)+1)) ->  | AP15: =IFERROR(INDEX('Project Summary'!$AT$81:$AT$84,MATCH(B15,'Project Summary'!$AS$81:$AS$84,0)),"") ->  | AQ15: =INDEX(Lookup!$B$70:$B$90,MATCH(AP15,Lookup!$A$70:$A$90,0)) ->  | AR15: =OR(LEFT(K15,LEN(K15)-LEN(AO15)-2)=AP15,K15=AP15,LEFT(K15,LEN(K15)-LEN(AO15)-1)=AP15) -> 
B17: 6 | C17: 6 | F17: =IFERROR(INDEX('Project Summary'!$W$81:$W$82,MATCH(B17,'Project Summary'!$AS$81:$AS$84,0)),"") ->  | AA17: =IFERROR(IF(AND(K17<>"",NOT(AR17)),IF(AN17="","Select BMP on Surface Tab.","Selected BMP doesn't match Surface Tab."),""),"") ->  | AN17: =IFERROR(INDEX('Project Summary'!$AX$81:$AX$84,MATCH(B17,'Project Summary'!$AS$81:$AS$84,0)),"NoLIst") -> NoLIst | AO17: =IF(OR(K17="",LEFT(K17,3)<>LEFT(AN17,3)),"",IF(AQ17,IFERROR(INDEX($AO$7:AO16,MATCH(K17,$K$7:K17,0)),MAX($AO$7:AO16)+1),MAX($AO$7:AO16)+1)) ->  | AP17: =IFERROR(INDEX('Project Summary'!$AT$81:$AT$84,MATCH(B17,'Project Summary'!$AS$81:$AS$84,0)),"") ->  | AQ17: =INDEX(Lookup!$B$70:$B$90,MATCH(AP17,Lookup!$A$70:$A$90,0)) ->  | AR17: =OR(LEFT(K17,LEN(K17)-LEN(AO17)-2)=AP17,K17=AP17,LEFT(K17,LEN(K17)-LEN(AO17)-1)=AP17) -> 
B19: 7 | C19: 7 | F19: =IFERROR(INDEX('Project Summary'!$W$81:$W$82,MATCH(B19,'Project Summary'!$AS$81:$AS$84,0)),"") ->  | AA19: =IFERROR(IF(AND(K19<>"",NOT(AR19)),IF(AN19="","Select BMP on Surface Tab.","Selected BMP doesn't match Surface Tab."),""),"") ->  | AN19: =IFERROR(INDEX('Project Summary'!$AX$81:$AX$84,MATCH(B19,'Project Summary'!$AS$81:$AS$84,0)),"NoLIst") -> NoLIst | AO19: =IF(OR(K19="",LEFT(K19,3)<>LEFT(AN19,3)),"",IF(AQ19,IFERROR(INDEX($AO$7:AO18,MATCH(K19,$K$7:K19,0)),MAX($AO$7:AO18)+1),MAX($AO$7:AO18)+1)) ->  | AP19: =IFERROR(INDEX('Project Summary'!$AT$81:$AT$84,MATCH(B19,'Project Summary'!$AS$81:$AS$84,0)),"") ->  | AQ19: =INDEX(Lookup!$B$70:$B$90,MATCH(AP19,Lookup!$A$70:$A$90,0)) ->  | AR19: =OR(LEFT(K19,LEN(K19)-LEN(AO19)-2)=AP19,K19=AP19,LEFT(K19,LEN(K19)-LEN(AO19)-1)=AP19) -> 
B21: 8 | C21: 8 | F21: =IFERROR(INDEX('Project Summary'!$W$81:$W$82,MATCH(B21,'Project Summary'!$AS$81:$AS$84,0)),"") ->  | AA21: =IFERROR(IF(AND(K21<>"",NOT(AR21)),IF(AN21="","Select BMP on Surface Tab.","Selected BMP doesn't match Surface Tab."),""),"") ->  | AN21: =IFERROR(INDEX('Project Summary'!$AX$81:$AX$84,MATCH(B21,'Project Summary'!$AS$81:$AS$84,0)),"NoLIst") -> NoLIst | AO21: =IF(OR(K21="",LEFT(K21,3)<>LEFT(AN21,3)),"",IF(AQ21,IFERROR(INDEX($AO$7:AO20,MATCH(K21,$K$7:K21,0)),MAX($AO$7:AO20)+1),MAX($AO$7:AO20)+1)) ->  | AP21: =IFERROR(INDEX('Project Summary'!$AT$81:$AT$84,MATCH(B21,'Project Summary'!$AS$81:$AS$84,0)),"") ->  | AQ21: =INDEX(Lookup!$B$70:$B$90,MATCH(AP21,Lookup!$A$70:$A$90,0)) ->  | AR21: =OR(LEFT(K21,LEN(K21)-LEN(AO21)-2)=AP21,K21=AP21,LEFT(K21,LEN(K21)-LEN(AO21)-1)=AP21) -> 
B23: 9 | C23: 9 | F23: =IFERROR(INDEX('Project Summary'!$W$81:$W$82,MATCH(B23,'Project Summary'!$AS$81:$AS$84,0)),"") ->  | AA23: =IFERROR(IF(AND(K23<>"",NOT(AR23)),IF(AN23="","Select BMP on Surface Tab.","Selected BMP doesn't match Surface Tab."),""),"") ->  | AN23: =IFERROR(INDEX('Project Summary'!$AX$81:$AX$84,MATCH(B23,'Project Summary'!$AS$81:$AS$84,0)),"NoLIst") -> NoLIst | AO23: =IF(OR(K23="",LEFT(K23,3)<>LEFT(AN23,3)),"",IF(AQ23,IFERROR(INDEX($AO$7:AO22,MATCH(K23,$K$7:K23,0)),MAX($AO$7:AO22)+1),MAX($AO$7:AO22)+1)) ->  | AP23: =IFERROR(INDEX('Project Summary'!$AT$81:$AT$84,MATCH(B23,'Project Summary'!$AS$81:$AS$84,0)),"") ->  | AQ23: =INDEX(Lookup!$B$70:$B$90,MATCH(AP23,Lookup!$A$70:$A$90,0)) ->  | AR23: =OR(LEFT(K23,LEN(K23)-LEN(AO23)-2)=AP23,K23=AP23,LEFT(K23,LEN(K23)-LEN(AO23)-1)=AP23) -> 
B25: 10 | C25: 10 | F25: =IFERROR(INDEX('Project Summary'!$W$81:$W$82,MATCH(B25,'Project Summary'!$AS$81:$AS$84,0)),"") ->  | AA25: =IFERROR(IF(AND(K25<>"",NOT(AR25)),IF(AN25="","Select BMP on Surface Tab.","Selected BMP doesn't match Surface Tab."),""),"") ->  | AN25: =IFERROR(INDEX('Project Summary'!$AX$81:$AX$84,MATCH(B25,'Project Summary'!$AS$81:$AS$84,0)),"NoLIst") -> NoLIst | AO25: =IF(OR(K25="",LEFT(K25,3)<>LEFT(AN25,3)),"",IF(AQ25,IFERROR(INDEX($AO$7:AO24,MATCH(K25,$K$7:K25,0)),MAX($AO$7:AO24)+1),MAX($AO$7:AO24)+1)) ->  | AP25: =IFERROR(INDEX('Project Summary'!$AT$81:$AT$84,MATCH(B25,'Project Summary'!$AS$81:$AS$84,0)),"") ->  | AQ25: =INDEX(Lookup!$B$70:$B$90,MATCH(AP25,Lookup!$A$70:$A$90,0)) ->  | AR25: =OR(LEFT(K25,LEN(K25)-LEN(AO25)-2)=AP25,K25=AP25,LEFT(K25,LEN(K25)-LEN(AO25)-1)=AP25) -> 
B27: 11 | C27: 10 | F27: =IFERROR(INDEX('Project Summary'!$W$81:$W$82,MATCH(B27,'Project Summary'!$AS$81:$AS$84,0)),"") ->  | AA27: =IFERROR(IF(AND(K27<>"",NOT(AR27)),IF(AN27="","Select BMP on Surface Tab.","Selected BMP doesn't match Surface Tab."),""),"") ->  | AN27: =IFERROR(INDEX('Project Summary'!$AX$81:$AX$84,MATCH(B27,'Project Summary'!$AS$81:$AS$84,0)),"NoLIst") -> NoLIst | AO27: =IF(OR(K27="",LEFT(K27,3)<>LEFT(AN27,3)),"",IF(AQ27,IFERROR(INDEX($AO$7:AO26,MATCH(K27,$K$7:K27,0)),MAX($AO$7:AO26)+1),MAX($AO$7:AO26)+1)) ->  | AP27: =IFERROR(INDEX('Project Summary'!$AT$81:$AT$84,MATCH(B27,'Project Summary'!$AS$81:$AS$84,0)),"") ->  | AQ27: =INDEX(Lookup!$B$70:$B$90,MATCH(AP27,Lookup!$A$70:$A$90,0)) ->  | AR27: =OR(LEFT(K27,LEN(K27)-LEN(AO27)-2)=AP27,K27=AP27,LEFT(K27,LEN(K27)-LEN(AO27)-1)=AP27) -> 
B29: 12 | C29: 10 | F29: =IFERROR(INDEX('Project Summary'!$W$81:$W$82,MATCH(B29,'Project Summary'!$AS$81:$AS$84,0)),"") ->  | AA29: =IFERROR(IF(AND(K29<>"",NOT(AR29)),IF(AN29="","Select BMP on Surface Tab.","Selected BMP doesn't match Surface Tab."),""),"") ->  | AN29: =IFERROR(INDEX('Project Summary'!$AX$81:$AX$84,MATCH(B29,'Project Summary'!$AS$81:$AS$84,0)),"NoLIst") -> NoLIst | AO29: =IF(OR(K29="",LEFT(K29,3)<>LEFT(AN29,3)),"",IF(AQ29,IFERROR(INDEX($AO$7:AO28,MATCH(K29,$K$7:K29,0)),MAX($AO$7:AO28)+1),MAX($AO$7:AO28)+1)) ->  | AP29: =IFERROR(INDEX('Project Summary'!$AT$81:$AT$84,MATCH(B29,'Project Summary'!$AS$81:$AS$84,0)),"") ->  | AQ29: =INDEX(Lookup!$B$70:$B$90,MATCH(AP29,Lookup!$A$70:$A$90,0)) ->  | AR29: =OR(LEFT(K29,LEN(K29)-LEN(AO29)-2)=AP29,K29=AP29,LEFT(K29,LEN(K29)-LEN(AO29)-1)=AP29) -> 
B31: 13 | C31: 10 | F31: =IFERROR(INDEX('Project Summary'!$W$81:$W$82,MATCH(B31,'Project Summary'!$AS$81:$AS$84,0)),"") ->  | AA31: =IFERROR(IF(AND(K31<>"",NOT(AR31)),IF(AN31="","Select BMP on Surface Tab.","Selected BMP doesn't match Surface Tab."),""),"") ->  | AN31: =IFERROR(INDEX('Project Summary'!$AX$81:$AX$84,MATCH(B31,'Project Summary'!$AS$81:$AS$84,0)),"NoLIst") -> NoLIst | AO31: =IF(OR(K31="",LEFT(K31,3)<>LEFT(AN31,3)),"",IF(AQ31,IFERROR(INDEX($AO$7:AO30,MATCH(K31,$K$7:K31,0)),MAX($AO$7:AO30)+1),MAX($AO$7:AO30)+1)) ->  | AP31: =IFERROR(INDEX('Project Summary'!$AT$81:$AT$84,MATCH(B31,'Project Summary'!$AS$81:$AS$84,0)),"") ->  | AQ31: =INDEX(Lookup!$B$70:$B$90,MATCH(AP31,Lookup!$A$70:$A$90,0)) ->  | AR31: =OR(LEFT(K31,LEN(K31)-LEN(AO31)-2)=AP31,K31=AP31,LEFT(K31,LEN(K31)-LEN(AO31)-1)=AP31) -> 
B33: 14 | C33: 10 | F33: =IFERROR(INDEX('Project Summary'!$W$81:$W$82,MATCH(B33,'Project Summary'!$AS$81:$AS$84,0)),"") ->  | AA33: =IFERROR(IF(AND(K33<>"",NOT(AR33)),IF(AN33="","Select BMP on Surface Tab.","Selected BMP doesn't match Surface Tab."),""),"") ->  | AN33: =IFERROR(INDEX('Project Summary'!$AX$81:$AX$84,MATCH(B33,'Project Summary'!$AS$81:$AS$84,0)),"NoLIst") -> NoLIst | AO33: =IF(OR(K33="",LEFT(K33,3)<>LEFT(AN33,3)),"",IF(AQ33,IFERROR(INDEX($AO$7:AO32,MATCH(K33,$K$7:K33,0)),MAX($AO$7:AO32)+1),MAX($AO$7:AO32)+1)) ->  | AP33: =IFERROR(INDEX('Project Summary'!$AT$81:$AT$84,MATCH(B33,'Project Summary'!$AS$81:$AS$84,0)),"") ->  | AQ33: =INDEX(Lookup!$B$70:$B$90,MATCH(AP33,Lookup!$A$70:$A$90,0)) ->  | AR33: =OR(LEFT(K33,LEN(K33)-LEN(AO33)-2)=AP33,K33=AP33,LEFT(K33,LEN(K33)-LEN(AO33)-1)=AP33) -> 
B35: 15 | C35: 10 | F35: =IFERROR(INDEX('Project Summary'!$W$81:$W$82,MATCH(B35,'Project Summary'!$AS$81:$AS$84,0)),"") ->  | AA35: =IFERROR(IF(AND(K35<>"",NOT(AR35)),IF(AN35="","Select BMP on Surface Tab.","Selected BMP doesn't match Surface Tab."),""),"") ->  | AN35: =IFERROR(INDEX('Project Summary'!$AX$81:$AX$84,MATCH(B35,'Project Summary'!$AS$81:$AS$84,0)),"NoLIst") -> NoLIst | AO35: =IF(OR(K35="",LEFT(K35,3)<>LEFT(AN35,3)),"",IF(AQ35,IFERROR(INDEX($AO$7:AO34,MATCH(K35,$K$7:K35,0)),MAX($AO$7:AO34)+1),MAX($AO$7:AO34)+1)) ->  | AP35: =IFERROR(INDEX('Project Summary'!$AT$81:$AT$84,MATCH(B35,'Project Summary'!$AS$81:$AS$84,0)),"") ->  | AQ35: =INDEX(Lookup!$B$70:$B$90,MATCH(AP35,Lookup!$A$70:$A$90,0)) ->  | AR35: =OR(LEFT(K35,LEN(K35)-LEN(AO35)-2)=AP35,K35=AP35,LEFT(K35,LEN(K35)-LEN(AO35)-1)=AP35) -> 
B37: 16 | C37: 10 | F37: =IFERROR(INDEX('Project Summary'!$W$81:$W$82,MATCH(B37,'Project Summary'!$AS$81:$AS$84,0)),"") ->  | AA37: =IFERROR(IF(AND(K37<>"",NOT(AR37)),IF(AN37="","Select BMP on Surface Tab.","Selected BMP doesn't match Surface Tab."),""),"") ->  | AN37: =IFERROR(INDEX('Project Summary'!$AX$81:$AX$84,MATCH(B37,'Project Summary'!$AS$81:$AS$84,0)),"NoLIst") -> NoLIst | AO37: =IF(OR(K37="",LEFT(K37,3)<>LEFT(AN37,3)),"",IF(AQ37,IFERROR(INDEX($AO$7:AO36,MATCH(K37,$K$7:K37,0)),MAX($AO$7:AO36)+1),MAX($AO$7:AO36)+1)) ->  | AP37: =IFERROR(INDEX('Project Summary'!$AT$81:$AT$84,MATCH(B37,'Project Summary'!$AS$81:$AS$84,0)),"") ->  | AQ37: =INDEX(Lookup!$B$70:$B$90,MATCH(AP37,Lookup!$A$70:$A$90,0)) ->  | AR37: =OR(LEFT(K37,LEN(K37)-LEN(AO37)-2)=AP37,K37=AP37,LEFT(K37,LEN(K37)-LEN(AO37)-1)=AP37) -> 
B39: 17 | C39: 10 | F39: =IFERROR(INDEX('Project Summary'!$W$81:$W$82,MATCH(B39,'Project Summary'!$AS$81:$AS$84,0)),"") ->  | AA39: =IFERROR(IF(AND(K39<>"",NOT(AR39)),IF(AN39="","Select BMP on Surface Tab.","Selected BMP doesn't match Surface Tab."),""),"") ->  | AN39: =IFERROR(INDEX('Project Summary'!$AX$81:$AX$84,MATCH(B39,'Project Summary'!$AS$81:$AS$84,0)),"NoLIst") -> NoLIst | AO39: =IF(OR(K39="",LEFT(K39,3)<>LEFT(AN39,3)),"",IF(AQ39,IFERROR(INDEX($AO$7:AO38,MATCH(K39,$K$7:K39,0)),MAX($AO$7:AO38)+1),MAX($AO$7:AO38)+1)) ->  | AP39: =IFERROR(INDEX('Project Summary'!$AT$81:$AT$84,MATCH(B39,'Project Summary'!$AS$81:$AS$84,0)),"") ->  | AQ39: =INDEX(Lookup!$B$70:$B$90,MATCH(AP39,Lookup!$A$70:$A$90,0)) ->  | AR39: =OR(LEFT(K39,LEN(K39)-LEN(AO39)-2)=AP39,K39=AP39,LEFT(K39,LEN(K39)-LEN(AO39)-1)=AP39) -> 
B41: 18 | C41: 10 | F41: =IFERROR(INDEX('Project Summary'!$W$81:$W$82,MATCH(B41,'Project Summary'!$AS$81:$AS$84,0)),"") ->  | AA41: =IFERROR(IF(AND(K41<>"",NOT(AR41)),IF(AN41="","Select BMP on Surface Tab.","Selected BMP doesn't match Surface Tab."),""),"") ->  | AN41: =IFERROR(INDEX('Project Summary'!$AX$81:$AX$84,MATCH(B41,'Project Summary'!$AS$81:$AS$84,0)),"NoLIst") -> NoLIst | AO41: =IF(OR(K41="",LEFT(K41,3)<>LEFT(AN41,3)),"",IF(AQ41,IFERROR(INDEX($AO$7:AO40,MATCH(K41,$K$7:K41,0)),MAX($AO$7:AO40)+1),MAX($AO$7:AO40)+1)) ->  | AP41: =IFERROR(INDEX('Project Summary'!$AT$81:$AT$84,MATCH(B41,'Project Summary'!$AS$81:$AS$84,0)),"") ->  | AQ41: =INDEX(Lookup!$B$70:$B$90,MATCH(AP41,Lookup!$A$70:$A$90,0)) ->  | AR41: =OR(LEFT(K41,LEN(K41)-LEN(AO41)-2)=AP41,K41=AP41,LEFT(K41,LEN(K41)-LEN(AO41)-1)=AP41) -> 
B43: 19 | C43: 10 | F43: =IFERROR(INDEX('Project Summary'!$W$81:$W$82,MATCH(B43,'Project Summary'!$AS$81:$AS$84,0)),"") ->  | AA43: =IFERROR(IF(AND(K43<>"",NOT(AR43)),IF(AN43="","Select BMP on Surface Tab.","Selected BMP doesn't match Surface Tab."),""),"") ->  | AN43: =IFERROR(INDEX('Project Summary'!$AX$81:$AX$84,MATCH(B43,'Project Summary'!$AS$81:$AS$84,0)),"NoLIst") -> NoLIst | AO43: =IF(OR(K43="",LEFT(K43,3)<>LEFT(AN43,3)),"",IF(AQ43,IFERROR(INDEX($AO$7:AO42,MATCH(K43,$K$7:K43,0)),MAX($AO$7:AO42)+1),MAX($AO$7:AO42)+1)) ->  | AP43: =IFERROR(INDEX('Project Summary'!$AT$81:$AT$84,MATCH(B43,'Project Summary'!$AS$81:$AS$84,0)),"") ->  | AQ43: =INDEX(Lookup!$B$70:$B$90,MATCH(AP43,Lookup!$A$70:$A$90,0)) ->  | AR43: =OR(LEFT(K43,LEN(K43)-LEN(AO43)-2)=AP43,K43=AP43,LEFT(K43,LEN(K43)-LEN(AO43)-1)=AP43) -> 
B45: 20 | C45: 10 | F45: =IFERROR(INDEX('Project Summary'!$W$81:$W$82,MATCH(B45,'Project Summary'!$AS$81:$AS$84,0)),"") ->  | AA45: =IFERROR(IF(AND(K45<>"",NOT(AR45)),IF(AN45="","Select BMP on Surface Tab.","Selected BMP doesn't match Surface Tab."),""),"") ->  | AN45: =IFERROR(INDEX('Project Summary'!$AX$81:$AX$84,MATCH(B45,'Project Summary'!$AS$81:$AS$84,0)),"NoLIst") -> NoLIst | AO45: =IF(OR(K45="",LEFT(K45,3)<>LEFT(AN45,3)),"",IF(AQ45,IFERROR(INDEX($AO$7:AO44,MATCH(K45,$K$7:K45,0)),MAX($AO$7:AO44)+1),MAX($AO$7:AO44)+1)) ->  | AP45: =IFERROR(INDEX('Project Summary'!$AT$81:$AT$84,MATCH(B45,'Project Summary'!$AS$81:$AS$84,0)),"") ->  | AQ45: =INDEX(Lookup!$B$70:$B$90,MATCH(AP45,Lookup!$A$70:$A$90,0)) ->  | AR45: =OR(LEFT(K45,LEN(K45)-LEN(AO45)-2)=AP45,K45=AP45,LEFT(K45,LEN(K45)-LEN(AO45)-1)=AP45) -> 
AN47: Unique count lookup | AO47: Dropdown lookup | AP47: Sizing Factor & Units | AQ47: Facility Size | AR47: Units | AS47: Volume Mangaed gal/yr | AT47: Data Entered when This was List
B48: BMP | N48: BMP Facility Inputs | AC48: BMP Size and Credit
B49: =IFERROR(IF(INDEX($K$7:$K$46,MATCH(AN49,$AO$7:$AO$46,0))="","",INDEX($K$7:$K$46,MATCH(AN49,$AO$7:$AO$46,0))),"") ->  | N49: =IF(B49="","",IF(AO49="Vegetated Roof System","Roof Area","Contributing Area (sf)")) ->  | V49: =IF(B49="","",SUMIF($AO$7:$AO$46,AN49,$F$7:$I$46)) ->  | AC49: =IFERROR(IF(AO49="Water Quality BMP in lieu of NIB","Submit sizing documentation separately.", IF(AP49=-999,"Configuration not allowed.",IF(AP49=0,"Configuration not allowed.",IF(AO49="New or Retained Trees","As many as feasible.", IF(AP49="equation",TEXT(AQ49,"#,##0")&" "&AR49, TEXT(IF(OR(AO49="Permeable Pavement Facility",AO49="Vegetated Roof System",AO49="Rainwater Harvesting - Category 2", AO49="Rainwater Harvesting - Category 4"),H51, IF(AO49="Sidewalk/Trail Compost-Amended Strip",MAX(V49/H51,AP49*V49), AP49*V49)),"#,##0")&" "&AR49))))),"") ->  | AN49: 1 | AO49: =INDEX($AP$7:$AP$46,MATCH(AN49,$AO$7:$AO$46,0)) ->  | AP49: =IF(AO49="New or Retained Trees", INDEX(Lookup!$F$93:$F$219,MATCH(TRIM(CONCATENATE(AO49,V51)),Lookup!$E$93:$E$219,0)), IF(AO49="Single-family Residential Cisterns", INDEX(Lookup!$F$93:$F$219,MATCH(TRIM(CONCATENATE(AO49,IF(V49<400,0,IF(V49>4200,4201,ROUNDDOWN(V49,-2))))),Lookup!$E$93:$E$219,0)), IF(AO49="Sidewalk/Trail Compost-Amended Strip", IF(H51="",NA(),IF(H51<10,Lookup!$F$95,Lookup!$F$94)), IF(AND(AO49="Non-Infiltrating Bioretention",V53="Sloped sides"), IF(V51=2,0.013, IF(AND(V51=12,V49<=2000),0.004,"equation")), INDEX(Lookup!$F$93:$F$219,MATCH(TRIM(CONCATENATE(AO49,V51,V53,V55)),Lookup!$E$93:$E$219,0)))))) ->  | AQ49: =IF(AND(AO49="Non-Infiltrating Bioretention",V53="Sloped sides"), IF(V51=2,0.013*V49, IF(AND(V51=6,V49<=2000),0.0059*V49-3.215, IF(AND(V51=6,V49>2000,V49<=10000),0.0097*V49-11.297, IF(AND(V51=6,V49>10000),0.012*V49, IF(AND(V51=12,V49<=2700),0.004*V49, IF(AND(V51=12,V49>2700,V49<=10000),0.0052*V49-12.092, IF(AND(V51=12,V49>10000),0.01*V49,NA()))))))), IF(AP49<=0,NA(),IF(OR(AO49="Permeable Pavement Facility",AO49="Vegetated Roof System",AO49="Rainwater Harvesting - Category 2", AO49="Rainwater Harvesting - Category 4"),H51, IF(AO49="Sidewalk/Trail Compost-Amended Strip",MAX(V49/H51, AP49*V49), AP49*V49)))) ->  | AR49: =IF(AO49="Single-family Residential Cisterns", "sf",INDEX(Lookup!$H$93:$H$219,MATCH(TRIM(CONCATENATE(AO49,V51,V53,V55)),Lookup!$E$93:$E$219,0))) ->  | AS49: =IF(AO49="New or Retained Trees", INDEX(Lookup!$G$93:$G$219,MATCH(TRIM(CONCATENATE(AO49,V51)),Lookup!$E$93:$E$219,0))*V53, IF(AO49="Single-family Residential Cisterns", INDEX(Lookup!$G$93:$G$219,MATCH(TRIM(CONCATENATE(AO49,IF(V49<400,0,IF(V49>4200,4201,ROUNDDOWN(V49,-2))))),Lookup!$E$93:$E$219,0))*V49, IF(AND(AO49="Sidewalk/Trail Compost-Amended Strip",OR(H51="",InfRate=0)),NA(), INDEX(Lookup!$G$93:$G$219,MATCH(TRIM(CONCATENATE(AO49,V51,V53,V55)),Lookup!$E$93:$E$219,0))*V49)))*7.48052 *IF(OR(AO49="Permeable Pavement Facility",AO49="Vegetated Roof System"),MIN(1,H51/(AP49*V49)),1) +IF(AO49="Permeable Pavement Facility",H51*2.1*7.48052,1) ->  | AT49: =IFERROR( IF(AO49="Single-family Residential Cisterns",INDEX(Lookup!$H$93:$H$219,MATCH(TRIM(CONCATENATE(AO49,IF(V49<400,0,IF(V49>4200,4201,ROUNDDOWN(V49,-2))))),Lookup!$E$93:$E$219,0)), IF(AO49="Sidewalk/Trail Compost-Amended Strip",ROUND(AQ49/(V49/H51),1) &" ft wide x "& ROUND(V49/H51,0)&" ft long", IF(OR(AO49="Rainwater Harvesting - Category 2",AO49="Rainwater Harvesting - Category 4")," required minimum live storage", IF(AO49="Water Quality BMP in lieu of NIB","See Plan", IF(AND(V51="",V53="",V55=""),"",TRIM(V53&" "&AP53&" "&V51&" "&AP51&" "&V55&" "&AP55)))))),"") -> 
B51: =IFERROR( IF(AO49="Permeable Pavement Facility","Facility Area (sf)", IF(AO49="Vegetated Roof System","Vegetated Area (sf)", IF(AO49="Sidewalk/Trail Compost-Amended Strip","Sidewalk/Trail Width (ft)", IF(OR(AO49="Rainwater Harvesting - Category 2",AO49="Rainwater Harvesting - Category 4"),"Live Storage Volume (gal)", "")))),"") ->  | N51: =IFERROR(INDEX(Lookup!$C$70:$C$90,MATCH(AO49,Lookup!$A$70:$A$90,0)),"") ->  | AC51: =IFERROR(TEXT(AS49,"#,##0")&" gal managed/year",IFERROR(IF(AP49=0,"Infiltration rate too low.",""),"")) ->  | AO51: =TRIM(SUBSTITUTE(SUBSTITUTE(SUBSTITUTE(AO49," ",""),"-",""),"/","")&"List1") ->  | AP51: =IFERROR(INDEX(Lookup!$F$70:$F$90,MATCH(AO49,Lookup!$A$70:$A$90,0)),"") -> 
B53: =IFERROR( IF(OR(AO49="Permeable Pavement Facility",AO49="Vegetated Roof System"),"Minimum Facility Area "&TEXT((AP49*V49),"#,###")&" sf", IF(OR(AO49="Rainwater Harvesting - Category 2",AO49="Rainwater Harvesting - Category 4"),"Continuous runoff modeling required by", "")),"") ->  | N53: =IFERROR(INDEX(Lookup!$D$70:$D$90,MATCH(AO49,Lookup!$A$70:$A$90,0)),"") ->  | AC53: =IFERROR(IF(AO49="Sidewalk/Trail Compost-Amended Strip",ROUND(AQ49/(V49/H51),1) &" ft wide compost-amended strip",""),"") ->  | AO53: =TRIM(SUBSTITUTE(SUBSTITUTE(SUBSTITUTE(AO49," ",""),"-",""),"/","")&"List2") ->  | AP53: =IFERROR(INDEX(Lookup!$G$70:$G$90,MATCH(AO49,Lookup!$A$70:$A$90,0)),"") -> 
B55: =IFERROR(IF(OR(AO49="Rainwater Harvesting - Category 2",AO49="Rainwater Harvesting - Category 4"),"professional engineer.", ""),"") ->  | N55: =IFERROR(INDEX(Lookup!$E$70:$E$90,MATCH(AO49,Lookup!$A$70:$A$90,0)),"") ->  | AC55: =IFERROR(IF(AO49="Sidewalk/Trail Compost-Amended Strip",IF(AND(AC53="",H51<>""),"","along full "& ROUND(V49/H51,0) &" ft trail/sidewalk"),""),"") ->  | AO55: =TRIM(SUBSTITUTE(SUBSTITUTE(SUBSTITUTE(AO49," ",""),"-",""),"/","")&"List3") -> 
B57: =IFERROR(IF(INDEX($K$7:$K$46,MATCH(AN57,$AO$7:$AO$46,0))="","",INDEX($K$7:$K$46,MATCH(AN57,$AO$7:$AO$46,0))),"") ->  | N57: =IF(B57="","",IF(AO57="Vegetated Roof System","Roof Area","Contributing Area (sf)")) ->  | V57: =IF(B57="","",SUMIF($AO$7:$AO$46,AN57,$F$7:$I$46)) ->  | AC57: =IFERROR(IF(AO57="Water Quality BMP in lieu of NIB","Submit sizing documentation separately.", IF(AP57=-999,"Configuration not allowed.",IF(AP57=0,"Configuration not allowed.",IF(AO57="New or Retained Trees","As many as feasible.", IF(AP57="equation",TEXT(AQ57,"#,##0")&" "&AR57, TEXT(IF(OR(AO57="Permeable Pavement Facility",AO57="Vegetated Roof System",AO57="Rainwater Harvesting - Category 2", AO57="Rainwater Harvesting - Category 4"),H59, IF(AO57="Sidewalk/Trail Compost-Amended Strip",MAX(V57/H59,AP57*V57), AP57*V57)),"#,##0")&" "&AR57))))),"") ->  | AN57: 2 | AO57: =INDEX($AP$7:$AP$46,MATCH(AN57,$AO$7:$AO$46,0)) ->  | AP57: =IF(AO57="New or Retained Trees", INDEX(Lookup!$F$93:$F$219,MATCH(TRIM(CONCATENATE(AO57,V59)),Lookup!$E$93:$E$219,0)), IF(AO57="Single-family Residential Cisterns", INDEX(Lookup!$F$93:$F$219,MATCH(TRIM(CONCATENATE(AO57,IF(V57<400,0,IF(V57>4200,4201,ROUNDDOWN(V57,-2))))),Lookup!$E$93:$E$219,0)), IF(AO57="Sidewalk/Trail Compost-Amended Strip", IF(H59="",NA(),IF(H59<10,Lookup!$F$95,Lookup!$F$94)), IF(AND(AO57="Non-Infiltrating Bioretention",V61="Sloped sides"), IF(V59=2,0.013, IF(AND(V59=12,V57<=2000),0.004,"equation")), INDEX(Lookup!$F$93:$F$219,MATCH(TRIM(CONCATENATE(AO57,V59,V61,V63)),Lookup!$E$93:$E$219,0)))))) ->  | AQ57: =IF(AND(AO57="Non-Infiltrating Bioretention",V61="Sloped sides"), IF(V59=2,0.013*V57, IF(AND(V59=6,V57<=2000),0.0059*V57-3.215, IF(AND(V59=6,V57>2000,V57<=10000),0.0097*V57-11.297, IF(AND(V59=6,V57>10000),0.012*V57, IF(AND(V59=12,V57<=2700),0.004*V57, IF(AND(V59=12,V57>2700,V57<=10000),0.0052*V57-12.092, IF(AND(V59=12,V57>10000),0.01*V57,NA()))))))), IF(AP57<=0,NA(),IF(OR(AO57="Permeable Pavement Facility",AO57="Vegetated Roof System",AO57="Rainwater Harvesting - Category 2", AO57="Rainwater Harvesting - Category 4"),H59, IF(AO57="Sidewalk/Trail Compost-Amended Strip",MAX(V57/H59, AP57*V57), AP57*V57)))) ->  | AR57: =IF(AO57="Single-family Residential Cisterns", "sf",INDEX(Lookup!$H$93:$H$219,MATCH(TRIM(CONCATENATE(AO57,V59,V61,V63)),Lookup!$E$93:$E$219,0))) ->  | AS57: =IF(AO57="New or Retained Trees", INDEX(Lookup!$G$93:$G$219,MATCH(TRIM(CONCATENATE(AO57,V59)),Lookup!$E$93:$E$219,0))*V61, IF(AO57="Single-family Residential Cisterns", INDEX(Lookup!$G$93:$G$219,MATCH(TRIM(CONCATENATE(AO57,IF(V57<400,0,IF(V57>4200,4201,ROUNDDOWN(V57,-2))))),Lookup!$E$93:$E$219,0))*V57, IF(AND(AO57="Sidewalk/Trail Compost-Amended Strip",OR(H59="",InfRate=0)),NA(), INDEX(Lookup!$G$93:$G$219,MATCH(TRIM(CONCATENATE(AO57,V59,V61,V63)),Lookup!$E$93:$E$219,0))*V57)))*7.48052 *IF(OR(AO57="Permeable Pavement Facility",AO57="Vegetated Roof System"),MIN(1,H59/(AP57*V57)),1) +IF(AO57="Permeable Pavement Facility",H59*2.1*7.48052,1) ->  | AT57: =IFERROR( IF(AO57="Single-family Residential Cisterns",INDEX(Lookup!$H$93:$H$219,MATCH(TRIM(CONCATENATE(AO57,IF(V57<400,0,IF(V57>4200,4201,ROUNDDOWN(V57,-2))))),Lookup!$E$93:$E$219,0)), IF(AO57="Sidewalk/Trail Compost-Amended Strip",ROUND(AQ57/(V57/H59),1) &" ft wide x "& ROUND(V57/H59,0)&" ft long", IF(OR(AO57="Rainwater Harvesting - Category 2",AO57="Rainwater Harvesting - Category 4")," required minimum live storage", IF(AO57="Water Quality BMP in lieu of NIB","See Plan", IF(AND(V59="",V61="",V63=""),"",TRIM(V61&" "&AP61&" "&V59&" "&AP59&" "&V63&" "&AP63)))))),"") -> 
B59: =IFERROR( IF(AO57="Permeable Pavement Facility","Facility Area (sf)", IF(AO57="Vegetated Roof System","Vegetated Area (sf)", IF(AO57="Sidewalk/Trail Compost-Amended Strip","Sidewalk/Trail Width (ft)", IF(OR(AO57="Rainwater Harvesting - Category 2",AO57="Rainwater Harvesting - Category 4"),"Live Storage Volume (gal)", "")))),"") ->  | N59: =IFERROR(INDEX(Lookup!$C$70:$C$90,MATCH(AO57,Lookup!$A$70:$A$90,0)),"") ->  | AC59: =IFERROR(TEXT(AS57,"#,##0")&" gal managed/year",IFERROR(IF(AP57=0,"Infiltration rate too low.",""),"")) ->  | AO59: =TRIM(SUBSTITUTE(SUBSTITUTE(SUBSTITUTE(AO57," ",""),"-",""),"/","")&"List1") ->  | AP59: =IFERROR(INDEX(Lookup!$F$70:$F$90,MATCH(AO57,Lookup!$A$70:$A$90,0)),"") -> 
N60: =IFERROR(INDEX(Lookup!$D$70:$D$90,MATCH(AO53,Lookup!$A$70:$A$90,0)),"") -> 
B61: =IFERROR( IF(OR(AO57="Permeable Pavement Facility",AO57="Vegetated Roof System"),"Minimum Facility Area "&TEXT((AP57*V57),"#,###")&" sf", IF(OR(AO57="Rainwater Harvesting - Category 2",AO57="Rainwater Harvesting - Category 4"),"Continuous runoff modeling required by", "")),"") ->  | N61: =IFERROR(INDEX(Lookup!$D$70:$D$90,MATCH(AO57,Lookup!$A$70:$A$90,0)),"") ->  | AC61: =IFERROR(IF(AO57="Sidewalk/Trail Compost-Amended Strip",ROUND(AQ57/(V57/H59),1) &" ft wide compost-amended strip",""),"") ->  | AO61: =TRIM(SUBSTITUTE(SUBSTITUTE(SUBSTITUTE(AO57," ",""),"-",""),"/","")&"List2") ->  | AP61: =IFERROR(INDEX(Lookup!$G$70:$G$90,MATCH(AO57,Lookup!$A$70:$A$90,0)),"") -> 
B63: =IFERROR(IF(OR(AO57="Rainwater Harvesting - Category 2",AO57="Rainwater Harvesting - Category 4"),"professional engineer.", ""),"") ->  | N63: =IFERROR(INDEX(Lookup!$E$70:$E$90,MATCH(AO57,Lookup!$A$70:$A$90,0)),"") ->  | AC63: =IFERROR(IF(AO57="Sidewalk/Trail Compost-Amended Strip",IF(AND(AC61="",H59<>""),"","along full "& ROUND(V57/H59,0) &" ft trail/sidewalk"),""),"") ->  | AO63: =TRIM(SUBSTITUTE(SUBSTITUTE(SUBSTITUTE(AO57," ",""),"-",""),"/","")&"List3") -> 
B65: =IFERROR(IF(INDEX($K$7:$K$46,MATCH(AN65,$AO$7:$AO$46,0))="","",INDEX($K$7:$K$46,MATCH(AN65,$AO$7:$AO$46,0))),"") ->  | N65: =IF(B65="","",IF(AO65="Vegetated Roof System","Roof Area","Contributing Area (sf)")) ->  | V65: =IF(B65="","",SUMIF($AO$7:$AO$46,AN65,$F$7:$I$46)) ->  | AC65: =IFERROR(IF(AO65="Water Quality BMP in lieu of NIB","Submit sizing documentation separately.", IF(AP65=-999,"Configuration not allowed.",IF(AP65=0,"Configuration not allowed.",IF(AO65="New or Retained Trees","As many as feasible.", IF(AP65="equation",TEXT(AQ65,"#,##0")&" "&AR65, TEXT(IF(OR(AO65="Permeable Pavement Facility",AO65="Vegetated Roof System",AO65="Rainwater Harvesting - Category 2", AO65="Rainwater Harvesting - Category 4"),H67, IF(AO65="Sidewalk/Trail Compost-Amended Strip",MAX(V65/H67,AP65*V65), AP65*V65)),"#,##0")&" "&AR65))))),"") ->  | AN65: 3 | AO65: =INDEX($AP$7:$AP$46,MATCH(AN65,$AO$7:$AO$46,0)) ->  | AP65: =IF(AO65="New or Retained Trees", INDEX(Lookup!$F$93:$F$219,MATCH(TRIM(CONCATENATE(AO65,V67)),Lookup!$E$93:$E$219,0)), IF(AO65="Single-family Residential Cisterns", INDEX(Lookup!$F$93:$F$219,MATCH(TRIM(CONCATENATE(AO65,IF(V65<400,0,IF(V65>4200,4201,ROUNDDOWN(V65,-2))))),Lookup!$E$93:$E$219,0)), IF(AO65="Sidewalk/Trail Compost-Amended Strip", IF(H67="",NA(),IF(H67<10,Lookup!$F$95,Lookup!$F$94)), IF(AND(AO65="Non-Infiltrating Bioretention",V69="Sloped sides"), IF(V67=2,0.013, IF(AND(V67=12,V65<=2000),0.004,"equation")), INDEX(Lookup!$F$93:$F$219,MATCH(TRIM(CONCATENATE(AO65,V67,V69,V71)),Lookup!$E$93:$E$219,0)))))) ->  | AQ65: =IF(AND(AO65="Non-Infiltrating Bioretention",V69="Sloped sides"), IF(V67=2,0.013*V65, IF(AND(V67=6,V65<=2000),0.0059*V65-3.215, IF(AND(V67=6,V65>2000,V65<=10000),0.0097*V65-11.297, IF(AND(V67=6,V65>10000),0.012*V65, IF(AND(V67=12,V65<=2700),0.004*V65, IF(AND(V67=12,V65>2700,V65<=10000),0.0052*V65-12.092, IF(AND(V67=12,V65>10000),0.01*V65,NA()))))))), IF(AP65<=0,NA(),IF(OR(AO65="Permeable Pavement Facility",AO65="Vegetated Roof System",AO65="Rainwater Harvesting - Category 2", AO65="Rainwater Harvesting - Category 4"),H67, IF(AO65="Sidewalk/Trail Compost-Amended Strip",MAX(V65/H67, AP65*V65), AP65*V65)))) ->  | AR65: =IF(AO65="Single-family Residential Cisterns", "sf",INDEX(Lookup!$H$93:$H$219,MATCH(TRIM(CONCATENATE(AO65,V67,V69,V71)),Lookup!$E$93:$E$219,0))) ->  | AS65: =IF(AO65="New or Retained Trees", INDEX(Lookup!$G$93:$G$219,MATCH(TRIM(CONCATENATE(AO65,V67)),Lookup!$E$93:$E$219,0))*V69, IF(AO65="Single-family Residential Cisterns", INDEX(Lookup!$G$93:$G$219,MATCH(TRIM(CONCATENATE(AO65,IF(V65<400,0,IF(V65>4200,4201,ROUNDDOWN(V65,-2))))),Lookup!$E$93:$E$219,0))*V65, IF(AND(AO65="Sidewalk/Trail Compost-Amended Strip",OR(H67="",InfRate=0)),NA(), INDEX(Lookup!$G$93:$G$219,MATCH(TRIM(CONCATENATE(AO65,V67,V69,V71)),Lookup!$E$93:$E$219,0))*V65)))*7.48052 *IF(OR(AO65="Permeable Pavement Facility",AO65="Vegetated Roof System"),MIN(1,H67/(AP65*V65)),1) +IF(AO65="Permeable Pavement Facility",H67*2.1*7.48052,1) ->  | AT65: =IFERROR( IF(AO65="Single-family Residential Cisterns",INDEX(Lookup!$H$93:$H$219,MATCH(TRIM(CONCATENATE(AO65,IF(V65<400,0,IF(V65>4200,4201,ROUNDDOWN(V65,-2))))),Lookup!$E$93:$E$219,0)), IF(AO65="Sidewalk/Trail Compost-Amended Strip",ROUND(AQ65/(V65/H67),1) &" ft wide x "& ROUND(V65/H67,0)&" ft long", IF(OR(AO65="Rainwater Harvesting - Category 2",AO65="Rainwater Harvesting - Category 4")," required minimum live storage", IF(AO65="Water Quality BMP in lieu of NIB","See Plan", IF(AND(V67="",V69="",V71=""),"",TRIM(V69&" "&AP69&" "&V67&" "&AP67&" "&V71&" "&AP71)))))),"") -> 
B67: =IFERROR( IF(AO65="Permeable Pavement Facility","Facility Area (sf)", IF(AO65="Vegetated Roof System","Vegetated Area (sf)", IF(AO65="Sidewalk/Trail Compost-Amended Strip","Sidewalk/Trail Width (ft)", IF(OR(AO65="Rainwater Harvesting - Category 2",AO65="Rainwater Harvesting - Category 4"),"Live Storage Volume (gal)", "")))),"") ->  | N67: =IFERROR(INDEX(Lookup!$C$70:$C$90,MATCH(AO65,Lookup!$A$70:$A$90,0)),"") ->  | AC67: =IFERROR(TEXT(AS65,"#,##0")&" gal managed/year",IFERROR(IF(AP65=0,"Infiltration rate too low.",""),"")) ->  | AO67: =TRIM(SUBSTITUTE(SUBSTITUTE(SUBSTITUTE(AO65," ",""),"-",""),"/","")&"List1") ->  | AP67: =IFERROR(INDEX(Lookup!$F$70:$F$90,MATCH(AO65,Lookup!$A$70:$A$90,0)),"") -> 
B69: =IFERROR( IF(OR(AO65="Permeable Pavement Facility",AO65="Vegetated Roof System"),"Minimum Facility Area "&TEXT((AP65*V65),"#,###")&" sf", IF(OR(AO65="Rainwater Harvesting - Category 2",AO65="Rainwater Harvesting - Category 4"),"Continuous runoff modeling required by", "")),"") ->  | N69: =IFERROR(INDEX(Lookup!$D$70:$D$90,MATCH(AO65,Lookup!$A$70:$A$90,0)),"") ->  | AC69: =IFERROR(IF(AO65="Sidewalk/Trail Compost-Amended Strip",ROUND(AQ65/(V65/H67),1) &" ft wide compost-amended strip",""),"") ->  | AO69: =TRIM(SUBSTITUTE(SUBSTITUTE(SUBSTITUTE(AO65," ",""),"-",""),"/","")&"List2") ->  | AP69: =IFERROR(INDEX(Lookup!$G$70:$G$90,MATCH(AO65,Lookup!$A$70:$A$90,0)),"") -> 
B71: =IFERROR(IF(OR(AO65="Rainwater Harvesting - Category 2",AO65="Rainwater Harvesting - Category 4"),"professional engineer.", ""),"") ->  | N71: =IFERROR(INDEX(Lookup!$E$70:$E$90,MATCH(AO65,Lookup!$A$70:$A$90,0)),"") ->  | AC71: =IFERROR(IF(AO65="Sidewalk/Trail Compost-Amended Strip",IF(AND(AC69="",H67<>""),"","along full "& ROUND(V65/H67,0) &" ft trail/sidewalk"),""),"") ->  | AO71: =TRIM(SUBSTITUTE(SUBSTITUTE(SUBSTITUTE(AO65," ",""),"-",""),"/","")&"List3") -> 
B73: =IFERROR(IF(INDEX($K$7:$K$46,MATCH(AN73,$AO$7:$AO$46,0))="","",INDEX($K$7:$K$46,MATCH(AN73,$AO$7:$AO$46,0))),"") ->  | N73: =IF(B73="","",IF(AO73="Vegetated Roof System","Roof Area","Contributing Area (sf)")) ->  | V73: =IF(B73="","",SUMIF($AO$7:$AO$46,AN73,$F$7:$I$46)) ->  | AC73: =IFERROR(IF(AO73="Water Quality BMP in lieu of NIB","Submit sizing documentation separately.", IF(AP73=-999,"Configuration not allowed.",IF(AP73=0,"Configuration not allowed.",IF(AO73="New or Retained Trees","As many as feasible.", IF(AP73="equation",TEXT(AQ73,"#,##0")&" "&AR73, TEXT(IF(OR(AO73="Permeable Pavement Facility",AO73="Vegetated Roof System",AO73="Rainwater Harvesting - Category 2", AO73="Rainwater Harvesting - Category 4"),H75, IF(AO73="Sidewalk/Trail Compost-Amended Strip",MAX(V73/H75,AP73*V73), AP73*V73)),"#,##0")&" "&AR73))))),"") ->  | AN73: 4 | AO73: =INDEX($AP$7:$AP$46,MATCH(AN73,$AO$7:$AO$46,0)) ->  | AP73: =IF(AO73="New or Retained Trees", INDEX(Lookup!$F$93:$F$219,MATCH(TRIM(CONCATENATE(AO73,V75)),Lookup!$E$93:$E$219,0)), IF(AO73="Single-family Residential Cisterns", INDEX(Lookup!$F$93:$F$219,MATCH(TRIM(CONCATENATE(AO73,IF(V73<400,0,IF(V73>4200,4201,ROUNDDOWN(V73,-2))))),Lookup!$E$93:$E$219,0)), IF(AO73="Sidewalk/Trail Compost-Amended Strip", IF(H75="",NA(),IF(H75<10,Lookup!$F$95,Lookup!$F$94)), IF(AND(AO73="Non-Infiltrating Bioretention",V77="Sloped sides"), IF(V75=2,0.013, IF(AND(V75=12,V73<=2000),0.004,"equation")), INDEX(Lookup!$F$93:$F$219,MATCH(TRIM(CONCATENATE(AO73,V75,V77,V79)),Lookup!$E$93:$E$219,0)))))) ->  | AQ73: =IF(AND(AO73="Non-Infiltrating Bioretention",V77="Sloped sides"), IF(V75=2,0.013*V73, IF(AND(V75=6,V73<=2000),0.0059*V73-3.215, IF(AND(V75=6,V73>2000,V73<=10000),0.0097*V73-11.297, IF(AND(V75=6,V73>10000),0.012*V73, IF(AND(V75=12,V73<=2700),0.004*V73, IF(AND(V75=12,V73>2700,V73<=10000),0.0052*V73-12.092, IF(AND(V75=12,V73>10000),0.01*V73,NA()))))))), IF(AP73<=0,NA(),IF(OR(AO73="Permeable Pavement Facility",AO73="Vegetated Roof System",AO73="Rainwater Harvesting - Category 2", AO73="Rainwater Harvesting - Category 4"),H75, IF(AO73="Sidewalk/Trail Compost-Amended Strip",MAX(V73/H75, AP73*V73), AP73*V73)))) ->  | AR73: =IF(AO73="Single-family Residential Cisterns", "sf",INDEX(Lookup!$H$93:$H$219,MATCH(TRIM(CONCATENATE(AO73,V75,V77,V79)),Lookup!$E$93:$E$219,0))) ->  | AS73: =IF(AO73="New or Retained Trees", INDEX(Lookup!$G$93:$G$219,MATCH(TRIM(CONCATENATE(AO73,V75)),Lookup!$E$93:$E$219,0))*V77, IF(AO73="Single-family Residential Cisterns", INDEX(Lookup!$G$93:$G$219,MATCH(TRIM(CONCATENATE(AO73,IF(V73<400,0,IF(V73>4200,4201,ROUNDDOWN(V73,-2))))),Lookup!$E$93:$E$219,0))*V73, IF(AND(AO73="Sidewalk/Trail Compost-Amended Strip",OR(H75="",InfRate=0)),NA(), INDEX(Lookup!$G$93:$G$219,MATCH(TRIM(CONCATENATE(AO73,V75,V77,V79)),Lookup!$E$93:$E$219,0))*V73)))*7.48052 *IF(OR(AO73="Permeable Pavement Facility",AO73="Vegetated Roof System"),MIN(1,H75/(AP73*V73)),1) +IF(AO73="Permeable Pavement Facility",H75*2.1*7.48052,1) ->  | AT73: =IFERROR( IF(AO73="Single-family Residential Cisterns",INDEX(Lookup!$H$93:$H$219,MATCH(TRIM(CONCATENATE(AO73,IF(V73<400,0,IF(V73>4200,4201,ROUNDDOWN(V73,-2))))),Lookup!$E$93:$E$219,0)), IF(AO73="Sidewalk/Trail Compost-Amended Strip",ROUND(AQ73/(V73/H75),1) &" ft wide x "& ROUND(V73/H75,0)&" ft long", IF(OR(AO73="Rainwater Harvesting - Category 2",AO73="Rainwater Harvesting - Category 4")," required minimum live storage", IF(AO73="Water Quality BMP in lieu of NIB","See Plan", IF(AND(V75="",V77="",V79=""),"",TRIM(V77&" "&AP77&" "&V75&" "&AP75&" "&V79&" "&AP79)))))),"") -> 
B75: =IFERROR( IF(AO73="Permeable Pavement Facility","Facility Area (sf)", IF(AO73="Vegetated Roof System","Vegetated Area (sf)", IF(AO73="Sidewalk/Trail Compost-Amended Strip","Sidewalk/Trail Width (ft)", IF(OR(AO73="Rainwater Harvesting - Category 2",AO73="Rainwater Harvesting - Category 4"),"Live Storage Volume (gal)", "")))),"") ->  | N75: =IFERROR(INDEX(Lookup!$C$70:$C$90,MATCH(AO73,Lookup!$A$70:$A$90,0)),"") ->  | AC75: =IFERROR(TEXT(AS73,"#,##0")&" gal managed/year",IFERROR(IF(AP73=0,"Infiltration rate too low.",""),"")) ->  | AO75: =TRIM(SUBSTITUTE(SUBSTITUTE(SUBSTITUTE(AO73," ",""),"-",""),"/","")&"List1") ->  | AP75: =IFERROR(INDEX(Lookup!$F$70:$F$90,MATCH(AO73,Lookup!$A$70:$A$90,0)),"") -> 
B77: =IFERROR( IF(OR(AO73="Permeable Pavement Facility",AO73="Vegetated Roof System"),"Minimum Facility Area "&TEXT((AP73*V73),"#,###")&" sf", IF(OR(AO73="Rainwater Harvesting - Category 2",AO73="Rainwater Harvesting - Category 4"),"Continuous runoff modeling required by", "")),"") ->  | N77: =IFERROR(INDEX(Lookup!$D$70:$D$90,MATCH(AO73,Lookup!$A$70:$A$90,0)),"") ->  | AC77: =IFERROR(IF(AO73="Sidewalk/Trail Compost-Amended Strip",ROUND(AQ73/(V73/H75),1) &" ft wide compost-amended strip",""),"") ->  | AO77: =TRIM(SUBSTITUTE(SUBSTITUTE(SUBSTITUTE(AO73," ",""),"-",""),"/","")&"List2") ->  | AP77: =IFERROR(INDEX(Lookup!$G$70:$G$90,MATCH(AO73,Lookup!$A$70:$A$90,0)),"") -> 
B79: =IFERROR(IF(OR(AO73="Rainwater Harvesting - Category 2",AO73="Rainwater Harvesting - Category 4"),"professional engineer.", ""),"") ->  | N79: =IFERROR(INDEX(Lookup!$E$70:$E$90,MATCH(AO73,Lookup!$A$70:$A$90,0)),"") ->  | AC79: =IFERROR(IF(AO73="Sidewalk/Trail Compost-Amended Strip",IF(AND(AC77="",H75<>""),"","along full "& ROUND(V73/H75,0) &" ft trail/sidewalk"),""),"") ->  | AO79: =TRIM(SUBSTITUTE(SUBSTITUTE(SUBSTITUTE(AO73," ",""),"-",""),"/","")&"List3") -> 
B81: =IFERROR(IF(INDEX($K$7:$K$46,MATCH(AN81,$AO$7:$AO$46,0))="","",INDEX($K$7:$K$46,MATCH(AN81,$AO$7:$AO$46,0))),"") ->  | N81: =IF(B81="","",IF(AO81="Vegetated Roof System","Roof Area","Contributing Area (sf)")) ->  | V81: =IF(B81="","",SUMIF($AO$7:$AO$46,AN81,$F$7:$I$46)) ->  | AC81: =IFERROR(IF(AO81="Water Quality BMP in lieu of NIB","Submit sizing documentation separately.", IF(AP81=-999,"Configuration not allowed.",IF(AP81=0,"Configuration not allowed.",IF(AO81="New or Retained Trees","As many as feasible.", IF(AP81="equation",TEXT(AQ81,"#,##0")&" "&AR81, TEXT(IF(OR(AO81="Permeable Pavement Facility",AO81="Vegetated Roof System",AO81="Rainwater Harvesting - Category 2", AO81="Rainwater Harvesting - Category 4"),H83, IF(AO81="Sidewalk/Trail Compost-Amended Strip",MAX(V81/H83,AP81*V81), AP81*V81)),"#,##0")&" "&AR81))))),"") ->  | AN81: 5 | AO81: =INDEX($AP$7:$AP$46,MATCH(AN81,$AO$7:$AO$46,0)) ->  | AP81: =IF(AO81="New or Retained Trees", INDEX(Lookup!$F$93:$F$219,MATCH(TRIM(CONCATENATE(AO81,V83)),Lookup!$E$93:$E$219,0)), IF(AO81="Single-family Residential Cisterns", INDEX(Lookup!$F$93:$F$219,MATCH(TRIM(CONCATENATE(AO81,IF(V81<400,0,IF(V81>4200,4201,ROUNDDOWN(V81,-2))))),Lookup!$E$93:$E$219,0)), IF(AO81="Sidewalk/Trail Compost-Amended Strip", IF(H83="",NA(),IF(H83<10,Lookup!$F$95,Lookup!$F$94)), IF(AND(AO81="Non-Infiltrating Bioretention",V85="Sloped sides"), IF(V83=2,0.013, IF(AND(V83=12,V81<=2000),0.004,"equation")), INDEX(Lookup!$F$93:$F$219,MATCH(TRIM(CONCATENATE(AO81,V83,V85,V87)),Lookup!$E$93:$E$219,0)))))) ->  | AQ81: =IF(AND(AO81="Non-Infiltrating Bioretention",V85="Sloped sides"), IF(V83=2,0.013*V81, IF(AND(V83=6,V81<=2000),0.0059*V81-3.215, IF(AND(V83=6,V81>2000,V81<=10000),0.0097*V81-11.297, IF(AND(V83=6,V81>10000),0.012*V81, IF(AND(V83=12,V81<=2700),0.004*V81, IF(AND(V83=12,V81>2700,V81<=10000),0.0052*V81-12.092, IF(AND(V83=12,V81>10000),0.01*V81,NA()))))))), IF(AP81<=0,NA(),IF(OR(AO81="Permeable Pavement Facility",AO81="Vegetated Roof System",AO81="Rainwater Harvesting - Category 2", AO81="Rainwater Harvesting - Category 4"),H83, IF(AO81="Sidewalk/Trail Compost-Amended Strip",MAX(V81/H83, AP81*V81), AP81*V81)))) ->  | AR81: =IF(AO81="Single-family Residential Cisterns", "sf",INDEX(Lookup!$H$93:$H$219,MATCH(TRIM(CONCATENATE(AO81,V83,V85,V87)),Lookup!$E$93:$E$219,0))) ->  | AS81: =IF(AO81="New or Retained Trees", INDEX(Lookup!$G$93:$G$219,MATCH(TRIM(CONCATENATE(AO81,V83)),Lookup!$E$93:$E$219,0))*V85, IF(AO81="Single-family Residential Cisterns", INDEX(Lookup!$G$93:$G$219,MATCH(TRIM(CONCATENATE(AO81,IF(V81<400,0,IF(V81>4200,4201,ROUNDDOWN(V81,-2))))),Lookup!$E$93:$E$219,0))*V81, IF(AND(AO81="Sidewalk/Trail Compost-Amended Strip",OR(H83="",InfRate=0)),NA(), INDEX(Lookup!$G$93:$G$219,MATCH(TRIM(CONCATENATE(AO81,V83,V85,V87)),Lookup!$E$93:$E$219,0))*V81)))*7.48052 *IF(OR(AO81="Permeable Pavement Facility",AO81="Vegetated Roof System"),MIN(1,H83/(AP81*V81)),1) +IF(AO81="Permeable Pavement Facility",H83*2.1*7.48052,1) ->  | AT81: =IFERROR( IF(AO81="Single-family Residential Cisterns",INDEX(Lookup!$H$93:$H$219,MATCH(TRIM(CONCATENATE(AO81,IF(V81<400,0,IF(V81>4200,4201,ROUNDDOWN(V81,-2))))),Lookup!$E$93:$E$219,0)), IF(AO81="Sidewalk/Trail Compost-Amended Strip",ROUND(AQ81/(V81/H83),1) &" ft wide x "& ROUND(V81/H83,0)&" ft long", IF(OR(AO81="Rainwater Harvesting - Category 2",AO81="Rainwater Harvesting - Category 4")," required minimum live storage", IF(AO81="Water Quality BMP in lieu of NIB","See Plan", IF(AND(V83="",V85="",V87=""),"",TRIM(V85&" "&AP85&" "&V83&" "&AP83&" "&V87&" "&AP87)))))),"") -> 
B83: =IFERROR( IF(AO81="Permeable Pavement Facility","Facility Area (sf)", IF(AO81="Vegetated Roof System","Vegetated Area (sf)", IF(AO81="Sidewalk/Trail Compost-Amended Strip","Sidewalk/Trail Width (ft)", IF(OR(AO81="Rainwater Harvesting - Category 2",AO81="Rainwater Harvesting - Category 4"),"Live Storage Volume (gal)", "")))),"") ->  | N83: =IFERROR(INDEX(Lookup!$C$70:$C$90,MATCH(AO81,Lookup!$A$70:$A$90,0)),"") ->  | AC83: =IFERROR(TEXT(AS81,"#,##0")&" gal managed/year",IFERROR(IF(AP81=0,"Infiltration rate too low.",""),"")) ->  | AO83: =TRIM(SUBSTITUTE(SUBSTITUTE(SUBSTITUTE(AO81," ",""),"-",""),"/","")&"List1") ->  | AP83: =IFERROR(INDEX(Lookup!$F$70:$F$90,MATCH(AO81,Lookup!$A$70:$A$90,0)),"") -> 
B85: =IFERROR( IF(OR(AO81="Permeable Pavement Facility",AO81="Vegetated Roof System"),"Minimum Facility Area "&TEXT((AP81*V81),"#,###")&" sf", IF(OR(AO81="Rainwater Harvesting - Category 2",AO81="Rainwater Harvesting - Category 4"),"Continuous runoff modeling required by", "")),"") ->  | N85: =IFERROR(INDEX(Lookup!$D$70:$D$90,MATCH(AO81,Lookup!$A$70:$A$90,0)),"") ->  | AC85: =IFERROR(IF(AO81="Sidewalk/Trail Compost-Amended Strip",ROUND(AQ81/(V81/H83),1) &" ft wide compost-amended strip",""),"") ->  | AO85: =TRIM(SUBSTITUTE(SUBSTITUTE(SUBSTITUTE(AO81," ",""),"-",""),"/","")&"List2") ->  | AP85: =IFERROR(INDEX(Lookup!$G$70:$G$90,MATCH(AO81,Lookup!$A$70:$A$90,0)),"") -> 
B87: =IFERROR(IF(OR(AO81="Rainwater Harvesting - Category 2",AO81="Rainwater Harvesting - Category 4"),"professional engineer.", ""),"") ->  | N87: =IFERROR(INDEX(Lookup!$E$70:$E$90,MATCH(AO81,Lookup!$A$70:$A$90,0)),"") ->  | AC87: =IFERROR(IF(AO81="Sidewalk/Trail Compost-Amended Strip",IF(AND(AC85="",H83<>""),"","along full "& ROUND(V81/H83,0) &" ft trail/sidewalk"),""),"") ->  | AO87: =TRIM(SUBSTITUTE(SUBSTITUTE(SUBSTITUTE(AO81," ",""),"-",""),"/","")&"List3") -> 
B89: =IFERROR(IF(INDEX($K$7:$K$46,MATCH(AN89,$AO$7:$AO$46,0))="","",INDEX($K$7:$K$46,MATCH(AN89,$AO$7:$AO$46,0))),"") ->  | N89: =IF(B89="","",IF(AO89="Vegetated Roof System","Roof Area","Contributing Area (sf)")) ->  | V89: =IF(B89="","",SUMIF($AO$7:$AO$46,AN89,$F$7:$I$46)) ->  | AC89: =IFERROR(IF(AO89="Water Quality BMP in lieu of NIB","Submit sizing documentation separately.", IF(AP89=-999,"Configuration not allowed.",IF(AP89=0,"Configuration not allowed.",IF(AO89="New or Retained Trees","As many as feasible.", IF(AP89="equation",TEXT(AQ89,"#,##0")&" "&AR89, TEXT(IF(OR(AO89="Permeable Pavement Facility",AO89="Vegetated Roof System",AO89="Rainwater Harvesting - Category 2", AO89="Rainwater Harvesting - Category 4"),H91, IF(AO89="Sidewalk/Trail Compost-Amended Strip",MAX(V89/H91,AP89*V89), AP89*V89)),"#,##0")&" "&AR89))))),"") ->  | AN89: 6 | AO89: =INDEX($AP$7:$AP$46,MATCH(AN89,$AO$7:$AO$46,0)) ->  | AP89: =IF(AO89="New or Retained Trees", INDEX(Lookup!$F$93:$F$219,MATCH(TRIM(CONCATENATE(AO89,V91)),Lookup!$E$93:$E$219,0)), IF(AO89="Single-family Residential Cisterns", INDEX(Lookup!$F$93:$F$219,MATCH(TRIM(CONCATENATE(AO89,IF(V89<400,0,IF(V89>4200,4201,ROUNDDOWN(V89,-2))))),Lookup!$E$93:$E$219,0)), IF(AO89="Sidewalk/Trail Compost-Amended Strip", IF(H91="",NA(),IF(H91<10,Lookup!$F$95,Lookup!$F$94)), IF(AND(AO89="Non-Infiltrating Bioretention",V93="Sloped sides"), IF(V91=2,0.013, IF(AND(V91=12,V89<=2000),0.004,"equation")), INDEX(Lookup!$F$93:$F$219,MATCH(TRIM(CONCATENATE(AO89,V91,V93,V95)),Lookup!$E$93:$E$219,0)))))) ->  | AQ89: =IF(AND(AO89="Non-Infiltrating Bioretention",V93="Sloped sides"), IF(V91=2,0.013*V89, IF(AND(V91=6,V89<=2000),0.0059*V89-3.215, IF(AND(V91=6,V89>2000,V89<=10000),0.0097*V89-11.297, IF(AND(V91=6,V89>10000),0.012*V89, IF(AND(V91=12,V89<=2700),0.004*V89, IF(AND(V91=12,V89>2700,V89<=10000),0.0052*V89-12.092, IF(AND(V91=12,V89>10000),0.01*V89,NA()))))))), IF(AP89<=0,NA(),IF(OR(AO89="Permeable Pavement Facility",AO89="Vegetated Roof System",AO89="Rainwater Harvesting - Category 2", AO89="Rainwater Harvesting - Category 4"),H91, IF(AO89="Sidewalk/Trail Compost-Amended Strip",MAX(V89/H91, AP89*V89), AP89*V89)))) ->  | AR89: =IF(AO89="Single-family Residential Cisterns", "sf",INDEX(Lookup!$H$93:$H$219,MATCH(TRIM(CONCATENATE(AO89,V91,V93,V95)),Lookup!$E$93:$E$219,0))) ->  | AS89: =IF(AO89="New or Retained Trees", INDEX(Lookup!$G$93:$G$219,MATCH(TRIM(CONCATENATE(AO89,V91)),Lookup!$E$93:$E$219,0))*V93, IF(AO89="Single-family Residential Cisterns", INDEX(Lookup!$G$93:$G$219,MATCH(TRIM(CONCATENATE(AO89,IF(V89<400,0,IF(V89>4200,4201,ROUNDDOWN(V89,-2))))),Lookup!$E$93:$E$219,0))*V89, IF(AND(AO89="Sidewalk/Trail Compost-Amended Strip",OR(H91="",InfRate=0)),NA(), INDEX(Lookup!$G$93:$G$219,MATCH(TRIM(CONCATENATE(AO89,V91,V93,V95)),Lookup!$E$93:$E$219,0))*V89)))*7.48052 *IF(OR(AO89="Permeable Pavement Facility",AO89="Vegetated Roof System"),MIN(1,H91/(AP89*V89)),1) +IF(AO89="Permeable Pavement Facility",H91*2.1*7.48052,1) ->  | AT89: =IFERROR( IF(AO89="Single-family Residential Cisterns",INDEX(Lookup!$H$93:$H$219,MATCH(TRIM(CONCATENATE(AO89,IF(V89<400,0,IF(V89>4200,4201,ROUNDDOWN(V89,-2))))),Lookup!$E$93:$E$219,0)), IF(AO89="Sidewalk/Trail Compost-Amended Strip",ROUND(AQ89/(V89/H91),1) &" ft wide x "& ROUND(V89/H91,0)&" ft long", IF(OR(AO89="Rainwater Harvesting - Category 2",AO89="Rainwater Harvesting - Category 4")," required minimum live storage", IF(AO89="Water Quality BMP in lieu of NIB","See Plan", IF(AND(V91="",V93="",V95=""),"",TRIM(V93&" "&AP93&" "&V91&" "&AP91&" "&V95&" "&AP95)))))),"") -> 
B91: =IFERROR( IF(AO89="Permeable Pavement Facility","Facility Area (sf)", IF(AO89="Vegetated Roof System","Vegetated Area (sf)", IF(AO89="Sidewalk/Trail Compost-Amended Strip","Sidewalk/Trail Width (ft)", IF(OR(AO89="Rainwater Harvesting - Category 2",AO89="Rainwater Harvesting - Category 4"),"Live Storage Volume (gal)", "")))),"") ->  | N91: =IFERROR(INDEX(Lookup!$C$70:$C$90,MATCH(AO89,Lookup!$A$70:$A$90,0)),"") ->  | AC91: =IFERROR(TEXT(AS89,"#,##0")&" gal managed/year",IFERROR(IF(AP89=0,"Infiltration rate too low.",""),"")) ->  | AO91: =TRIM(SUBSTITUTE(SUBSTITUTE(SUBSTITUTE(AO89," ",""),"-",""),"/","")&"List1") ->  | AP91: =IFERROR(INDEX(Lookup!$F$70:$F$90,MATCH(AO89,Lookup!$A$70:$A$90,0)),"") -> 
B93: =IFERROR( IF(OR(AO89="Permeable Pavement Facility",AO89="Vegetated Roof System"),"Minimum Facility Area "&TEXT((AP89*V89),"#,###")&" sf", IF(OR(AO89="Rainwater Harvesting - Category 2",AO89="Rainwater Harvesting - Category 4"),"Continuous runoff modeling required by", "")),"") ->  | N93: =IFERROR(INDEX(Lookup!$D$70:$D$90,MATCH(AO89,Lookup!$A$70:$A$90,0)),"") ->  | AC93: =IFERROR(IF(AO89="Sidewalk/Trail Compost-Amended Strip",ROUND(AQ89/(V89/H91),1) &" ft wide compost-amended strip",""),"") ->  | AO93: =TRIM(SUBSTITUTE(SUBSTITUTE(SUBSTITUTE(AO89," ",""),"-",""),"/","")&"List2") ->  | AP93: =IFERROR(INDEX(Lookup!$G$70:$G$90,MATCH(AO89,Lookup!$A$70:$A$90,0)),"") -> 
B95: =IFERROR(IF(OR(AO89="Rainwater Harvesting - Category 2",AO89="Rainwater Harvesting - Category 4"),"professional engineer.", ""),"") ->  | N95: =IFERROR(INDEX(Lookup!$E$70:$E$90,MATCH(AO89,Lookup!$A$70:$A$90,0)),"") ->  | AC95: =IFERROR(IF(AO89="Sidewalk/Trail Compost-Amended Strip",IF(AND(AC93="",H91<>""),"","along full "& ROUND(V89/H91,0) &" ft trail/sidewalk"),""),"") ->  | AO95: =TRIM(SUBSTITUTE(SUBSTITUTE(SUBSTITUTE(AO89," ",""),"-",""),"/","")&"List3") -> 
B97: =IFERROR(IF(INDEX($K$7:$K$46,MATCH(AN97,$AO$7:$AO$46,0))="","",INDEX($K$7:$K$46,MATCH(AN97,$AO$7:$AO$46,0))),"") ->  | N97: =IF(B97="","",IF(AO97="Vegetated Roof System","Roof Area","Contributing Area (sf)")) ->  | V97: =IF(B97="","",SUMIF($AO$7:$AO$46,AN97,$F$7:$I$46)) ->  | AC97: =IFERROR(IF(AO97="Water Quality BMP in lieu of NIB","Submit sizing documentation separately.", IF(AP97=-999,"Configuration not allowed.",IF(AP97=0,"Configuration not allowed.",IF(AO97="New or Retained Trees","As many as feasible.", IF(AP97="equation",TEXT(AQ97,"#,##0")&" "&AR97, TEXT(IF(OR(AO97="Permeable Pavement Facility",AO97="Vegetated Roof System",AO97="Rainwater Harvesting - Category 2", AO97="Rainwater Harvesting - Category 4"),H99, IF(AO97="Sidewalk/Trail Compost-Amended Strip",MAX(V97/H99,AP97*V97), AP97*V97)),"#,##0")&" "&AR97))))),"") ->  | AN97: 7 | AO97: =INDEX($AP$7:$AP$46,MATCH(AN97,$AO$7:$AO$46,0)) ->  | AP97: =IF(AO97="New or Retained Trees", INDEX(Lookup!$F$93:$F$219,MATCH(TRIM(CONCATENATE(AO97,V99)),Lookup!$E$93:$E$219,0)), IF(AO97="Single-family Residential Cisterns", INDEX(Lookup!$F$93:$F$219,MATCH(TRIM(CONCATENATE(AO97,IF(V97<400,0,IF(V97>4200,4201,ROUNDDOWN(V97,-2))))),Lookup!$E$93:$E$219,0)), IF(AO97="Sidewalk/Trail Compost-Amended Strip", IF(H99="",NA(),IF(H99<10,Lookup!$F$95,Lookup!$F$94)), IF(AND(AO97="Non-Infiltrating Bioretention",V101="Sloped sides"), IF(V99=2,0.013, IF(AND(V99=12,V97<=2000),0.004,"equation")), INDEX(Lookup!$F$93:$F$219,MATCH(TRIM(CONCATENATE(AO97,V99,V101,V103)),Lookup!$E$93:$E$219,0)))))) ->  | AQ97: =IF(AND(AO97="Non-Infiltrating Bioretention",V101="Sloped sides"), IF(V99=2,0.013*V97, IF(AND(V99=6,V97<=2000),0.0059*V97-3.215, IF(AND(V99=6,V97>2000,V97<=10000),0.0097*V97-11.297, IF(AND(V99=6,V97>10000),0.012*V97, IF(AND(V99=12,V97<=2700),0.004*V97, IF(AND(V99=12,V97>2700,V97<=10000),0.0052*V97-12.092, IF(AND(V99=12,V97>10000),0.01*V97,NA()))))))), IF(AP97<=0,NA(),IF(OR(AO97="Permeable Pavement Facility",AO97="Vegetated Roof System",AO97="Rainwater Harvesting - Category 2", AO97="Rainwater Harvesting - Category 4"),H99, IF(AO97="Sidewalk/Trail Compost-Amended Strip",MAX(V97/H99, AP97*V97), AP97*V97)))) ->  | AR97: =IF(AO97="Single-family Residential Cisterns", "sf",INDEX(Lookup!$H$93:$H$219,MATCH(TRIM(CONCATENATE(AO97,V99,V101,V103)),Lookup!$E$93:$E$219,0))) ->  | AS97: =IF(AO97="New or Retained Trees", INDEX(Lookup!$G$93:$G$219,MATCH(TRIM(CONCATENATE(AO97,V99)),Lookup!$E$93:$E$219,0))*V101, IF(AO97="Single-family Residential Cisterns", INDEX(Lookup!$G$93:$G$219,MATCH(TRIM(CONCATENATE(AO97,IF(V97<400,0,IF(V97>4200,4201,ROUNDDOWN(V97,-2))))),Lookup!$E$93:$E$219,0))*V97, IF(AND(AO97="Sidewalk/Trail Compost-Amended Strip",OR(H99="",InfRate=0)),NA(), INDEX(Lookup!$G$93:$G$219,MATCH(TRIM(CONCATENATE(AO97,V99,V101,V103)),Lookup!$E$93:$E$219,0))*V97)))*7.48052 *IF(OR(AO97="Permeable Pavement Facility",AO97="Vegetated Roof System"),MIN(1,H99/(AP97*V97)),1) +IF(AO97="Permeable Pavement Facility",H99*2.1*7.48052,1) ->  | AT97: =IFERROR( IF(AO97="Single-family Residential Cisterns",INDEX(Lookup!$H$93:$H$219,MATCH(TRIM(CONCATENATE(AO97,IF(V97<400,0,IF(V97>4200,4201,ROUNDDOWN(V97,-2))))),Lookup!$E$93:$E$219,0)), IF(AO97="Sidewalk/Trail Compost-Amended Strip",ROUND(AQ97/(V97/H99),1) &" ft wide x "& ROUND(V97/H99,0)&" ft long", IF(OR(AO97="Rainwater Harvesting - Category 2",AO97="Rainwater Harvesting - Category 4")," required minimum live storage", IF(AO97="Water Quality BMP in lieu of NIB","See Plan", IF(AND(V99="",V101="",V103=""),"",TRIM(V101&" "&AP101&" "&V99&" "&AP99&" "&V103&" "&AP103)))))),"") -> 
B99: =IFERROR( IF(AO97="Permeable Pavement Facility","Facility Area (sf)", IF(AO97="Vegetated Roof System","Vegetated Area (sf)", IF(AO97="Sidewalk/Trail Compost-Amended Strip","Sidewalk/Trail Width (ft)", IF(OR(AO97="Rainwater Harvesting - Category 2",AO97="Rainwater Harvesting - Category 4"),"Live Storage Volume (gal)", "")))),"") ->  | N99: =IFERROR(INDEX(Lookup!$C$70:$C$90,MATCH(AO97,Lookup!$A$70:$A$90,0)),"") ->  | AC99: =IFERROR(TEXT(AS97,"#,##0")&" gal managed/year",IFERROR(IF(AP97=0,"Infiltration rate too low.",""),"")) ->  | AO99: =TRIM(SUBSTITUTE(SUBSTITUTE(SUBSTITUTE(AO97," ",""),"-",""),"/","")&"List1") ->  | AP99: =IFERROR(INDEX(Lookup!$F$70:$F$90,MATCH(AO97,Lookup!$A$70:$A$90,0)),"") -> 
B101: =IFERROR( IF(OR(AO97="Permeable Pavement Facility",AO97="Vegetated Roof System"),"Minimum Facility Area "&TEXT((AP97*V97),"#,###")&" sf", IF(OR(AO97="Rainwater Harvesting - Category 2",AO97="Rainwater Harvesting - Category 4"),"Continuous runoff modeling required by", "")),"") ->  | N101: =IFERROR(INDEX(Lookup!$D$70:$D$90,MATCH(AO97,Lookup!$A$70:$A$90,0)),"") ->  | AC101: =IFERROR(IF(AO97="Sidewalk/Trail Compost-Amended Strip",ROUND(AQ97/(V97/H99),1) &" ft wide compost-amended strip",""),"") ->  | AO101: =TRIM(SUBSTITUTE(SUBSTITUTE(SUBSTITUTE(AO97," ",""),"-",""),"/","")&"List2") ->  | AP101: =IFERROR(INDEX(Lookup!$G$70:$G$90,MATCH(AO97,Lookup!$A$70:$A$90,0)),"") -> 
B103: =IFERROR(IF(OR(AO97="Rainwater Harvesting - Category 2",AO97="Rainwater Harvesting - Category 4"),"professional engineer.", ""),"") ->  | N103: =IFERROR(INDEX(Lookup!$E$70:$E$90,MATCH(AO97,Lookup!$A$70:$A$90,0)),"") ->  | AC103: =IFERROR(IF(AO97="Sidewalk/Trail Compost-Amended Strip",IF(AND(AC101="",H99<>""),"","along full "& ROUND(V97/H99,0) &" ft trail/sidewalk"),""),"") ->  | AO103: =TRIM(SUBSTITUTE(SUBSTITUTE(SUBSTITUTE(AO97," ",""),"-",""),"/","")&"List3") -> 
B105: =IFERROR(IF(INDEX($K$7:$K$46,MATCH(AN105,$AO$7:$AO$46,0))="","",INDEX($K$7:$K$46,MATCH(AN105,$AO$7:$AO$46,0))),"") ->  | N105: =IF(B105="","",IF(AO105="Vegetated Roof System","Roof Area","Contributing Area (sf)")) ->  | V105: =IF(B105="","",SUMIF($AO$7:$AO$46,AN105,$F$7:$I$46)) ->  | AC105: =IFERROR(IF(AO105="Water Quality BMP in lieu of NIB","Submit sizing documentation separately.", IF(AP105=-999,"Configuration not allowed.",IF(AP105=0,"Configuration not allowed.",IF(AO105="New or Retained Trees","As many as feasible.", IF(AP105="equation",TEXT(AQ105,"#,##0")&" "&AR105, TEXT(IF(OR(AO105="Permeable Pavement Facility",AO105="Vegetated Roof System",AO105="Rainwater Harvesting - Category 2", AO105="Rainwater Harvesting - Category 4"),H107, IF(AO105="Sidewalk/Trail Compost-Amended Strip",MAX(V105/H107,AP105*V105), AP105*V105)),"#,##0")&" "&AR105))))),"") ->  | AN105: 8 | AO105: =INDEX($AP$7:$AP$46,MATCH(AN105,$AO$7:$AO$46,0)) ->  | AP105: =IF(AO105="New or Retained Trees", INDEX(Lookup!$F$93:$F$219,MATCH(TRIM(CONCATENATE(AO105,V107)),Lookup!$E$93:$E$219,0)), IF(AO105="Single-family Residential Cisterns", INDEX(Lookup!$F$93:$F$219,MATCH(TRIM(CONCATENATE(AO105,IF(V105<400,0,IF(V105>4200,4201,ROUNDDOWN(V105,-2))))),Lookup!$E$93:$E$219,0)), IF(AO105="Sidewalk/Trail Compost-Amended Strip", IF(H107="",NA(),IF(H107<10,Lookup!$F$95,Lookup!$F$94)), IF(AND(AO105="Non-Infiltrating Bioretention",V109="Sloped sides"), IF(V107=2,0.013, IF(AND(V107=12,V105<=2000),0.004,"equation")), INDEX(Lookup!$F$93:$F$219,MATCH(TRIM(CONCATENATE(AO105,V107,V109,V111)),Lookup!$E$93:$E$219,0)))))) ->  | AQ105: =IF(AND(AO105="Non-Infiltrating Bioretention",V109="Sloped sides"), IF(V107=2,0.013*V105, IF(AND(V107=6,V105<=2000),0.0059*V105-3.215, IF(AND(V107=6,V105>2000,V105<=10000),0.0097*V105-11.297, IF(AND(V107=6,V105>10000),0.012*V105, IF(AND(V107=12,V105<=2700),0.004*V105, IF(AND(V107=12,V105>2700,V105<=10000),0.0052*V105-12.092, IF(AND(V107=12,V105>10000),0.01*V105,NA()))))))), IF(AP105<=0,NA(),IF(OR(AO105="Permeable Pavement Facility",AO105="Vegetated Roof System",AO105="Rainwater Harvesting - Category 2", AO105="Rainwater Harvesting - Category 4"),H107, IF(AO105="Sidewalk/Trail Compost-Amended Strip",MAX(V105/H107, AP105*V105), AP105*V105)))) ->  | AR105: =IF(AO105="Single-family Residential Cisterns", "sf",INDEX(Lookup!$H$93:$H$219,MATCH(TRIM(CONCATENATE(AO105,V107,V109,V111)),Lookup!$E$93:$E$219,0))) ->  | AS105: =IF(AO105="New or Retained Trees", INDEX(Lookup!$G$93:$G$219,MATCH(TRIM(CONCATENATE(AO105,V107)),Lookup!$E$93:$E$219,0))*V109, IF(AO105="Single-family Residential Cisterns", INDEX(Lookup!$G$93:$G$219,MATCH(TRIM(CONCATENATE(AO105,IF(V105<400,0,IF(V105>4200,4201,ROUNDDOWN(V105,-2))))),Lookup!$E$93:$E$219,0))*V105, IF(AND(AO105="Sidewalk/Trail Compost-Amended Strip",OR(H107="",InfRate=0)),NA(), INDEX(Lookup!$G$93:$G$219,MATCH(TRIM(CONCATENATE(AO105,V107,V109,V111)),Lookup!$E$93:$E$219,0))*V105)))*7.48052 *IF(OR(AO105="Permeable Pavement Facility",AO105="Vegetated Roof System"),MIN(1,H107/(AP105*V105)),1) +IF(AO105="Permeable Pavement Facility",H107*2.1*7.48052,1) ->  | AT105: =IFERROR( IF(AO105="Single-family Residential Cisterns",INDEX(Lookup!$H$93:$H$219,MATCH(TRIM(CONCATENATE(AO105,IF(V105<400,0,IF(V105>4200,4201,ROUNDDOWN(V105,-2))))),Lookup!$E$93:$E$219,0)), IF(AO105="Sidewalk/Trail Compost-Amended Strip",ROUND(AQ105/(V105/H107),1) &" ft wide x "& ROUND(V105/H107,0)&" ft long", IF(OR(AO105="Rainwater Harvesting - Category 2",AO105="Rainwater Harvesting - Category 4")," required minimum live storage", IF(AO105="Water Quality BMP in lieu of NIB","See Plan", IF(AND(V107="",V109="",V111=""),"",TRIM(V109&" "&AP109&" "&V107&" "&AP107&" "&V111&" "&AP111)))))),"") -> 
B107: =IFERROR( IF(AO105="Permeable Pavement Facility","Facility Area (sf)", IF(AO105="Vegetated Roof System","Vegetated Area (sf)", IF(AO105="Sidewalk/Trail Compost-Amended Strip","Sidewalk/Trail Width (ft)", IF(OR(AO105="Rainwater Harvesting - Category 2",AO105="Rainwater Harvesting - Category 4"),"Live Storage Volume (gal)", "")))),"") ->  | N107: =IFERROR(INDEX(Lookup!$C$70:$C$90,MATCH(AO105,Lookup!$A$70:$A$90,0)),"") ->  | AC107: =IFERROR(TEXT(AS105,"#,##0")&" gal managed/year",IFERROR(IF(AP105=0,"Infiltration rate too low.",""),"")) ->  | AO107: =TRIM(SUBSTITUTE(SUBSTITUTE(SUBSTITUTE(AO105," ",""),"-",""),"/","")&"List1") ->  | AP107: =IFERROR(INDEX(Lookup!$F$70:$F$90,MATCH(AO105,Lookup!$A$70:$A$90,0)),"") -> 
B109: =IFERROR( IF(OR(AO105="Permeable Pavement Facility",AO105="Vegetated Roof System"),"Minimum Facility Area "&TEXT((AP105*V105),"#,###")&" sf", IF(OR(AO105="Rainwater Harvesting - Category 2",AO105="Rainwater Harvesting - Category 4"),"Continuous runoff modeling required by", "")),"") ->  | N109: =IFERROR(INDEX(Lookup!$D$70:$D$90,MATCH(AO105,Lookup!$A$70:$A$90,0)),"") ->  | AC109: =IFERROR(IF(AO105="Sidewalk/Trail Compost-Amended Strip",ROUND(AQ105/(V105/H107),1) &" ft wide compost-amended strip",""),"") ->  | AO109: =TRIM(SUBSTITUTE(SUBSTITUTE(SUBSTITUTE(AO105," ",""),"-",""),"/","")&"List2") ->  | AP109: =IFERROR(INDEX(Lookup!$G$70:$G$90,MATCH(AO105,Lookup!$A$70:$A$90,0)),"") -> 
B111: =IFERROR(IF(OR(AO105="Rainwater Harvesting - Category 2",AO105="Rainwater Harvesting - Category 4"),"professional engineer.", ""),"") ->  | N111: =IFERROR(INDEX(Lookup!$E$70:$E$90,MATCH(AO105,Lookup!$A$70:$A$90,0)),"") ->  | AC111: =IFERROR(IF(AO105="Sidewalk/Trail Compost-Amended Strip",IF(AND(AC109="",H107<>""),"","along full "& ROUND(V105/H107,0) &" ft trail/sidewalk"),""),"") ->  | AO111: =TRIM(SUBSTITUTE(SUBSTITUTE(SUBSTITUTE(AO105," ",""),"-",""),"/","")&"List3") -> 
B113: =IFERROR(IF(INDEX($K$7:$K$46,MATCH(AN113,$AO$7:$AO$46,0))="","",INDEX($K$7:$K$46,MATCH(AN113,$AO$7:$AO$46,0))),"") ->  | N113: =IF(B113="","",IF(AO113="Vegetated Roof System","Roof Area","Contributing Area (sf)")) ->  | V113: =IF(B113="","",SUMIF($AO$7:$AO$46,AN113,$F$7:$I$46)) ->  | AC113: =IFERROR(IF(AO113="Water Quality BMP in lieu of NIB","Submit sizing documentation separately.", IF(AP113=-999,"Configuration not allowed.",IF(AP113=0,"Configuration not allowed.",IF(AO113="New or Retained Trees","As many as feasible.", IF(AP113="equation",TEXT(AQ113,"#,##0")&" "&AR113, TEXT(IF(OR(AO113="Permeable Pavement Facility",AO113="Vegetated Roof System",AO113="Rainwater Harvesting - Category 2", AO113="Rainwater Harvesting - Category 4"),H115, IF(AO113="Sidewalk/Trail Compost-Amended Strip",MAX(V113/H115,AP113*V113), AP113*V113)),"#,##0")&" "&AR113))))),"") ->  | AN113: 9 | AO113: =INDEX($AP$7:$AP$46,MATCH(AN113,$AO$7:$AO$46,0)) ->  | AP113: =IF(AO113="New or Retained Trees", INDEX(Lookup!$F$93:$F$219,MATCH(TRIM(CONCATENATE(AO113,V115)),Lookup!$E$93:$E$219,0)), IF(AO113="Single-family Residential Cisterns", INDEX(Lookup!$F$93:$F$219,MATCH(TRIM(CONCATENATE(AO113,IF(V113<400,0,IF(V113>4200,4201,ROUNDDOWN(V113,-2))))),Lookup!$E$93:$E$219,0)), IF(AO113="Sidewalk/Trail Compost-Amended Strip", IF(H115="",NA(),IF(H115<10,Lookup!$F$95,Lookup!$F$94)), IF(AND(AO113="Non-Infiltrating Bioretention",V117="Sloped sides"), IF(V115=2,0.013, IF(AND(V115=12,V113<=2000),0.004,"equation")), INDEX(Lookup!$F$93:$F$219,MATCH(TRIM(CONCATENATE(AO113,V115,V117,V119)),Lookup!$E$93:$E$219,0)))))) ->  | AQ113: =IF(AND(AO113="Non-Infiltrating Bioretention",V117="Sloped sides"), IF(V115=2,0.013*V113, IF(AND(V115=6,V113<=2000),0.0059*V113-3.215, IF(AND(V115=6,V113>2000,V113<=10000),0.0097*V113-11.297, IF(AND(V115=6,V113>10000),0.012*V113, IF(AND(V115=12,V113<=2700),0.004*V113, IF(AND(V115=12,V113>2700,V113<=10000),0.0052*V113-12.092, IF(AND(V115=12,V113>10000),0.01*V113,NA()))))))), IF(AP113<=0,NA(),IF(OR(AO113="Permeable Pavement Facility",AO113="Vegetated Roof System",AO113="Rainwater Harvesting - Category 2", AO113="Rainwater Harvesting - Category 4"),H115, IF(AO113="Sidewalk/Trail Compost-Amended Strip",MAX(V113/H115, AP113*V113), AP113*V113)))) ->  | AR113: =IF(AO113="Single-family Residential Cisterns", "sf",INDEX(Lookup!$H$93:$H$219,MATCH(TRIM(CONCATENATE(AO113,V115,V117,V119)),Lookup!$E$93:$E$219,0))) ->  | AS113: =IF(AO113="New or Retained Trees", INDEX(Lookup!$G$93:$G$219,MATCH(TRIM(CONCATENATE(AO113,V115)),Lookup!$E$93:$E$219,0))*V117, IF(AO113="Single-family Residential Cisterns", INDEX(Lookup!$G$93:$G$219,MATCH(TRIM(CONCATENATE(AO113,IF(V113<400,0,IF(V113>4200,4201,ROUNDDOWN(V113,-2))))),Lookup!$E$93:$E$219,0))*V113, IF(AND(AO113="Sidewalk/Trail Compost-Amended Strip",OR(H115="",InfRate=0)),NA(), INDEX(Lookup!$G$93:$G$219,MATCH(TRIM(CONCATENATE(AO113,V115,V117,V119)),Lookup!$E$93:$E$219,0))*V113)))*7.48052 *IF(OR(AO113="Permeable Pavement Facility",AO113="Vegetated Roof System"),MIN(1,H115/(AP113*V113)),1) +IF(AO113="Permeable Pavement Facility",H115*2.1*7.48052,1) ->  | AT113: =IFERROR( IF(AO113="Single-family Residential Cisterns",INDEX(Lookup!$H$93:$H$219,MATCH(TRIM(CONCATENATE(AO113,IF(V113<400,0,IF(V113>4200,4201,ROUNDDOWN(V113,-2))))),Lookup!$E$93:$E$219,0)), IF(AO113="Sidewalk/Trail Compost-Amended Strip",ROUND(AQ113/(V113/H115),1) &" ft wide x "& ROUND(V113/H115,0)&" ft long", IF(OR(AO113="Rainwater Harvesting - Category 2",AO113="Rainwater Harvesting - Category 4")," required minimum live storage", IF(AO113="Water Quality BMP in lieu of NIB","See Plan", IF(AND(V115="",V117="",V119=""),"",TRIM(V117&" "&AP117&" "&V115&" "&AP115&" "&V119&" "&AP119)))))),"") -> 
B115: =IFERROR( IF(AO113="Permeable Pavement Facility","Facility Area (sf)", IF(AO113="Vegetated Roof System","Vegetated Area (sf)", IF(AO113="Sidewalk/Trail Compost-Amended Strip","Sidewalk/Trail Width (ft)", IF(OR(AO113="Rainwater Harvesting - Category 2",AO113="Rainwater Harvesting - Category 4"),"Live Storage Volume (gal)", "")))),"") ->  | N115: =IFERROR(INDEX(Lookup!$C$70:$C$90,MATCH(AO113,Lookup!$A$70:$A$90,0)),"") ->  | AC115: =IFERROR(TEXT(AS113,"#,##0")&" gal managed/year",IFERROR(IF(AP113=0,"Infiltration rate too low.",""),"")) ->  | AO115: =TRIM(SUBSTITUTE(SUBSTITUTE(SUBSTITUTE(AO113," ",""),"-",""),"/","")&"List1") ->  | AP115: =IFERROR(INDEX(Lookup!$F$70:$F$90,MATCH(AO113,Lookup!$A$70:$A$90,0)),"") -> 
B117: =IFERROR( IF(OR(AO113="Permeable Pavement Facility",AO113="Vegetated Roof System"),"Minimum Facility Area "&TEXT((AP113*V113),"#,###")&" sf", IF(OR(AO113="Rainwater Harvesting - Category 2",AO113="Rainwater Harvesting - Category 4"),"Continuous runoff modeling required by", "")),"") ->  | N117: =IFERROR(INDEX(Lookup!$D$70:$D$90,MATCH(AO113,Lookup!$A$70:$A$90,0)),"") ->  | AC117: =IFERROR(IF(AO113="Sidewalk/Trail Compost-Amended Strip",ROUND(AQ113/(V113/H115),1) &" ft wide compost-amended strip",""),"") ->  | AO117: =TRIM(SUBSTITUTE(SUBSTITUTE(SUBSTITUTE(AO113," ",""),"-",""),"/","")&"List2") ->  | AP117: =IFERROR(INDEX(Lookup!$G$70:$G$90,MATCH(AO113,Lookup!$A$70:$A$90,0)),"") -> 
B119: =IFERROR(IF(OR(AO113="Rainwater Harvesting - Category 2",AO113="Rainwater Harvesting - Category 4"),"professional engineer.", ""),"") ->  | N119: =IFERROR(INDEX(Lookup!$E$70:$E$90,MATCH(AO113,Lookup!$A$70:$A$90,0)),"") ->  | AC119: =IFERROR(IF(AO113="Sidewalk/Trail Compost-Amended Strip",IF(AND(AC117="",H115<>""),"","along full "& ROUND(V113/H115,0) &" ft trail/sidewalk"),""),"") ->  | AO119: =TRIM(SUBSTITUTE(SUBSTITUTE(SUBSTITUTE(AO113," ",""),"-",""),"/","")&"List3") -> 
B121: =IFERROR(IF(INDEX($K$7:$K$46,MATCH(AN121,$AO$7:$AO$46,0))="","",INDEX($K$7:$K$46,MATCH(AN121,$AO$7:$AO$46,0))),"") ->  | N121: =IF(B121="","",IF(AO121="Vegetated Roof System","Roof Area","Contributing Area (sf)")) ->  | V121: =IF(B121="","",SUMIF($AO$7:$AO$46,AN121,$F$7:$I$46)) ->  | AC121: =IFERROR(IF(AO121="Water Quality BMP in lieu of NIB","Submit sizing documentation separately.", IF(AP121=-999,"Configuration not allowed.",IF(AP121=0,"Configuration not allowed.",IF(AO121="New or Retained Trees","As many as feasible.", IF(AP121="equation",TEXT(AQ121,"#,##0")&" "&AR121, TEXT(IF(OR(AO121="Permeable Pavement Facility",AO121="Vegetated Roof System",AO121="Rainwater Harvesting - Category 2", AO121="Rainwater Harvesting - Category 4"),H123, IF(AO121="Sidewalk/Trail Compost-Amended Strip",MAX(V121/H123,AP121*V121), AP121*V121)),"#,##0")&" "&AR121))))),"") ->  | AN121: 10 | AO121: =INDEX($AP$7:$AP$46,MATCH(AN121,$AO$7:$AO$46,0)) ->  | AP121: =IF(AO121="New or Retained Trees", INDEX(Lookup!$F$93:$F$219,MATCH(TRIM(CONCATENATE(AO121,V123)),Lookup!$E$93:$E$219,0)), IF(AO121="Single-family Residential Cisterns", INDEX(Lookup!$F$93:$F$219,MATCH(TRIM(CONCATENATE(AO121,IF(V121<400,0,IF(V121>4200,4201,ROUNDDOWN(V121,-2))))),Lookup!$E$93:$E$219,0)), IF(AO121="Sidewalk/Trail Compost-Amended Strip", IF(H123="",NA(),IF(H123<10,Lookup!$F$95,Lookup!$F$94)), IF(AND(AO121="Non-Infiltrating Bioretention",V125="Sloped sides"), IF(V123=2,0.013, IF(AND(V123=12,V121<=2000),0.004,"equation")), INDEX(Lookup!$F$93:$F$219,MATCH(TRIM(CONCATENATE(AO121,V123,V125,V127)),Lookup!$E$93:$E$219,0)))))) ->  | AQ121: =IF(AND(AO121="Non-Infiltrating Bioretention",V125="Sloped sides"), IF(V123=2,0.013*V121, IF(AND(V123=6,V121<=2000),0.0059*V121-3.215, IF(AND(V123=6,V121>2000,V121<=10000),0.0097*V121-11.297, IF(AND(V123=6,V121>10000),0.012*V121, IF(AND(V123=12,V121<=2700),0.004*V121, IF(AND(V123=12,V121>2700,V121<=10000),0.0052*V121-12.092, IF(AND(V123=12,V121>10000),0.01*V121,NA()))))))), IF(AP121<=0,NA(),IF(OR(AO121="Permeable Pavement Facility",AO121="Vegetated Roof System",AO121="Rainwater Harvesting - Category 2", AO121="Rainwater Harvesting - Category 4"),H123, IF(AO121="Sidewalk/Trail Compost-Amended Strip",MAX(V121/H123, AP121*V121), AP121*V121)))) ->  | AR121: =IF(AO121="Single-family Residential Cisterns", "sf",INDEX(Lookup!$H$93:$H$219,MATCH(TRIM(CONCATENATE(AO121,V123,V125,V127)),Lookup!$E$93:$E$219,0))) ->  | AS121: =IF(AO121="New or Retained Trees", INDEX(Lookup!$G$93:$G$219,MATCH(TRIM(CONCATENATE(AO121,V123)),Lookup!$E$93:$E$219,0))*V125, IF(AO121="Single-family Residential Cisterns", INDEX(Lookup!$G$93:$G$219,MATCH(TRIM(CONCATENATE(AO121,IF(V121<400,0,IF(V121>4200,4201,ROUNDDOWN(V121,-2))))),Lookup!$E$93:$E$219,0))*V121, IF(AND(AO121="Sidewalk/Trail Compost-Amended Strip",OR(H123="",InfRate=0)),NA(), INDEX(Lookup!$G$93:$G$219,MATCH(TRIM(CONCATENATE(AO121,V123,V125,V127)),Lookup!$E$93:$E$219,0))*V121)))*7.48052 *IF(OR(AO121="Permeable Pavement Facility",AO121="Vegetated Roof System"),MIN(1,H123/(AP121*V121)),1) +IF(AO121="Permeable Pavement Facility",H123*2.1*7.48052,1) ->  | AT121: =IFERROR( IF(AO121="Single-family Residential Cisterns",INDEX(Lookup!$H$93:$H$219,MATCH(TRIM(CONCATENATE(AO121,IF(V121<400,0,IF(V121>4200,4201,ROUNDDOWN(V121,-2))))),Lookup!$E$93:$E$219,0)), IF(AO121="Sidewalk/Trail Compost-Amended Strip",ROUND(AQ121/(V121/H123),1) &" ft wide x "& ROUND(V121/H123,0)&" ft long", IF(OR(AO121="Rainwater Harvesting - Category 2",AO121="Rainwater Harvesting - Category 4")," required minimum live storage", IF(AO121="Water Quality BMP in lieu of NIB","See Plan", IF(AND(V123="",V125="",V127=""),"",TRIM(V125&" "&AP125&" "&V123&" "&AP123&" "&V127&" "&AP127)))))),"") -> 
B123: =IFERROR( IF(AO121="Permeable Pavement Facility","Facility Area (sf)", IF(AO121="Vegetated Roof System","Vegetated Area (sf)", IF(AO121="Sidewalk/Trail Compost-Amended Strip","Sidewalk/Trail Width (ft)", IF(OR(AO121="Rainwater Harvesting - Category 2",AO121="Rainwater Harvesting - Category 4"),"Live Storage Volume (gal)", "")))),"") ->  | N123: =IFERROR(INDEX(Lookup!$C$70:$C$90,MATCH(AO121,Lookup!$A$70:$A$90,0)),"") ->  | AC123: =IFERROR(TEXT(AS121,"#,##0")&" gal managed/year",IFERROR(IF(AP121=0,"Infiltration rate too low.",""),"")) ->  | AO123: =TRIM(SUBSTITUTE(SUBSTITUTE(SUBSTITUTE(AO121," ",""),"-",""),"/","")&"List1") ->  | AP123: =IFERROR(INDEX(Lookup!$F$70:$F$90,MATCH(AO121,Lookup!$A$70:$A$90,0)),"") -> 
B125: =IFERROR( IF(OR(AO121="Permeable Pavement Facility",AO121="Vegetated Roof System"),"Minimum Facility Area "&TEXT((AP121*V121),"#,###")&" sf", IF(OR(AO121="Rainwater Harvesting - Category 2",AO121="Rainwater Harvesting - Category 4"),"Continuous runoff modeling required by", "")),"") ->  | N125: =IFERROR(INDEX(Lookup!$D$70:$D$90,MATCH(AO121,Lookup!$A$70:$A$90,0)),"") ->  | AC125: =IFERROR(IF(AO121="Sidewalk/Trail Compost-Amended Strip",ROUND(AQ121/(V121/H123),1) &" ft wide compost-amended strip",""),"") ->  | AO125: =TRIM(SUBSTITUTE(SUBSTITUTE(SUBSTITUTE(AO121," ",""),"-",""),"/","")&"List2") ->  | AP125: =IFERROR(INDEX(Lookup!$G$70:$G$90,MATCH(AO121,Lookup!$A$70:$A$90,0)),"") -> 
B127: =IFERROR(IF(OR(AO121="Rainwater Harvesting - Category 2",AO121="Rainwater Harvesting - Category 4"),"professional engineer.", ""),"") ->  | N127: =IFERROR(INDEX(Lookup!$E$70:$E$90,MATCH(AO121,Lookup!$A$70:$A$90,0)),"") ->  | AC127: =IFERROR(IF(AO121="Sidewalk/Trail Compost-Amended Strip",IF(AND(AC125="",H123<>""),"","along full "& ROUND(V121/H123,0) &" ft trail/sidewalk"),""),"") ->  | AO127: =TRIM(SUBSTITUTE(SUBSTITUTE(SUBSTITUTE(AO121," ",""),"-",""),"/","")&"List3") -> 
B129: =IFERROR(IF(INDEX($K$7:$K$46,MATCH(AN129,$AO$7:$AO$46,0))="","",INDEX($K$7:$K$46,MATCH(AN129,$AO$7:$AO$46,0))),"") ->  | N129: =IF(B129="","",IF(AO129="Vegetated Roof System","Roof Area","Contributing Area (sf)")) ->  | V129: =IF(B129="","",SUMIF($AO$7:$AO$46,AN129,$F$7:$I$46)) ->  | AC129: =IFERROR(IF(AO129="Water Quality BMP in lieu of NIB","Submit sizing documentation separately.", IF(AP129=-999,"Configuration not allowed.",IF(AP129=0,"Configuration not allowed.",IF(AO129="New or Retained Trees","As many as feasible.", IF(AP129="equation",TEXT(AQ129,"#,##0")&" "&AR129, TEXT(IF(OR(AO129="Permeable Pavement Facility",AO129="Vegetated Roof System",AO129="Rainwater Harvesting - Category 2", AO129="Rainwater Harvesting - Category 4"),H131, IF(AO129="Sidewalk/Trail Compost-Amended Strip",MAX(V129/H131,AP129*V129), AP129*V129)),"#,##0")&" "&AR129))))),"") ->  | AN129: 11 | AO129: =INDEX($AP$7:$AP$46,MATCH(AN129,$AO$7:$AO$46,0)) ->  | AP129: =IF(AO129="New or Retained Trees", INDEX(Lookup!$F$93:$F$219,MATCH(TRIM(CONCATENATE(AO129,V131)),Lookup!$E$93:$E$219,0)), IF(AO129="Single-family Residential Cisterns", INDEX(Lookup!$F$93:$F$219,MATCH(TRIM(CONCATENATE(AO129,IF(V129<400,0,IF(V129>4200,4201,ROUNDDOWN(V129,-2))))),Lookup!$E$93:$E$219,0)), IF(AO129="Sidewalk/Trail Compost-Amended Strip", IF(H131="",NA(),IF(H131<10,Lookup!$F$95,Lookup!$F$94)), IF(AND(AO129="Non-Infiltrating Bioretention",V133="Sloped sides"), IF(V131=2,0.013, IF(AND(V131=12,V129<=2000),0.004,"equation")), INDEX(Lookup!$F$93:$F$219,MATCH(TRIM(CONCATENATE(AO129,V131,V133,V135)),Lookup!$E$93:$E$219,0)))))) ->  | AQ129: =IF(AND(AO129="Non-Infiltrating Bioretention",V133="Sloped sides"), IF(V131=2,0.013*V129, IF(AND(V131=6,V129<=2000),0.0059*V129-3.215, IF(AND(V131=6,V129>2000,V129<=10000),0.0097*V129-11.297, IF(AND(V131=6,V129>10000),0.012*V129, IF(AND(V131=12,V129<=2700),0.004*V129, IF(AND(V131=12,V129>2700,V129<=10000),0.0052*V129-12.092, IF(AND(V131=12,V129>10000),0.01*V129,NA()))))))), IF(AP129<=0,NA(),IF(OR(AO129="Permeable Pavement Facility",AO129="Vegetated Roof System",AO129="Rainwater Harvesting - Category 2", AO129="Rainwater Harvesting - Category 4"),H131, IF(AO129="Sidewalk/Trail Compost-Amended Strip",MAX(V129/H131, AP129*V129), AP129*V129)))) ->  | AR129: =IF(AO129="Single-family Residential Cisterns", "sf",INDEX(Lookup!$H$93:$H$219,MATCH(TRIM(CONCATENATE(AO129,V131,V133,V135)),Lookup!$E$93:$E$219,0))) ->  | AS129: =IF(AO129="New or Retained Trees", INDEX(Lookup!$G$93:$G$219,MATCH(TRIM(CONCATENATE(AO129,V131)),Lookup!$E$93:$E$219,0))*V133, IF(AO129="Single-family Residential Cisterns", INDEX(Lookup!$G$93:$G$219,MATCH(TRIM(CONCATENATE(AO129,IF(V129<400,0,IF(V129>4200,4201,ROUNDDOWN(V129,-2))))),Lookup!$E$93:$E$219,0))*V129, IF(AND(AO129="Sidewalk/Trail Compost-Amended Strip",OR(H131="",InfRate=0)),NA(), INDEX(Lookup!$G$93:$G$219,MATCH(TRIM(CONCATENATE(AO129,V131,V133,V135)),Lookup!$E$93:$E$219,0))*V129)))*7.48052 *IF(OR(AO129="Permeable Pavement Facility",AO129="Vegetated Roof System"),MIN(1,H131/(AP129*V129)),1) +IF(AO129="Permeable Pavement Facility",H131*2.1*7.48052,1) ->  | AT129: =IFERROR( IF(AO129="Single-family Residential Cisterns",INDEX(Lookup!$H$93:$H$219,MATCH(TRIM(CONCATENATE(AO129,IF(V129<400,0,IF(V129>4200,4201,ROUNDDOWN(V129,-2))))),Lookup!$E$93:$E$219,0)), IF(AO129="Sidewalk/Trail Compost-Amended Strip",ROUND(AQ129/(V129/H131),1) &" ft wide x "& ROUND(V129/H131,0)&" ft long", IF(OR(AO129="Rainwater Harvesting - Category 2",AO129="Rainwater Harvesting - Category 4")," required minimum live storage", IF(AO129="Water Quality BMP in lieu of NIB","See Plan", IF(AND(V131="",V133="",V135=""),"",TRIM(V133&" "&AP133&" "&V131&" "&AP131&" "&V135&" "&AP135)))))),"") -> 
B131: =IFERROR( IF(AO129="Permeable Pavement Facility","Facility Area (sf)", IF(AO129="Vegetated Roof System","Vegetated Area (sf)", IF(AO129="Sidewalk/Trail Compost-Amended Strip","Sidewalk/Trail Width (ft)", IF(OR(AO129="Rainwater Harvesting - Category 2",AO129="Rainwater Harvesting - Category 4"),"Live Storage Volume (gal)", "")))),"") ->  | N131: =IFERROR(INDEX(Lookup!$C$70:$C$90,MATCH(AO129,Lookup!$A$70:$A$90,0)),"") ->  | AC131: =IFERROR(TEXT(AS129,"#,##0")&" gal managed/year",IFERROR(IF(AP129=0,"Infiltration rate too low.",""),"")) ->  | AO131: =TRIM(SUBSTITUTE(SUBSTITUTE(SUBSTITUTE(AO129," ",""),"-",""),"/","")&"List1") ->  | AP131: =IFERROR(INDEX(Lookup!$F$70:$F$90,MATCH(AO129,Lookup!$A$70:$A$90,0)),"") -> 
B133: =IFERROR( IF(OR(AO129="Permeable Pavement Facility",AO129="Vegetated Roof System"),"Minimum Facility Area "&TEXT((AP129*V129),"#,###")&" sf", IF(OR(AO129="Rainwater Harvesting - Category 2",AO129="Rainwater Harvesting - Category 4"),"Continuous runoff modeling required by", "")),"") ->  | N133: =IFERROR(INDEX(Lookup!$D$70:$D$90,MATCH(AO129,Lookup!$A$70:$A$90,0)),"") ->  | AC133: =IFERROR(IF(AO129="Sidewalk/Trail Compost-Amended Strip",ROUND(AQ129/(V129/H131),1) &" ft wide compost-amended strip",""),"") ->  | AO133: =TRIM(SUBSTITUTE(SUBSTITUTE(SUBSTITUTE(AO129," ",""),"-",""),"/","")&"List2") ->  | AP133: =IFERROR(INDEX(Lookup!$G$70:$G$90,MATCH(AO129,Lookup!$A$70:$A$90,0)),"") -> 
B135: =IFERROR(IF(OR(AO129="Rainwater Harvesting - Category 2",AO129="Rainwater Harvesting - Category 4"),"professional engineer.", ""),"") ->  | N135: =IFERROR(INDEX(Lookup!$E$70:$E$90,MATCH(AO129,Lookup!$A$70:$A$90,0)),"") ->  | AC135: =IFERROR(IF(AO129="Sidewalk/Trail Compost-Amended Strip",IF(AND(AC133="",H131<>""),"","along full "& ROUND(V129/H131,0) &" ft trail/sidewalk"),""),"") ->  | AO135: =TRIM(SUBSTITUTE(SUBSTITUTE(SUBSTITUTE(AO129," ",""),"-",""),"/","")&"List3") -> 
B137: =IFERROR(IF(INDEX($K$7:$K$46,MATCH(AN137,$AO$7:$AO$46,0))="","",INDEX($K$7:$K$46,MATCH(AN137,$AO$7:$AO$46,0))),"") ->  | N137: =IF(B137="","",IF(AO137="Vegetated Roof System","Roof Area","Contributing Area (sf)")) ->  | V137: =IF(B137="","",SUMIF($AO$7:$AO$46,AN137,$F$7:$I$46)) ->  | AC137: =IFERROR(IF(AO137="Water Quality BMP in lieu of NIB","Submit sizing documentation separately.", IF(AP137=-999,"Configuration not allowed.",IF(AP137=0,"Configuration not allowed.",IF(AO137="New or Retained Trees","As many as feasible.", IF(AP137="equation",TEXT(AQ137,"#,##0")&" "&AR137, TEXT(IF(OR(AO137="Permeable Pavement Facility",AO137="Vegetated Roof System",AO137="Rainwater Harvesting - Category 2", AO137="Rainwater Harvesting - Category 4"),H139, IF(AO137="Sidewalk/Trail Compost-Amended Strip",MAX(V137/H139,AP137*V137), AP137*V137)),"#,##0")&" "&AR137))))),"") ->  | AN137: 12 | AO137: =INDEX($AP$7:$AP$46,MATCH(AN137,$AO$7:$AO$46,0)) ->  | AP137: =IF(AO137="New or Retained Trees", INDEX(Lookup!$F$93:$F$219,MATCH(TRIM(CONCATENATE(AO137,V139)),Lookup!$E$93:$E$219,0)), IF(AO137="Single-family Residential Cisterns", INDEX(Lookup!$F$93:$F$219,MATCH(TRIM(CONCATENATE(AO137,IF(V137<400,0,IF(V137>4200,4201,ROUNDDOWN(V137,-2))))),Lookup!$E$93:$E$219,0)), IF(AO137="Sidewalk/Trail Compost-Amended Strip", IF(H139="",NA(),IF(H139<10,Lookup!$F$95,Lookup!$F$94)), IF(AND(AO137="Non-Infiltrating Bioretention",V141="Sloped sides"), IF(V139=2,0.013, IF(AND(V139=12,V137<=2000),0.004,"equation")), INDEX(Lookup!$F$93:$F$219,MATCH(TRIM(CONCATENATE(AO137,V139,V141,V143)),Lookup!$E$93:$E$219,0)))))) ->  | AQ137: =IF(AND(AO137="Non-Infiltrating Bioretention",V141="Sloped sides"), IF(V139=2,0.013*V137, IF(AND(V139=6,V137<=2000),0.0059*V137-3.215, IF(AND(V139=6,V137>2000,V137<=10000),0.0097*V137-11.297, IF(AND(V139=6,V137>10000),0.012*V137, IF(AND(V139=12,V137<=2700),0.004*V137, IF(AND(V139=12,V137>2700,V137<=10000),0.0052*V137-12.092, IF(AND(V139=12,V137>10000),0.01*V137,NA()))))))), IF(AP137<=0,NA(),IF(OR(AO137="Permeable Pavement Facility",AO137="Vegetated Roof System",AO137="Rainwater Harvesting - Category 2", AO137="Rainwater Harvesting - Category 4"),H139, IF(AO137="Sidewalk/Trail Compost-Amended Strip",MAX(V137/H139, AP137*V137), AP137*V137)))) ->  | AR137: =IF(AO137="Single-family Residential Cisterns", "sf",INDEX(Lookup!$H$93:$H$219,MATCH(TRIM(CONCATENATE(AO137,V139,V141,V143)),Lookup!$E$93:$E$219,0))) ->  | AS137: =IF(AO137="New or Retained Trees", INDEX(Lookup!$G$93:$G$219,MATCH(TRIM(CONCATENATE(AO137,V139)),Lookup!$E$93:$E$219,0))*V141, IF(AO137="Single-family Residential Cisterns", INDEX(Lookup!$G$93:$G$219,MATCH(TRIM(CONCATENATE(AO137,IF(V137<400,0,IF(V137>4200,4201,ROUNDDOWN(V137,-2))))),Lookup!$E$93:$E$219,0))*V137, IF(AND(AO137="Sidewalk/Trail Compost-Amended Strip",OR(H139="",InfRate=0)),NA(), INDEX(Lookup!$G$93:$G$219,MATCH(TRIM(CONCATENATE(AO137,V139,V141,V143)),Lookup!$E$93:$E$219,0))*V137)))*7.48052 *IF(OR(AO137="Permeable Pavement Facility",AO137="Vegetated Roof System"),MIN(1,H139/(AP137*V137)),1) +IF(AO137="Permeable Pavement Facility",H139*2.1*7.48052,1) ->  | AT137: =IFERROR( IF(AO137="Single-family Residential Cisterns",INDEX(Lookup!$H$93:$H$219,MATCH(TRIM(CONCATENATE(AO137,IF(V137<400,0,IF(V137>4200,4201,ROUNDDOWN(V137,-2))))),Lookup!$E$93:$E$219,0)), IF(AO137="Sidewalk/Trail Compost-Amended Strip",ROUND(AQ137/(V137/H139),1) &" ft wide x "& ROUND(V137/H139,0)&" ft long", IF(OR(AO137="Rainwater Harvesting - Category 2",AO137="Rainwater Harvesting - Category 4")," required minimum live storage", IF(AO137="Water Quality BMP in lieu of NIB","See Plan", IF(AND(V139="",V141="",V143=""),"",TRIM(V141&" "&AP141&" "&V139&" "&AP139&" "&V143&" "&AP143)))))),"") -> 
B139: =IFERROR( IF(AO137="Permeable Pavement Facility","Facility Area (sf)", IF(AO137="Vegetated Roof System","Vegetated Area (sf)", IF(AO137="Sidewalk/Trail Compost-Amended Strip","Sidewalk/Trail Width (ft)", IF(OR(AO137="Rainwater Harvesting - Category 2",AO137="Rainwater Harvesting - Category 4"),"Live Storage Volume (gal)", "")))),"") ->  | N139: =IFERROR(INDEX(Lookup!$C$70:$C$90,MATCH(AO137,Lookup!$A$70:$A$90,0)),"") ->  | AC139: =IFERROR(TEXT(AS137,"#,##0")&" gal managed/year",IFERROR(IF(AP137=0,"Infiltration rate too low.",""),"")) ->  | AO139: =TRIM(SUBSTITUTE(SUBSTITUTE(SUBSTITUTE(AO137," ",""),"-",""),"/","")&"List1") ->  | AP139: =IFERROR(INDEX(Lookup!$F$70:$F$90,MATCH(AO137,Lookup!$A$70:$A$90,0)),"") -> 
B141: =IFERROR( IF(OR(AO137="Permeable Pavement Facility",AO137="Vegetated Roof System"),"Minimum Facility Area "&TEXT((AP137*V137),"#,###")&" sf", IF(OR(AO137="Rainwater Harvesting - Category 2",AO137="Rainwater Harvesting - Category 4"),"Continuous runoff modeling required by", "")),"") ->  | N141: =IFERROR(INDEX(Lookup!$D$70:$D$90,MATCH(AO137,Lookup!$A$70:$A$90,0)),"") ->  | AC141: =IFERROR(IF(AO137="Sidewalk/Trail Compost-Amended Strip",ROUND(AQ137/(V137/H139),1) &" ft wide compost-amended strip",""),"") ->  | AO141: =TRIM(SUBSTITUTE(SUBSTITUTE(SUBSTITUTE(AO137," ",""),"-",""),"/","")&"List2") ->  | AP141: =IFERROR(INDEX(Lookup!$G$70:$G$90,MATCH(AO137,Lookup!$A$70:$A$90,0)),"") -> 
B143: =IFERROR(IF(OR(AO137="Rainwater Harvesting - Category 2",AO137="Rainwater Harvesting - Category 4"),"professional engineer.", ""),"") ->  | N143: =IFERROR(INDEX(Lookup!$E$70:$E$90,MATCH(AO137,Lookup!$A$70:$A$90,0)),"") ->  | AC143: =IFERROR(IF(AO137="Sidewalk/Trail Compost-Amended Strip",IF(AND(AC141="",H139<>""),"","along full "& ROUND(V137/H139,0) &" ft trail/sidewalk"),""),"") ->  | AO143: =TRIM(SUBSTITUTE(SUBSTITUTE(SUBSTITUTE(AO137," ",""),"-",""),"/","")&"List3") -> 
B145: =IFERROR(IF(INDEX($K$7:$K$46,MATCH(AN145,$AO$7:$AO$46,0))="","",INDEX($K$7:$K$46,MATCH(AN145,$AO$7:$AO$46,0))),"") ->  | N145: =IF(B145="","",IF(AO145="Vegetated Roof System","Roof Area","Contributing Area (sf)")) ->  | V145: =IF(B145="","",SUMIF($AO$7:$AO$46,AN145,$F$7:$I$46)) ->  | AC145: =IFERROR(IF(AO145="Water Quality BMP in lieu of NIB","Submit sizing documentation separately.", IF(AP145=-999,"Configuration not allowed.",IF(AP145=0,"Configuration not allowed.",IF(AO145="New or Retained Trees","As many as feasible.", IF(AP145="equation",TEXT(AQ145,"#,##0")&" "&AR145, TEXT(IF(OR(AO145="Permeable Pavement Facility",AO145="Vegetated Roof System",AO145="Rainwater Harvesting - Category 2", AO145="Rainwater Harvesting - Category 4"),H147, IF(AO145="Sidewalk/Trail Compost-Amended Strip",MAX(V145/H147,AP145*V145), AP145*V145)),"#,##0")&" "&AR145))))),"") ->  | AN145: 13 | AO145: =INDEX($AP$7:$AP$46,MATCH(AN145,$AO$7:$AO$46,0)) ->  | AP145: =IF(AO145="New or Retained Trees", INDEX(Lookup!$F$93:$F$219,MATCH(TRIM(CONCATENATE(AO145,V147)),Lookup!$E$93:$E$219,0)), IF(AO145="Single-family Residential Cisterns", INDEX(Lookup!$F$93:$F$219,MATCH(TRIM(CONCATENATE(AO145,IF(V145<400,0,IF(V145>4200,4201,ROUNDDOWN(V145,-2))))),Lookup!$E$93:$E$219,0)), IF(AO145="Sidewalk/Trail Compost-Amended Strip", IF(H147="",NA(),IF(H147<10,Lookup!$F$95,Lookup!$F$94)), IF(AND(AO145="Non-Infiltrating Bioretention",V149="Sloped sides"), IF(V147=2,0.013, IF(AND(V147=12,V145<=2000),0.004,"equation")), INDEX(Lookup!$F$93:$F$219,MATCH(TRIM(CONCATENATE(AO145,V147,V149,V151)),Lookup!$E$93:$E$219,0)))))) ->  | AQ145: =IF(AND(AO145="Non-Infiltrating Bioretention",V149="Sloped sides"), IF(V147=2,0.013*V145, IF(AND(V147=6,V145<=2000),0.0059*V145-3.215, IF(AND(V147=6,V145>2000,V145<=10000),0.0097*V145-11.297, IF(AND(V147=6,V145>10000),0.012*V145, IF(AND(V147=12,V145<=2700),0.004*V145, IF(AND(V147=12,V145>2700,V145<=10000),0.0052*V145-12.092, IF(AND(V147=12,V145>10000),0.01*V145,NA()))))))), IF(AP145<=0,NA(),IF(OR(AO145="Permeable Pavement Facility",AO145="Vegetated Roof System",AO145="Rainwater Harvesting - Category 2", AO145="Rainwater Harvesting - Category 4"),H147, IF(AO145="Sidewalk/Trail Compost-Amended Strip",MAX(V145/H147, AP145*V145), AP145*V145)))) ->  | AR145: =IF(AO145="Single-family Residential Cisterns", "sf",INDEX(Lookup!$H$93:$H$219,MATCH(TRIM(CONCATENATE(AO145,V147,V149,V151)),Lookup!$E$93:$E$219,0))) ->  | AS145: =IF(AO145="New or Retained Trees", INDEX(Lookup!$G$93:$G$219,MATCH(TRIM(CONCATENATE(AO145,V147)),Lookup!$E$93:$E$219,0))*V149, IF(AO145="Single-family Residential Cisterns", INDEX(Lookup!$G$93:$G$219,MATCH(TRIM(CONCATENATE(AO145,IF(V145<400,0,IF(V145>4200,4201,ROUNDDOWN(V145,-2))))),Lookup!$E$93:$E$219,0))*V145, IF(AND(AO145="Sidewalk/Trail Compost-Amended Strip",OR(H147="",InfRate=0)),NA(), INDEX(Lookup!$G$93:$G$219,MATCH(TRIM(CONCATENATE(AO145,V147,V149,V151)),Lookup!$E$93:$E$219,0))*V145)))*7.48052 *IF(OR(AO145="Permeable Pavement Facility",AO145="Vegetated Roof System"),MIN(1,H147/(AP145*V145)),1) +IF(AO145="Permeable Pavement Facility",H147*2.1*7.48052,1) ->  | AT145: =IFERROR( IF(AO145="Single-family Residential Cisterns",INDEX(Lookup!$H$93:$H$219,MATCH(TRIM(CONCATENATE(AO145,IF(V145<400,0,IF(V145>4200,4201,ROUNDDOWN(V145,-2))))),Lookup!$E$93:$E$219,0)), IF(AO145="Sidewalk/Trail Compost-Amended Strip",ROUND(AQ145/(V145/H147),1) &" ft wide x "& ROUND(V145/H147,0)&" ft long", IF(OR(AO145="Rainwater Harvesting - Category 2",AO145="Rainwater Harvesting - Category 4")," required minimum live storage", IF(AO145="Water Quality BMP in lieu of NIB","See Plan", IF(AND(V147="",V149="",V151=""),"",TRIM(V149&" "&AP149&" "&V147&" "&AP147&" "&V151&" "&AP151)))))),"") -> 
B147: =IFERROR( IF(AO145="Permeable Pavement Facility","Facility Area (sf)", IF(AO145="Vegetated Roof System","Vegetated Area (sf)", IF(AO145="Sidewalk/Trail Compost-Amended Strip","Sidewalk/Trail Width (ft)", IF(OR(AO145="Rainwater Harvesting - Category 2",AO145="Rainwater Harvesting - Category 4"),"Live Storage Volume (gal)", "")))),"") ->  | N147: =IFERROR(INDEX(Lookup!$C$70:$C$90,MATCH(AO145,Lookup!$A$70:$A$90,0)),"") ->  | AC147: =IFERROR(TEXT(AS145,"#,##0")&" gal managed/year",IFERROR(IF(AP145=0,"Infiltration rate too low.",""),"")) ->  | AO147: =TRIM(SUBSTITUTE(SUBSTITUTE(SUBSTITUTE(AO145," ",""),"-",""),"/","")&"List1") ->  | AP147: =IFERROR(INDEX(Lookup!$F$70:$F$90,MATCH(AO145,Lookup!$A$70:$A$90,0)),"") -> 
B149: =IFERROR( IF(OR(AO145="Permeable Pavement Facility",AO145="Vegetated Roof System"),"Minimum Facility Area "&TEXT((AP145*V145),"#,###")&" sf", IF(OR(AO145="Rainwater Harvesting - Category 2",AO145="Rainwater Harvesting - Category 4"),"Continuous runoff modeling required by", "")),"") ->  | N149: =IFERROR(INDEX(Lookup!$D$70:$D$90,MATCH(AO145,Lookup!$A$70:$A$90,0)),"") ->  | AC149: =IFERROR(IF(AO145="Sidewalk/Trail Compost-Amended Strip",ROUND(AQ145/(V145/H147),1) &" ft wide compost-amended strip",""),"") ->  | AO149: =TRIM(SUBSTITUTE(SUBSTITUTE(SUBSTITUTE(AO145," ",""),"-",""),"/","")&"List2") ->  | AP149: =IFERROR(INDEX(Lookup!$G$70:$G$90,MATCH(AO145,Lookup!$A$70:$A$90,0)),"") -> 
B151: =IFERROR(IF(OR(AO145="Rainwater Harvesting - Category 2",AO145="Rainwater Harvesting - Category 4"),"professional engineer.", ""),"") ->  | N151: =IFERROR(INDEX(Lookup!$E$70:$E$90,MATCH(AO145,Lookup!$A$70:$A$90,0)),"") ->  | AC151: =IFERROR(IF(AO145="Sidewalk/Trail Compost-Amended Strip",IF(AND(AC149="",H147<>""),"","along full "& ROUND(V145/H147,0) &" ft trail/sidewalk"),""),"") ->  | AO151: =TRIM(SUBSTITUTE(SUBSTITUTE(SUBSTITUTE(AO145," ",""),"-",""),"/","")&"List3") -> 
B153: =IFERROR(IF(INDEX($K$7:$K$46,MATCH(AN153,$AO$7:$AO$46,0))="","",INDEX($K$7:$K$46,MATCH(AN153,$AO$7:$AO$46,0))),"") ->  | N153: =IF(B153="","",IF(AO153="Vegetated Roof System","Roof Area","Contributing Area (sf)")) ->  | V153: =IF(B153="","",SUMIF($AO$7:$AO$46,AN153,$F$7:$I$46)) ->  | AC153: =IFERROR(IF(AO153="Water Quality BMP in lieu of NIB","Submit sizing documentation separately.", IF(AP153=-999,"Configuration not allowed.",IF(AP153=0,"Configuration not allowed.",IF(AO153="New or Retained Trees","As many as feasible.", IF(AP153="equation",TEXT(AQ153,"#,##0")&" "&AR153, TEXT(IF(OR(AO153="Permeable Pavement Facility",AO153="Vegetated Roof System",AO153="Rainwater Harvesting - Category 2", AO153="Rainwater Harvesting - Category 4"),H155, IF(AO153="Sidewalk/Trail Compost-Amended Strip",MAX(V153/H155,AP153*V153), AP153*V153)),"#,##0")&" "&AR153))))),"") ->  | AN153: 14 | AO153: =INDEX($AP$7:$AP$46,MATCH(AN153,$AO$7:$AO$46,0)) ->  | AP153: =IF(AO153="New or Retained Trees", INDEX(Lookup!$F$93:$F$219,MATCH(TRIM(CONCATENATE(AO153,V155)),Lookup!$E$93:$E$219,0)), IF(AO153="Single-family Residential Cisterns", INDEX(Lookup!$F$93:$F$219,MATCH(TRIM(CONCATENATE(AO153,IF(V153<400,0,IF(V153>4200,4201,ROUNDDOWN(V153,-2))))),Lookup!$E$93:$E$219,0)), IF(AO153="Sidewalk/Trail Compost-Amended Strip", IF(H155="",NA(),IF(H155<10,Lookup!$F$95,Lookup!$F$94)), IF(AND(AO153="Non-Infiltrating Bioretention",V157="Sloped sides"), IF(V155=2,0.013, IF(AND(V155=12,V153<=2000),0.004,"equation")), INDEX(Lookup!$F$93:$F$219,MATCH(TRIM(CONCATENATE(AO153,V155,V157,V159)),Lookup!$E$93:$E$219,0)))))) ->  | AQ153: =IF(AND(AO153="Non-Infiltrating Bioretention",V157="Sloped sides"), IF(V155=2,0.013*V153, IF(AND(V155=6,V153<=2000),0.0059*V153-3.215, IF(AND(V155=6,V153>2000,V153<=10000),0.0097*V153-11.297, IF(AND(V155=6,V153>10000),0.012*V153, IF(AND(V155=12,V153<=2700),0.004*V153, IF(AND(V155=12,V153>2700,V153<=10000),0.0052*V153-12.092, IF(AND(V155=12,V153>10000),0.01*V153,NA()))))))), IF(AP153<=0,NA(),IF(OR(AO153="Permeable Pavement Facility",AO153="Vegetated Roof System",AO153="Rainwater Harvesting - Category 2", AO153="Rainwater Harvesting - Category 4"),H155, IF(AO153="Sidewalk/Trail Compost-Amended Strip",MAX(V153/H155, AP153*V153), AP153*V153)))) ->  | AR153: =IF(AO153="Single-family Residential Cisterns", "sf",INDEX(Lookup!$H$93:$H$219,MATCH(TRIM(CONCATENATE(AO153,V155,V157,V159)),Lookup!$E$93:$E$219,0))) ->  | AS153: =IF(AO153="New or Retained Trees", INDEX(Lookup!$G$93:$G$219,MATCH(TRIM(CONCATENATE(AO153,V155)),Lookup!$E$93:$E$219,0))*V157, IF(AO153="Single-family Residential Cisterns", INDEX(Lookup!$G$93:$G$219,MATCH(TRIM(CONCATENATE(AO153,IF(V153<400,0,IF(V153>4200,4201,ROUNDDOWN(V153,-2))))),Lookup!$E$93:$E$219,0))*V153, IF(AND(AO153="Sidewalk/Trail Compost-Amended Strip",OR(H155="",InfRate=0)),NA(), INDEX(Lookup!$G$93:$G$219,MATCH(TRIM(CONCATENATE(AO153,V155,V157,V159)),Lookup!$E$93:$E$219,0))*V153)))*7.48052 *IF(OR(AO153="Permeable Pavement Facility",AO153="Vegetated Roof System"),MIN(1,H155/(AP153*V153)),1) +IF(AO153="Permeable Pavement Facility",H155*2.1*7.48052,1) ->  | AT153: =IFERROR( IF(AO153="Single-family Residential Cisterns",INDEX(Lookup!$H$93:$H$219,MATCH(TRIM(CONCATENATE(AO153,IF(V153<400,0,IF(V153>4200,4201,ROUNDDOWN(V153,-2))))),Lookup!$E$93:$E$219,0)), IF(AO153="Sidewalk/Trail Compost-Amended Strip",ROUND(AQ153/(V153/H155),1) &" ft wide x "& ROUND(V153/H155,0)&" ft long", IF(OR(AO153="Rainwater Harvesting - Category 2",AO153="Rainwater Harvesting - Category 4")," required minimum live storage", IF(AO153="Water Quality BMP in lieu of NIB","See Plan", IF(AND(V155="",V157="",V159=""),"",TRIM(V157&" "&AP157&" "&V155&" "&AP155&" "&V159&" "&AP159)))))),"") -> 
B155: =IFERROR( IF(AO153="Permeable Pavement Facility","Facility Area (sf)", IF(AO153="Vegetated Roof System","Vegetated Area (sf)", IF(AO153="Sidewalk/Trail Compost-Amended Strip","Sidewalk/Trail Width (ft)", IF(OR(AO153="Rainwater Harvesting - Category 2",AO153="Rainwater Harvesting - Category 4"),"Live Storage Volume (gal)", "")))),"") ->  | N155: =IFERROR(INDEX(Lookup!$C$70:$C$90,MATCH(AO153,Lookup!$A$70:$A$90,0)),"") ->  | AC155: =IFERROR(TEXT(AS153,"#,##0")&" gal managed/year",IFERROR(IF(AP153=0,"Infiltration rate too low.",""),"")) ->  | AO155: =TRIM(SUBSTITUTE(SUBSTITUTE(SUBSTITUTE(AO153," ",""),"-",""),"/","")&"List1") ->  | AP155: =IFERROR(INDEX(Lookup!$F$70:$F$90,MATCH(AO153,Lookup!$A$70:$A$90,0)),"") -> 
B157: =IFERROR( IF(OR(AO153="Permeable Pavement Facility",AO153="Vegetated Roof System"),"Minimum Facility Area "&TEXT((AP153*V153),"#,###")&" sf", IF(OR(AO153="Rainwater Harvesting - Category 2",AO153="Rainwater Harvesting - Category 4"),"Continuous runoff modeling required by", "")),"") ->  | N157: =IFERROR(INDEX(Lookup!$D$70:$D$90,MATCH(AO153,Lookup!$A$70:$A$90,0)),"") ->  | AC157: =IFERROR(IF(AO153="Sidewalk/Trail Compost-Amended Strip",ROUND(AQ153/(V153/H155),1) &" ft wide compost-amended strip",""),"") ->  | AO157: =TRIM(SUBSTITUTE(SUBSTITUTE(SUBSTITUTE(AO153," ",""),"-",""),"/","")&"List2") ->  | AP157: =IFERROR(INDEX(Lookup!$G$70:$G$90,MATCH(AO153,Lookup!$A$70:$A$90,0)),"") -> 
B159: =IFERROR(IF(OR(AO153="Rainwater Harvesting - Category 2",AO153="Rainwater Harvesting - Category 4"),"professional engineer.", ""),"") ->  | N159: =IFERROR(INDEX(Lookup!$E$70:$E$90,MATCH(AO153,Lookup!$A$70:$A$90,0)),"") ->  | AC159: =IFERROR(IF(AO153="Sidewalk/Trail Compost-Amended Strip",IF(AND(AC157="",H155<>""),"","along full "& ROUND(V153/H155,0) &" ft trail/sidewalk"),""),"") ->  | AO159: =TRIM(SUBSTITUTE(SUBSTITUTE(SUBSTITUTE(AO153," ",""),"-",""),"/","")&"List3") -> 
B161: =IFERROR(IF(INDEX($K$7:$K$46,MATCH(AN161,$AO$7:$AO$46,0))="","",INDEX($K$7:$K$46,MATCH(AN161,$AO$7:$AO$46,0))),"") ->  | N161: =IF(B161="","",IF(AO161="Vegetated Roof System","Roof Area","Contributing Area (sf)")) ->  | V161: =IF(B161="","",SUMIF($AO$7:$AO$46,AN161,$F$7:$I$46)) ->  | AC161: =IFERROR(IF(AO161="Water Quality BMP in lieu of NIB","Submit sizing documentation separately.", IF(AP161=-999,"Configuration not allowed.",IF(AP161=0,"Configuration not allowed.",IF(AO161="New or Retained Trees","As many as feasible.", IF(AP161="equation",TEXT(AQ161,"#,##0")&" "&AR161, TEXT(IF(OR(AO161="Permeable Pavement Facility",AO161="Vegetated Roof System",AO161="Rainwater Harvesting - Category 2", AO161="Rainwater Harvesting - Category 4"),H163, IF(AO161="Sidewalk/Trail Compost-Amended Strip",MAX(V161/H163,AP161*V161), AP161*V161)),"#,##0")&" "&AR161))))),"") ->  | AN161: 15 | AO161: =INDEX($AP$7:$AP$46,MATCH(AN161,$AO$7:$AO$46,0)) ->  | AP161: =IF(AO161="New or Retained Trees", INDEX(Lookup!$F$93:$F$219,MATCH(TRIM(CONCATENATE(AO161,V163)),Lookup!$E$93:$E$219,0)), IF(AO161="Single-family Residential Cisterns", INDEX(Lookup!$F$93:$F$219,MATCH(TRIM(CONCATENATE(AO161,IF(V161<400,0,IF(V161>4200,4201,ROUNDDOWN(V161,-2))))),Lookup!$E$93:$E$219,0)), IF(AO161="Sidewalk/Trail Compost-Amended Strip", IF(H163="",NA(),IF(H163<10,Lookup!$F$95,Lookup!$F$94)), IF(AND(AO161="Non-Infiltrating Bioretention",V165="Sloped sides"), IF(V163=2,0.013, IF(AND(V163=12,V161<=2000),0.004,"equation")), INDEX(Lookup!$F$93:$F$219,MATCH(TRIM(CONCATENATE(AO161,V163,V165,V167)),Lookup!$E$93:$E$219,0)))))) ->  | AQ161: =IF(AND(AO161="Non-Infiltrating Bioretention",V165="Sloped sides"), IF(V163=2,0.013*V161, IF(AND(V163=6,V161<=2000),0.0059*V161-3.215, IF(AND(V163=6,V161>2000,V161<=10000),0.0097*V161-11.297, IF(AND(V163=6,V161>10000),0.012*V161, IF(AND(V163=12,V161<=2700),0.004*V161, IF(AND(V163=12,V161>2700,V161<=10000),0.0052*V161-12.092, IF(AND(V163=12,V161>10000),0.01*V161,NA()))))))), IF(AP161<=0,NA(),IF(OR(AO161="Permeable Pavement Facility",AO161="Vegetated Roof System",AO161="Rainwater Harvesting - Category 2", AO161="Rainwater Harvesting - Category 4"),H163, IF(AO161="Sidewalk/Trail Compost-Amended Strip",MAX(V161/H163, AP161*V161), AP161*V161)))) ->  | AR161: =IF(AO161="Single-family Residential Cisterns", "sf",INDEX(Lookup!$H$93:$H$219,MATCH(TRIM(CONCATENATE(AO161,V163,V165,V167)),Lookup!$E$93:$E$219,0))) ->  | AS161: =IF(AO161="New or Retained Trees", INDEX(Lookup!$G$93:$G$219,MATCH(TRIM(CONCATENATE(AO161,V163)),Lookup!$E$93:$E$219,0))*V165, IF(AO161="Single-family Residential Cisterns", INDEX(Lookup!$G$93:$G$219,MATCH(TRIM(CONCATENATE(AO161,IF(V161<400,0,IF(V161>4200,4201,ROUNDDOWN(V161,-2))))),Lookup!$E$93:$E$219,0))*V161, IF(AND(AO161="Sidewalk/Trail Compost-Amended Strip",OR(H163="",InfRate=0)),NA(), INDEX(Lookup!$G$93:$G$219,MATCH(TRIM(CONCATENATE(AO161,V163,V165,V167)),Lookup!$E$93:$E$219,0))*V161)))*7.48052 *IF(OR(AO161="Permeable Pavement Facility",AO161="Vegetated Roof System"),MIN(1,H163/(AP161*V161)),1) +IF(AO161="Permeable Pavement Facility",H163*2.1*7.48052,1) ->  | AT161: =IFERROR( IF(AO161="Single-family Residential Cisterns",INDEX(Lookup!$H$93:$H$219,MATCH(TRIM(CONCATENATE(AO161,IF(V161<400,0,IF(V161>4200,4201,ROUNDDOWN(V161,-2))))),Lookup!$E$93:$E$219,0)), IF(AO161="Sidewalk/Trail Compost-Amended Strip",ROUND(AQ161/(V161/H163),1) &" ft wide x "& ROUND(V161/H163,0)&" ft long", IF(OR(AO161="Rainwater Harvesting - Category 2",AO161="Rainwater Harvesting - Category 4")," required minimum live storage", IF(AO161="Water Quality BMP in lieu of NIB","See Plan", IF(AND(V163="",V165="",V167=""),"",TRIM(V165&" "&AP165&" "&V163&" "&AP163&" "&V167&" "&AP167)))))),"") -> 
B163: =IFERROR( IF(AO161="Permeable Pavement Facility","Facility Area (sf)", IF(AO161="Vegetated Roof System","Vegetated Area (sf)", IF(AO161="Sidewalk/Trail Compost-Amended Strip","Sidewalk/Trail Width (ft)", IF(OR(AO161="Rainwater Harvesting - Category 2",AO161="Rainwater Harvesting - Category 4"),"Live Storage Volume (gal)", "")))),"") ->  | N163: =IFERROR(INDEX(Lookup!$C$70:$C$90,MATCH(AO161,Lookup!$A$70:$A$90,0)),"") ->  | AC163: =IFERROR(TEXT(AS161,"#,##0")&" gal managed/year",IFERROR(IF(AP161=0,"Infiltration rate too low.",""),"")) ->  | AO163: =TRIM(SUBSTITUTE(SUBSTITUTE(SUBSTITUTE(AO161," ",""),"-",""),"/","")&"List1") ->  | AP163: =IFERROR(INDEX(Lookup!$F$70:$F$90,MATCH(AO161,Lookup!$A$70:$A$90,0)),"") -> 
B165: =IFERROR( IF(OR(AO161="Permeable Pavement Facility",AO161="Vegetated Roof System"),"Minimum Facility Area "&TEXT((AP161*V161),"#,###")&" sf", IF(OR(AO161="Rainwater Harvesting - Category 2",AO161="Rainwater Harvesting - Category 4"),"Continuous runoff modeling required by", "")),"") ->  | N165: =IFERROR(INDEX(Lookup!$D$70:$D$90,MATCH(AO161,Lookup!$A$70:$A$90,0)),"") ->  | AC165: =IFERROR(IF(AO161="Sidewalk/Trail Compost-Amended Strip",ROUND(AQ161/(V161/H163),1) &" ft wide compost-amended strip",""),"") ->  | AO165: =TRIM(SUBSTITUTE(SUBSTITUTE(SUBSTITUTE(AO161," ",""),"-",""),"/","")&"List2") ->  | AP165: =IFERROR(INDEX(Lookup!$G$70:$G$90,MATCH(AO161,Lookup!$A$70:$A$90,0)),"") -> 
B167: =IFERROR(IF(OR(AO161="Rainwater Harvesting - Category 2",AO161="Rainwater Harvesting - Category 4"),"professional engineer.", ""),"") ->  | N167: =IFERROR(INDEX(Lookup!$E$70:$E$90,MATCH(AO161,Lookup!$A$70:$A$90,0)),"") ->  | AC167: =IFERROR(IF(AO161="Sidewalk/Trail Compost-Amended Strip",IF(AND(AC165="",H163<>""),"","along full "& ROUND(V161/H163,0) &" ft trail/sidewalk"),""),"") ->  | AO167: =TRIM(SUBSTITUTE(SUBSTITUTE(SUBSTITUTE(AO161," ",""),"-",""),"/","")&"List3") -> 
B169: =IFERROR(IF(INDEX($K$7:$K$46,MATCH(AN169,$AO$7:$AO$46,0))="","",INDEX($K$7:$K$46,MATCH(AN169,$AO$7:$AO$46,0))),"") ->  | N169: =IF(B169="","",IF(AO169="Vegetated Roof System","Roof Area","Contributing Area (sf)")) ->  | V169: =IF(B169="","",SUMIF($AO$7:$AO$46,AN169,$F$7:$I$46)) ->  | AC169: =IFERROR(IF(AO169="Water Quality BMP in lieu of NIB","Submit sizing documentation separately.", IF(AP169=-999,"Configuration not allowed.",IF(AP169=0,"Configuration not allowed.",IF(AO169="New or Retained Trees","As many as feasible.", IF(AP169="equation",TEXT(AQ169,"#,##0")&" "&AR169, TEXT(IF(OR(AO169="Permeable Pavement Facility",AO169="Vegetated Roof System",AO169="Rainwater Harvesting - Category 2", AO169="Rainwater Harvesting - Category 4"),H171, IF(AO169="Sidewalk/Trail Compost-Amended Strip",MAX(V169/H171,AP169*V169), AP169*V169)),"#,##0")&" "&AR169))))),"") ->  | AN169: 16 | AO169: =INDEX($AP$7:$AP$46,MATCH(AN169,$AO$7:$AO$46,0)) ->  | AP169: =IF(AO169="New or Retained Trees", INDEX(Lookup!$F$93:$F$219,MATCH(TRIM(CONCATENATE(AO169,V171)),Lookup!$E$93:$E$219,0)), IF(AO169="Single-family Residential Cisterns", INDEX(Lookup!$F$93:$F$219,MATCH(TRIM(CONCATENATE(AO169,IF(V169<400,0,IF(V169>4200,4201,ROUNDDOWN(V169,-2))))),Lookup!$E$93:$E$219,0)), IF(AO169="Sidewalk/Trail Compost-Amended Strip", IF(H171="",NA(),IF(H171<10,Lookup!$F$95,Lookup!$F$94)), IF(AND(AO169="Non-Infiltrating Bioretention",V173="Sloped sides"), IF(V171=2,0.013, IF(AND(V171=12,V169<=2000),0.004,"equation")), INDEX(Lookup!$F$93:$F$219,MATCH(TRIM(CONCATENATE(AO169,V171,V173,V175)),Lookup!$E$93:$E$219,0)))))) ->  | AQ169: =IF(AND(AO169="Non-Infiltrating Bioretention",V173="Sloped sides"), IF(V171=2,0.013*V169, IF(AND(V171=6,V169<=2000),0.0059*V169-3.215, IF(AND(V171=6,V169>2000,V169<=10000),0.0097*V169-11.297, IF(AND(V171=6,V169>10000),0.012*V169, IF(AND(V171=12,V169<=2700),0.004*V169, IF(AND(V171=12,V169>2700,V169<=10000),0.0052*V169-12.092, IF(AND(V171=12,V169>10000),0.01*V169,NA()))))))), IF(AP169<=0,NA(),IF(OR(AO169="Permeable Pavement Facility",AO169="Vegetated Roof System",AO169="Rainwater Harvesting - Category 2", AO169="Rainwater Harvesting - Category 4"),H171, IF(AO169="Sidewalk/Trail Compost-Amended Strip",MAX(V169/H171, AP169*V169), AP169*V169)))) ->  | AR169: =IF(AO169="Single-family Residential Cisterns", "sf",INDEX(Lookup!$H$93:$H$219,MATCH(TRIM(CONCATENATE(AO169,V171,V173,V175)),Lookup!$E$93:$E$219,0))) ->  | AS169: =IF(AO169="New or Retained Trees", INDEX(Lookup!$G$93:$G$219,MATCH(TRIM(CONCATENATE(AO169,V171)),Lookup!$E$93:$E$219,0))*V173, IF(AO169="Single-family Residential Cisterns", INDEX(Lookup!$G$93:$G$219,MATCH(TRIM(CONCATENATE(AO169,IF(V169<400,0,IF(V169>4200,4201,ROUNDDOWN(V169,-2))))),Lookup!$E$93:$E$219,0))*V169, IF(AND(AO169="Sidewalk/Trail Compost-Amended Strip",OR(H171="",InfRate=0)),NA(), INDEX(Lookup!$G$93:$G$219,MATCH(TRIM(CONCATENATE(AO169,V171,V173,V175)),Lookup!$E$93:$E$219,0))*V169)))*7.48052 *IF(OR(AO169="Permeable Pavement Facility",AO169="Vegetated Roof System"),MIN(1,H171/(AP169*V169)),1) +IF(AO169="Permeable Pavement Facility",H171*2.1*7.48052,1) ->  | AT169: =IFERROR( IF(AO169="Single-family Residential Cisterns",INDEX(Lookup!$H$93:$H$219,MATCH(TRIM(CONCATENATE(AO169,IF(V169<400,0,IF(V169>4200,4201,ROUNDDOWN(V169,-2))))),Lookup!$E$93:$E$219,0)), IF(AO169="Sidewalk/Trail Compost-Amended Strip",ROUND(AQ169/(V169/H171),1) &" ft wide x "& ROUND(V169/H171,0)&" ft long", IF(OR(AO169="Rainwater Harvesting - Category 2",AO169="Rainwater Harvesting - Category 4")," required minimum live storage", IF(AO169="Water Quality BMP in lieu of NIB","See Plan", IF(AND(V171="",V173="",V175=""),"",TRIM(V173&" "&AP173&" "&V171&" "&AP171&" "&V175&" "&AP175)))))),"") -> 
B171: =IFERROR( IF(AO169="Permeable Pavement Facility","Facility Area (sf)", IF(AO169="Vegetated Roof System","Vegetated Area (sf)", IF(AO169="Sidewalk/Trail Compost-Amended Strip","Sidewalk/Trail Width (ft)", IF(OR(AO169="Rainwater Harvesting - Category 2",AO169="Rainwater Harvesting - Category 4"),"Live Storage Volume (gal)", "")))),"") ->  | N171: =IFERROR(INDEX(Lookup!$C$70:$C$90,MATCH(AO169,Lookup!$A$70:$A$90,0)),"") ->  | AC171: =IFERROR(TEXT(AS169,"#,##0")&" gal managed/year",IFERROR(IF(AP169=0,"Infiltration rate too low.",""),"")) ->  | AO171: =TRIM(SUBSTITUTE(SUBSTITUTE(SUBSTITUTE(AO169," ",""),"-",""),"/","")&"List1") ->  | AP171: =IFERROR(INDEX(Lookup!$F$70:$F$90,MATCH(AO169,Lookup!$A$70:$A$90,0)),"") -> 
B173: =IFERROR( IF(OR(AO169="Permeable Pavement Facility",AO169="Vegetated Roof System"),"Minimum Facility Area "&TEXT((AP169*V169),"#,###")&" sf", IF(OR(AO169="Rainwater Harvesting - Category 2",AO169="Rainwater Harvesting - Category 4"),"Continuous runoff modeling required by", "")),"") ->  | N173: =IFERROR(INDEX(Lookup!$D$70:$D$90,MATCH(AO169,Lookup!$A$70:$A$90,0)),"") ->  | AC173: =IFERROR(IF(AO169="Sidewalk/Trail Compost-Amended Strip",ROUND(AQ169/(V169/H171),1) &" ft wide compost-amended strip",""),"") ->  | AO173: =TRIM(SUBSTITUTE(SUBSTITUTE(SUBSTITUTE(AO169," ",""),"-",""),"/","")&"List2") ->  | AP173: =IFERROR(INDEX(Lookup!$G$70:$G$90,MATCH(AO169,Lookup!$A$70:$A$90,0)),"") -> 
B175: =IFERROR(IF(OR(AO169="Rainwater Harvesting - Category 2",AO169="Rainwater Harvesting - Category 4"),"professional engineer.", ""),"") ->  | N175: =IFERROR(INDEX(Lookup!$E$70:$E$90,MATCH(AO169,Lookup!$A$70:$A$90,0)),"") ->  | AC175: =IFERROR(IF(AO169="Sidewalk/Trail Compost-Amended Strip",IF(AND(AC173="",H171<>""),"","along full "& ROUND(V169/H171,0) &" ft trail/sidewalk"),""),"") ->  | AO175: =TRIM(SUBSTITUTE(SUBSTITUTE(SUBSTITUTE(AO169," ",""),"-",""),"/","")&"List3") -> 
B177: =IFERROR(IF(INDEX($K$7:$K$46,MATCH(AN177,$AO$7:$AO$46,0))="","",INDEX($K$7:$K$46,MATCH(AN177,$AO$7:$AO$46,0))),"") ->  | N177: =IF(B177="","",IF(AO177="Vegetated Roof System","Roof Area","Contributing Area (sf)")) ->  | V177: =IF(B177="","",SUMIF($AO$7:$AO$46,AN177,$F$7:$I$46)) ->  | AC177: =IFERROR(IF(AO177="Water Quality BMP in lieu of NIB","Submit sizing documentation separately.", IF(AP177=-999,"Configuration not allowed.",IF(AP177=0,"Configuration not allowed.",IF(AO177="New or Retained Trees","As many as feasible.", IF(AP177="equation",TEXT(AQ177,"#,##0")&" "&AR177, TEXT(IF(OR(AO177="Permeable Pavement Facility",AO177="Vegetated Roof System",AO177="Rainwater Harvesting - Category 2", AO177="Rainwater Harvesting - Category 4"),H179, IF(AO177="Sidewalk/Trail Compost-Amended Strip",MAX(V177/H179,AP177*V177), AP177*V177)),"#,##0")&" "&AR177))))),"") ->  | AN177: 17 | AO177: =INDEX($AP$7:$AP$46,MATCH(AN177,$AO$7:$AO$46,0)) ->  | AP177: =IF(AO177="New or Retained Trees", INDEX(Lookup!$F$93:$F$219,MATCH(TRIM(CONCATENATE(AO177,V179)),Lookup!$E$93:$E$219,0)), IF(AO177="Single-family Residential Cisterns", INDEX(Lookup!$F$93:$F$219,MATCH(TRIM(CONCATENATE(AO177,IF(V177<400,0,IF(V177>4200,4201,ROUNDDOWN(V177,-2))))),Lookup!$E$93:$E$219,0)), IF(AO177="Sidewalk/Trail Compost-Amended Strip", IF(H179="",NA(),IF(H179<10,Lookup!$F$95,Lookup!$F$94)), IF(AND(AO177="Non-Infiltrating Bioretention",V181="Sloped sides"), IF(V179=2,0.013, IF(AND(V179=12,V177<=2000),0.004,"equation")), INDEX(Lookup!$F$93:$F$219,MATCH(TRIM(CONCATENATE(AO177,V179,V181,V183)),Lookup!$E$93:$E$219,0)))))) ->  | AQ177: =IF(AND(AO177="Non-Infiltrating Bioretention",V181="Sloped sides"), IF(V179=2,0.013*V177, IF(AND(V179=6,V177<=2000),0.0059*V177-3.215, IF(AND(V179=6,V177>2000,V177<=10000),0.0097*V177-11.297, IF(AND(V179=6,V177>10000),0.012*V177, IF(AND(V179=12,V177<=2700),0.004*V177, IF(AND(V179=12,V177>2700,V177<=10000),0.0052*V177-12.092, IF(AND(V179=12,V177>10000),0.01*V177,NA()))))))), IF(AP177<=0,NA(),IF(OR(AO177="Permeable Pavement Facility",AO177="Vegetated Roof System",AO177="Rainwater Harvesting - Category 2", AO177="Rainwater Harvesting - Category 4"),H179, IF(AO177="Sidewalk/Trail Compost-Amended Strip",MAX(V177/H179, AP177*V177), AP177*V177)))) ->  | AR177: =IF(AO177="Single-family Residential Cisterns", "sf",INDEX(Lookup!$H$93:$H$219,MATCH(TRIM(CONCATENATE(AO177,V179,V181,V183)),Lookup!$E$93:$E$219,0))) ->  | AS177: =IF(AO177="New or Retained Trees", INDEX(Lookup!$G$93:$G$219,MATCH(TRIM(CONCATENATE(AO177,V179)),Lookup!$E$93:$E$219,0))*V181, IF(AO177="Single-family Residential Cisterns", INDEX(Lookup!$G$93:$G$219,MATCH(TRIM(CONCATENATE(AO177,IF(V177<400,0,IF(V177>4200,4201,ROUNDDOWN(V177,-2))))),Lookup!$E$93:$E$219,0))*V177, IF(AND(AO177="Sidewalk/Trail Compost-Amended Strip",OR(H179="",InfRate=0)),NA(), INDEX(Lookup!$G$93:$G$219,MATCH(TRIM(CONCATENATE(AO177,V179,V181,V183)),Lookup!$E$93:$E$219,0))*V177)))*7.48052 *IF(OR(AO177="Permeable Pavement Facility",AO177="Vegetated Roof System"),MIN(1,H179/(AP177*V177)),1) +IF(AO177="Permeable Pavement Facility",H179*2.1*7.48052,1) ->  | AT177: =IFERROR( IF(AO177="Single-family Residential Cisterns",INDEX(Lookup!$H$93:$H$219,MATCH(TRIM(CONCATENATE(AO177,IF(V177<400,0,IF(V177>4200,4201,ROUNDDOWN(V177,-2))))),Lookup!$E$93:$E$219,0)), IF(AO177="Sidewalk/Trail Compost-Amended Strip",ROUND(AQ177/(V177/H179),1) &" ft wide x "& ROUND(V177/H179,0)&" ft long", IF(OR(AO177="Rainwater Harvesting - Category 2",AO177="Rainwater Harvesting - Category 4")," required minimum live storage", IF(AO177="Water Quality BMP in lieu of NIB","See Plan", IF(AND(V179="",V181="",V183=""),"",TRIM(V181&" "&AP181&" "&V179&" "&AP179&" "&V183&" "&AP183)))))),"") -> 
B179: =IFERROR( IF(AO177="Permeable Pavement Facility","Facility Area (sf)", IF(AO177="Vegetated Roof System","Vegetated Area (sf)", IF(AO177="Sidewalk/Trail Compost-Amended Strip","Sidewalk/Trail Width (ft)", IF(OR(AO177="Rainwater Harvesting - Category 2",AO177="Rainwater Harvesting - Category 4"),"Live Storage Volume (gal)", "")))),"") ->  | N179: =IFERROR(INDEX(Lookup!$C$70:$C$90,MATCH(AO177,Lookup!$A$70:$A$90,0)),"") ->  | AC179: =IFERROR(TEXT(AS177,"#,##0")&" gal managed/year",IFERROR(IF(AP177=0,"Infiltration rate too low.",""),"")) ->  | AO179: =TRIM(SUBSTITUTE(SUBSTITUTE(SUBSTITUTE(AO177," ",""),"-",""),"/","")&"List1") ->  | AP179: =IFERROR(INDEX(Lookup!$F$70:$F$90,MATCH(AO177,Lookup!$A$70:$A$90,0)),"") -> 
B181: =IFERROR( IF(OR(AO177="Permeable Pavement Facility",AO177="Vegetated Roof System"),"Minimum Facility Area "&TEXT((AP177*V177),"#,###")&" sf", IF(OR(AO177="Rainwater Harvesting - Category 2",AO177="Rainwater Harvesting - Category 4"),"Continuous runoff modeling required by", "")),"") ->  | N181: =IFERROR(INDEX(Lookup!$D$70:$D$90,MATCH(AO177,Lookup!$A$70:$A$90,0)),"") ->  | AC181: =IFERROR(IF(AO177="Sidewalk/Trail Compost-Amended Strip",ROUND(AQ177/(V177/H179),1) &" ft wide compost-amended strip",""),"") ->  | AO181: =TRIM(SUBSTITUTE(SUBSTITUTE(SUBSTITUTE(AO177," ",""),"-",""),"/","")&"List2") ->  | AP181: =IFERROR(INDEX(Lookup!$G$70:$G$90,MATCH(AO177,Lookup!$A$70:$A$90,0)),"") -> 
B183: =IFERROR(IF(OR(AO177="Rainwater Harvesting - Category 2",AO177="Rainwater Harvesting - Category 4"),"professional engineer.", ""),"") ->  | N183: =IFERROR(INDEX(Lookup!$E$70:$E$90,MATCH(AO177,Lookup!$A$70:$A$90,0)),"") ->  | AC183: =IFERROR(IF(AO177="Sidewalk/Trail Compost-Amended Strip",IF(AND(AC181="",H179<>""),"","along full "& ROUND(V177/H179,0) &" ft trail/sidewalk"),""),"") ->  | AO183: =TRIM(SUBSTITUTE(SUBSTITUTE(SUBSTITUTE(AO177," ",""),"-",""),"/","")&"List3") -> 
B185: =IFERROR(IF(INDEX($K$7:$K$46,MATCH(AN185,$AO$7:$AO$46,0))="","",INDEX($K$7:$K$46,MATCH(AN185,$AO$7:$AO$46,0))),"") ->  | N185: =IF(B185="","",IF(AO185="Vegetated Roof System","Roof Area","Contributing Area (sf)")) ->  | V185: =IF(B185="","",SUMIF($AO$7:$AO$46,AN185,$F$7:$I$46)) ->  | AC185: =IFERROR(IF(AO185="Water Quality BMP in lieu of NIB","Submit sizing documentation separately.", IF(AP185=-999,"Configuration not allowed.",IF(AP185=0,"Configuration not allowed.",IF(AO185="New or Retained Trees","As many as feasible.", IF(AP185="equation",TEXT(AQ185,"#,##0")&" "&AR185, TEXT(IF(OR(AO185="Permeable Pavement Facility",AO185="Vegetated Roof System",AO185="Rainwater Harvesting - Category 2", AO185="Rainwater Harvesting - Category 4"),H187, IF(AO185="Sidewalk/Trail Compost-Amended Strip",MAX(V185/H187,AP185*V185), AP185*V185)),"#,##0")&" "&AR185))))),"") ->  | AN185: 18 | AO185: =INDEX($AP$7:$AP$46,MATCH(AN185,$AO$7:$AO$46,0)) ->  | AP185: =IF(AO185="New or Retained Trees", INDEX(Lookup!$F$93:$F$219,MATCH(TRIM(CONCATENATE(AO185,V187)),Lookup!$E$93:$E$219,0)), IF(AO185="Single-family Residential Cisterns", INDEX(Lookup!$F$93:$F$219,MATCH(TRIM(CONCATENATE(AO185,IF(V185<400,0,IF(V185>4200,4201,ROUNDDOWN(V185,-2))))),Lookup!$E$93:$E$219,0)), IF(AO185="Sidewalk/Trail Compost-Amended Strip", IF(H187="",NA(),IF(H187<10,Lookup!$F$95,Lookup!$F$94)), IF(AND(AO185="Non-Infiltrating Bioretention",V189="Sloped sides"), IF(V187=2,0.013, IF(AND(V187=12,V185<=2000),0.004,"equation")), INDEX(Lookup!$F$93:$F$219,MATCH(TRIM(CONCATENATE(AO185,V187,V189,V191)),Lookup!$E$93:$E$219,0)))))) ->  | AQ185: =IF(AND(AO185="Non-Infiltrating Bioretention",V189="Sloped sides"), IF(V187=2,0.013*V185, IF(AND(V187=6,V185<=2000),0.0059*V185-3.215, IF(AND(V187=6,V185>2000,V185<=10000),0.0097*V185-11.297, IF(AND(V187=6,V185>10000),0.012*V185, IF(AND(V187=12,V185<=2700),0.004*V185, IF(AND(V187=12,V185>2700,V185<=10000),0.0052*V185-12.092, IF(AND(V187=12,V185>10000),0.01*V185,NA()))))))), IF(AP185<=0,NA(),IF(OR(AO185="Permeable Pavement Facility",AO185="Vegetated Roof System",AO185="Rainwater Harvesting - Category 2", AO185="Rainwater Harvesting - Category 4"),H187, IF(AO185="Sidewalk/Trail Compost-Amended Strip",MAX(V185/H187, AP185*V185), AP185*V185)))) ->  | AR185: =IF(AO185="Single-family Residential Cisterns", "sf",INDEX(Lookup!$H$93:$H$219,MATCH(TRIM(CONCATENATE(AO185,V187,V189,V191)),Lookup!$E$93:$E$219,0))) ->  | AS185: =IF(AO185="New or Retained Trees", INDEX(Lookup!$G$93:$G$219,MATCH(TRIM(CONCATENATE(AO185,V187)),Lookup!$E$93:$E$219,0))*V189, IF(AO185="Single-family Residential Cisterns", INDEX(Lookup!$G$93:$G$219,MATCH(TRIM(CONCATENATE(AO185,IF(V185<400,0,IF(V185>4200,4201,ROUNDDOWN(V185,-2))))),Lookup!$E$93:$E$219,0))*V185, IF(AND(AO185="Sidewalk/Trail Compost-Amended Strip",OR(H187="",InfRate=0)),NA(), INDEX(Lookup!$G$93:$G$219,MATCH(TRIM(CONCATENATE(AO185,V187,V189,V191)),Lookup!$E$93:$E$219,0))*V185)))*7.48052 *IF(OR(AO185="Permeable Pavement Facility",AO185="Vegetated Roof System"),MIN(1,H187/(AP185*V185)),1) +IF(AO185="Permeable Pavement Facility",H187*2.1*7.48052,1) ->  | AT185: =IFERROR( IF(AO185="Single-family Residential Cisterns",INDEX(Lookup!$H$93:$H$219,MATCH(TRIM(CONCATENATE(AO185,IF(V185<400,0,IF(V185>4200,4201,ROUNDDOWN(V185,-2))))),Lookup!$E$93:$E$219,0)), IF(AO185="Sidewalk/Trail Compost-Amended Strip",ROUND(AQ185/(V185/H187),1) &" ft wide x "& ROUND(V185/H187,0)&" ft long", IF(OR(AO185="Rainwater Harvesting - Category 2",AO185="Rainwater Harvesting - Category 4")," required minimum live storage", IF(AO185="Water Quality BMP in lieu of NIB","See Plan", IF(AND(V187="",V189="",V191=""),"",TRIM(V189&" "&AP189&" "&V187&" "&AP187&" "&V191&" "&AP191)))))),"") -> 
B187: =IFERROR( IF(AO185="Permeable Pavement Facility","Facility Area (sf)", IF(AO185="Vegetated Roof System","Vegetated Area (sf)", IF(AO185="Sidewalk/Trail Compost-Amended Strip","Sidewalk/Trail Width (ft)", IF(OR(AO185="Rainwater Harvesting - Category 2",AO185="Rainwater Harvesting - Category 4"),"Live Storage Volume (gal)", "")))),"") ->  | N187: =IFERROR(INDEX(Lookup!$C$70:$C$90,MATCH(AO185,Lookup!$A$70:$A$90,0)),"") ->  | AC187: =IFERROR(TEXT(AS185,"#,##0")&" gal managed/year",IFERROR(IF(AP185=0,"Infiltration rate too low.",""),"")) ->  | AO187: =TRIM(SUBSTITUTE(SUBSTITUTE(SUBSTITUTE(AO185," ",""),"-",""),"/","")&"List1") ->  | AP187: =IFERROR(INDEX(Lookup!$F$70:$F$90,MATCH(AO185,Lookup!$A$70:$A$90,0)),"") -> 
B189: =IFERROR( IF(OR(AO185="Permeable Pavement Facility",AO185="Vegetated Roof System"),"Minimum Facility Area "&TEXT((AP185*V185),"#,###")&" sf", IF(OR(AO185="Rainwater Harvesting - Category 2",AO185="Rainwater Harvesting - Category 4"),"Continuous runoff modeling required by", "")),"") ->  | N189: =IFERROR(INDEX(Lookup!$D$70:$D$90,MATCH(AO185,Lookup!$A$70:$A$90,0)),"") ->  | AC189: =IFERROR(IF(AO185="Sidewalk/Trail Compost-Amended Strip",ROUND(AQ185/(V185/H187),1) &" ft wide compost-amended strip",""),"") ->  | AO189: =TRIM(SUBSTITUTE(SUBSTITUTE(SUBSTITUTE(AO185," ",""),"-",""),"/","")&"List2") ->  | AP189: =IFERROR(INDEX(Lookup!$G$70:$G$90,MATCH(AO185,Lookup!$A$70:$A$90,0)),"") -> 
B191: =IFERROR(IF(OR(AO185="Rainwater Harvesting - Category 2",AO185="Rainwater Harvesting - Category 4"),"professional engineer.", ""),"") ->  | N191: =IFERROR(INDEX(Lookup!$E$70:$E$90,MATCH(AO185,Lookup!$A$70:$A$90,0)),"") ->  | AC191: =IFERROR(IF(AO185="Sidewalk/Trail Compost-Amended Strip",IF(AND(AC189="",H187<>""),"","along full "& ROUND(V185/H187,0) &" ft trail/sidewalk"),""),"") ->  | AO191: =TRIM(SUBSTITUTE(SUBSTITUTE(SUBSTITUTE(AO185," ",""),"-",""),"/","")&"List3") -> 
B193: =IFERROR(IF(INDEX($K$7:$K$46,MATCH(AN193,$AO$7:$AO$46,0))="","",INDEX($K$7:$K$46,MATCH(AN193,$AO$7:$AO$46,0))),"") ->  | N193: =IF(B193="","",IF(AO193="Vegetated Roof System","Roof Area","Contributing Area (sf)")) ->  | V193: =IF(B193="","",SUMIF($AO$7:$AO$46,AN193,$F$7:$I$46)) ->  | AC193: =IFERROR(IF(AO193="Water Quality BMP in lieu of NIB","Submit sizing documentation separately.", IF(AP193=-999,"Configuration not allowed.",IF(AP193=0,"Configuration not allowed.",IF(AO193="New or Retained Trees","As many as feasible.", IF(AP193="equation",TEXT(AQ193,"#,##0")&" "&AR193, TEXT(IF(OR(AO193="Permeable Pavement Facility",AO193="Vegetated Roof System",AO193="Rainwater Harvesting - Category 2", AO193="Rainwater Harvesting - Category 4"),H195, IF(AO193="Sidewalk/Trail Compost-Amended Strip",MAX(V193/H195,AP193*V193), AP193*V193)),"#,##0")&" "&AR193))))),"") ->  | AN193: 19 | AO193: =INDEX($AP$7:$AP$46,MATCH(AN193,$AO$7:$AO$46,0)) ->  | AP193: =IF(AO193="New or Retained Trees", INDEX(Lookup!$F$93:$F$219,MATCH(TRIM(CONCATENATE(AO193,V195)),Lookup!$E$93:$E$219,0)), IF(AO193="Single-family Residential Cisterns", INDEX(Lookup!$F$93:$F$219,MATCH(TRIM(CONCATENATE(AO193,IF(V193<400,0,IF(V193>4200,4201,ROUNDDOWN(V193,-2))))),Lookup!$E$93:$E$219,0)), IF(AO193="Sidewalk/Trail Compost-Amended Strip", IF(H195="",NA(),IF(H195<10,Lookup!$F$95,Lookup!$F$94)), IF(AND(AO193="Non-Infiltrating Bioretention",V197="Sloped sides"), IF(V195=2,0.013, IF(AND(V195=12,V193<=2000),0.004,"equation")), INDEX(Lookup!$F$93:$F$219,MATCH(TRIM(CONCATENATE(AO193,V195,V197,V199)),Lookup!$E$93:$E$219,0)))))) ->  | AQ193: =IF(AND(AO193="Non-Infiltrating Bioretention",V197="Sloped sides"), IF(V195=2,0.013*V193, IF(AND(V195=6,V193<=2000),0.0059*V193-3.215, IF(AND(V195=6,V193>2000,V193<=10000),0.0097*V193-11.297, IF(AND(V195=6,V193>10000),0.012*V193, IF(AND(V195=12,V193<=2700),0.004*V193, IF(AND(V195=12,V193>2700,V193<=10000),0.0052*V193-12.092, IF(AND(V195=12,V193>10000),0.01*V193,NA()))))))), IF(AP193<=0,NA(),IF(OR(AO193="Permeable Pavement Facility",AO193="Vegetated Roof System",AO193="Rainwater Harvesting - Category 2", AO193="Rainwater Harvesting - Category 4"),H195, IF(AO193="Sidewalk/Trail Compost-Amended Strip",MAX(V193/H195, AP193*V193), AP193*V193)))) ->  | AR193: =IF(AO193="Single-family Residential Cisterns", "sf",INDEX(Lookup!$H$93:$H$219,MATCH(TRIM(CONCATENATE(AO193,V195,V197,V199)),Lookup!$E$93:$E$219,0))) ->  | AS193: =IF(AO193="New or Retained Trees", INDEX(Lookup!$G$93:$G$219,MATCH(TRIM(CONCATENATE(AO193,V195)),Lookup!$E$93:$E$219,0))*V197, IF(AO193="Single-family Residential Cisterns", INDEX(Lookup!$G$93:$G$219,MATCH(TRIM(CONCATENATE(AO193,IF(V193<400,0,IF(V193>4200,4201,ROUNDDOWN(V193,-2))))),Lookup!$E$93:$E$219,0))*V193, IF(AND(AO193="Sidewalk/Trail Compost-Amended Strip",OR(H195="",InfRate=0)),NA(), INDEX(Lookup!$G$93:$G$219,MATCH(TRIM(CONCATENATE(AO193,V195,V197,V199)),Lookup!$E$93:$E$219,0))*V193)))*7.48052 *IF(OR(AO193="Permeable Pavement Facility",AO193="Vegetated Roof System"),MIN(1,H195/(AP193*V193)),1) +IF(AO193="Permeable Pavement Facility",H195*2.1*7.48052,1) ->  | AT193: =IFERROR( IF(AO193="Single-family Residential Cisterns",INDEX(Lookup!$H$93:$H$219,MATCH(TRIM(CONCATENATE(AO193,IF(V193<400,0,IF(V193>4200,4201,ROUNDDOWN(V193,-2))))),Lookup!$E$93:$E$219,0)), IF(AO193="Sidewalk/Trail Compost-Amended Strip",ROUND(AQ193/(V193/H195),1) &" ft wide x "& ROUND(V193/H195,0)&" ft long", IF(OR(AO193="Rainwater Harvesting - Category 2",AO193="Rainwater Harvesting - Category 4")," required minimum live storage", IF(AO193="Water Quality BMP in lieu of NIB","See Plan", IF(AND(V195="",V197="",V199=""),"",TRIM(V197&" "&AP197&" "&V195&" "&AP195&" "&V199&" "&AP199)))))),"") -> 
B195: =IFERROR( IF(AO193="Permeable Pavement Facility","Facility Area (sf)", IF(AO193="Vegetated Roof System","Vegetated Area (sf)", IF(AO193="Sidewalk/Trail Compost-Amended Strip","Sidewalk/Trail Width (ft)", IF(OR(AO193="Rainwater Harvesting - Category 2",AO193="Rainwater Harvesting - Category 4"),"Live Storage Volume (gal)", "")))),"") ->  | N195: =IFERROR(INDEX(Lookup!$C$70:$C$90,MATCH(AO193,Lookup!$A$70:$A$90,0)),"") ->  | AC195: =IFERROR(TEXT(AS193,"#,##0")&" gal managed/year",IFERROR(IF(AP193=0,"Infiltration rate too low.",""),"")) ->  | AO195: =TRIM(SUBSTITUTE(SUBSTITUTE(SUBSTITUTE(AO193," ",""),"-",""),"/","")&"List1") ->  | AP195: =IFERROR(INDEX(Lookup!$F$70:$F$90,MATCH(AO193,Lookup!$A$70:$A$90,0)),"") -> 
B197: =IFERROR( IF(OR(AO193="Permeable Pavement Facility",AO193="Vegetated Roof System"),"Minimum Facility Area "&TEXT((AP193*V193),"#,###")&" sf", IF(OR(AO193="Rainwater Harvesting - Category 2",AO193="Rainwater Harvesting - Category 4"),"Continuous runoff modeling required by", "")),"") ->  | N197: =IFERROR(INDEX(Lookup!$D$70:$D$90,MATCH(AO193,Lookup!$A$70:$A$90,0)),"") ->  | AC197: =IFERROR(IF(AO193="Sidewalk/Trail Compost-Amended Strip",ROUND(AQ193/(V193/H195),1) &" ft wide compost-amended strip",""),"") ->  | AO197: =TRIM(SUBSTITUTE(SUBSTITUTE(SUBSTITUTE(AO193," ",""),"-",""),"/","")&"List2") ->  | AP197: =IFERROR(INDEX(Lookup!$G$70:$G$90,MATCH(AO193,Lookup!$A$70:$A$90,0)),"") -> 
B199: =IFERROR(IF(OR(AO193="Rainwater Harvesting - Category 2",AO193="Rainwater Harvesting - Category 4"),"professional engineer.", ""),"") ->  | N199: =IFERROR(INDEX(Lookup!$E$70:$E$90,MATCH(AO193,Lookup!$A$70:$A$90,0)),"") ->  | AC199: =IFERROR(IF(AO193="Sidewalk/Trail Compost-Amended Strip",IF(AND(AC197="",H195<>""),"","along full "& ROUND(V193/H195,0) &" ft trail/sidewalk"),""),"") ->  | AO199: =TRIM(SUBSTITUTE(SUBSTITUTE(SUBSTITUTE(AO193," ",""),"-",""),"/","")&"List3") -> 
B201: =IFERROR(IF(INDEX($K$7:$K$46,MATCH(AN201,$AO$7:$AO$46,0))="","",INDEX($K$7:$K$46,MATCH(AN201,$AO$7:$AO$46,0))),"") ->  | N201: =IF(B201="","",IF(AO201="Vegetated Roof System","Roof Area","Contributing Area (sf)")) ->  | V201: =IF(B201="","",SUMIF($AO$7:$AO$46,AN201,$F$7:$I$46)) ->  | AC201: =IFERROR(IF(AO201="Water Quality BMP in lieu of NIB","Submit sizing documentation separately.", IF(AP201=-999,"Configuration not allowed.",IF(AP201=0,"Configuration not allowed.",IF(AO201="New or Retained Trees","As many as feasible.", IF(AP201="equation",TEXT(AQ201,"#,##0")&" "&AR201, TEXT(IF(OR(AO201="Permeable Pavement Facility",AO201="Vegetated Roof System",AO201="Rainwater Harvesting - Category 2", AO201="Rainwater Harvesting - Category 4"),H203, IF(AO201="Sidewalk/Trail Compost-Amended Strip",MAX(V201/H203,AP201*V201), AP201*V201)),"#,##0")&" "&AR201))))),"") ->  | AN201: 20 | AO201: =INDEX($AP$7:$AP$46,MATCH(AN201,$AO$7:$AO$46,0)) ->  | AP201: =IF(AO201="New or Retained Trees", INDEX(Lookup!$F$93:$F$219,MATCH(TRIM(CONCATENATE(AO201,V203)),Lookup!$E$93:$E$219,0)), IF(AO201="Single-family Residential Cisterns", INDEX(Lookup!$F$93:$F$219,MATCH(TRIM(CONCATENATE(AO201,IF(V201<400,0,IF(V201>4200,4201,ROUNDDOWN(V201,-2))))),Lookup!$E$93:$E$219,0)), IF(AO201="Sidewalk/Trail Compost-Amended Strip", IF(H203="",NA(),IF(H203<10,Lookup!$F$95,Lookup!$F$94)), IF(AND(AO201="Non-Infiltrating Bioretention",V205="Sloped sides"), IF(V203=2,0.013, IF(AND(V203=12,V201<=2000),0.004,"equation")), INDEX(Lookup!$F$93:$F$219,MATCH(TRIM(CONCATENATE(AO201,V203,V205,V207)),Lookup!$E$93:$E$219,0)))))) ->  | AQ201: =IF(AND(AO201="Non-Infiltrating Bioretention",V205="Sloped sides"), IF(V203=2,0.013*V201, IF(AND(V203=6,V201<=2000),0.0059*V201-3.215, IF(AND(V203=6,V201>2000,V201<=10000),0.0097*V201-11.297, IF(AND(V203=6,V201>10000),0.012*V201, IF(AND(V203=12,V201<=2700),0.004*V201, IF(AND(V203=12,V201>2700,V201<=10000),0.0052*V201-12.092, IF(AND(V203=12,V201>10000),0.01*V201,NA()))))))), IF(AP201<=0,NA(),IF(OR(AO201="Permeable Pavement Facility",AO201="Vegetated Roof System",AO201="Rainwater Harvesting - Category 2", AO201="Rainwater Harvesting - Category 4"),H203, IF(AO201="Sidewalk/Trail Compost-Amended Strip",MAX(V201/H203, AP201*V201), AP201*V201)))) ->  | AR201: =IF(AO201="Single-family Residential Cisterns", "sf",INDEX(Lookup!$H$93:$H$219,MATCH(TRIM(CONCATENATE(AO201,V203,V205,V207)),Lookup!$E$93:$E$219,0))) ->  | AS201: =IF(AO201="New or Retained Trees", INDEX(Lookup!$G$93:$G$219,MATCH(TRIM(CONCATENATE(AO201,V203)),Lookup!$E$93:$E$219,0))*V205, IF(AO201="Single-family Residential Cisterns", INDEX(Lookup!$G$93:$G$219,MATCH(TRIM(CONCATENATE(AO201,IF(V201<400,0,IF(V201>4200,4201,ROUNDDOWN(V201,-2))))),Lookup!$E$93:$E$219,0))*V201, IF(AND(AO201="Sidewalk/Trail Compost-Amended Strip",OR(H203="",InfRate=0)),NA(), INDEX(Lookup!$G$93:$G$219,MATCH(TRIM(CONCATENATE(AO201,V203,V205,V207)),Lookup!$E$93:$E$219,0))*V201)))*7.48052 *IF(OR(AO201="Permeable Pavement Facility",AO201="Vegetated Roof System"),MIN(1,H203/(AP201*V201)),1) +IF(AO201="Permeable Pavement Facility",H203*2.1*7.48052,1) ->  | AT201: =IFERROR( IF(AO201="Single-family Residential Cisterns",INDEX(Lookup!$H$93:$H$219,MATCH(TRIM(CONCATENATE(AO201,IF(V201<400,0,IF(V201>4200,4201,ROUNDDOWN(V201,-2))))),Lookup!$E$93:$E$219,0)), IF(AO201="Sidewalk/Trail Compost-Amended Strip",ROUND(AQ201/(V201/H203),1) &" ft wide x "& ROUND(V201/H203,0)&" ft long", IF(OR(AO201="Rainwater Harvesting - Category 2",AO201="Rainwater Harvesting - Category 4")," required minimum live storage", IF(AO201="Water Quality BMP in lieu of NIB","See Plan", IF(AND(V203="",V205="",V207=""),"",TRIM(V205&" "&AP205&" "&V203&" "&AP203&" "&V207&" "&AP207)))))),"") -> 
B203: =IFERROR( IF(AO201="Permeable Pavement Facility","Facility Area (sf)", IF(AO201="Vegetated Roof System","Vegetated Area (sf)", IF(AO201="Sidewalk/Trail Compost-Amended Strip","Sidewalk/Trail Width (ft)", IF(OR(AO201="Rainwater Harvesting - Category 2",AO201="Rainwater Harvesting - Category 4"),"Live Storage Volume (gal)", "")))),"") ->  | N203: =IFERROR(INDEX(Lookup!$C$70:$C$90,MATCH(AO201,Lookup!$A$70:$A$90,0)),"") ->  | AC203: =IFERROR(TEXT(AS201,"#,##0")&" gal managed/year",IFERROR(IF(AP201=0,"Infiltration rate too low.",""),"")) ->  | AO203: =TRIM(SUBSTITUTE(SUBSTITUTE(SUBSTITUTE(AO201," ",""),"-",""),"/","")&"List1") ->  | AP203: =IFERROR(INDEX(Lookup!$F$70:$F$90,MATCH(AO201,Lookup!$A$70:$A$90,0)),"") -> 
B205: =IFERROR( IF(OR(AO201="Permeable Pavement Facility",AO201="Vegetated Roof System"),"Minimum Facility Area "&TEXT((AP201*V201),"#,###")&" sf", IF(OR(AO201="Rainwater Harvesting - Category 2",AO201="Rainwater Harvesting - Category 4"),"Continuous runoff modeling required by", "")),"") ->  | N205: =IFERROR(INDEX(Lookup!$D$70:$D$90,MATCH(AO201,Lookup!$A$70:$A$90,0)),"") ->  | AC205: =IFERROR(IF(AO201="Sidewalk/Trail Compost-Amended Strip",ROUND(AQ201/(V201/H203),1) &" ft wide compost-amended strip",""),"") ->  | AO205: =TRIM(SUBSTITUTE(SUBSTITUTE(SUBSTITUTE(AO201," ",""),"-",""),"/","")&"List2") ->  | AP205: =IFERROR(INDEX(Lookup!$G$70:$G$90,MATCH(AO201,Lookup!$A$70:$A$90,0)),"") -> 
B207: =IFERROR(IF(OR(AO201="Rainwater Harvesting - Category 2",AO201="Rainwater Harvesting - Category 4"),"professional engineer.", ""),"") ->  | N207: =IFERROR(INDEX(Lookup!$E$70:$E$90,MATCH(AO201,Lookup!$A$70:$A$90,0)),"") ->  | AC207: =IFERROR(IF(AO201="Sidewalk/Trail Compost-Amended Strip",IF(AND(AC205="",H203<>""),"","along full "& ROUND(V201/H203,0) &" ft trail/sidewalk"),""),"") ->  | AO207: =TRIM(SUBSTITUTE(SUBSTITUTE(SUBSTITUTE(AO201," ",""),"-",""),"/","")&"List3") -> 

Sheet Infeasibility Criteria
A1: On-site Stormwater Management Calculator
C2: Infeasibility Criteria
A3: =Version -> Version 01-04-2023
A5: Infeasibility Criteria
B6: Full Dispersion
B7: 1 | C7: Installation requires removal of an existing tree.
B8: 2 | C8: Installation is prohibited per Regulations for Environmentally Critical Areas (SMC Chapter 25.09).
B9: 3 | C9: Installation would require pumping to a designated point of discharge, but failure of the pump may destabilize a steep slope.
B10: 4 | C10: Unable to maintain a desired access of 36 inches in a required building setback from a property line.
B11: 5 | C11: Unable to maintain clearance for required ingress, egress, or ADA pathways.
B12: 6 | C12: Installation would require a pump when a pump is not already required to provide site storm drainage.
B13: 7 | C13: A licensed professional recommends dispersion not be used anywhere within project site due to reasonable concerns of erosion, slope failure, or flooding.
B14: 8 | C14: The dispersion flow path area does not provide positive drainage.
B15: 9 | C15: The dispersion flowpath area is within a landslide-prone area (SMC, Section 25.09.080).
B16: 10 | C16: The dispersion flowpath area is within 100 feet of a contaminated site or landfill (active or closed).
B17: 11 | C17: The dispersion flowpath area is in a steep slope area (SMC, Section 25.09.020) or within a setback to a steep slope area (calculated as 10 times the height of the steep slope to a 500 foot maximum setback).
B18: 12 | C18: The dispersion flowpath area is within 10 feet of a proposed or existing septic system or drainfield.
B19: 13 | C19: The site has less than a 65 to 10 ratio of the native vegetation area to the impervious area.
B20: 14 | C20: The minimum native vegetation flowpath length is less than 100 feet.
B21: Infiltration Trench
B22: 1 | C22: Installation requires removal of an existing tree.
B23: 2 | C23: Where BMP installation is prohibited per Regulations for Environmentally Critical Areas (SMC Chapter 25.09).
B24: 3 | C24: Installation would require pumping to a designated point of discharge, but failure of the pump may destabilize a steep slope.
B25: 4 | C25: Installation would require a pump when a pump is not already required to provide site storm drainage.
B26: 5 | C26: Infiltration is not recommended due to reasonable concerns about erosion, slope failure, or flooding.
B27: 6 | C27: The area available for siting would threaten the safety or reliability of pre-existing underground utilities, pre-existing underground storage tanks, pre-existing structures, or pre-existing road or parking lot surfaces or subgrades.
B28: 7 | C28: The area available for siting would threaten shoreline structures such as bulkheads.
B29: 8 | C29: Evaluation of infiltration is not required per the “Infiltration Investigation Map”.
B30: 9 | C30: The area available for siting does not allow for overflow conveyance to an approved point of discharge per Volume 3, Section 4.3.2.
B31: 10 | C31: The area available for siting is within a steep slope area or land-slide prone area (or setback) (refer to Volume 3, Section 3.2).
B32: 11 | C32: The area available for siting does not meet the minimum horizontal setback requirements (refer to Volume 3, Section 3.2).
B33: 12 | C33: The area available for siting does not meet the minimum vertical setback requirements (refer to Volume 3, Section 3.2, and Appendix D).
B34: 13 | C34: Infiltration is restricted due to contaminated soil or groundwater (refer to Volume 3, Section 3.2).
B35: 14 | C35: Field testing indicates potential infiltration trench site(s) have a measured underlying soil infiltration rate less than 5 inches per hour (Volume 3, Section 5.4.2).
B36: 15 | C36: Where the site cannot be reasonably designed to locate a catch basin between the infiltration trench and point of connection to the public system.
B37: Drywell
B38: 1 | C38: Installation requires removal of an existing tree.
B39: 2 | C39: Where BMP installation is prohibited per Regulations for Environmentally Critical Areas (SMC Chapter 25.09).
B40: 3 | C40: Installation would require pumping to a designated point of discharge, but failure of the pump may destabilize a steep slope.
B41: 4 | C41: Installation would require a pump when a pump is not already required to provide site storm drainage.
B42: 5 | C42: Infiltration is not recommended due to reasonable concerns about erosion, slope failure, or flooding.
B43: 6 | C43: The area available for siting would threaten the safety or reliability of pre-existing underground utilities, pre-existing underground storage tanks, pre-existing structures, or pre-existing road or parking lot surfaces or subgrades.
B44: 7 | C44: The area available for siting would threaten shoreline structures such as bulkheads.
B45: 8 | C45: Evaluation of infiltration is not required per the “Infiltration Investigation Map”.
B46: 9 | C46: The area available for siting does not allow for overflow conveyance to an approved point of discharge per Volume 3, Section 4.3.2.
B47: 10 | C47: The area available for siting is within a steep slope area or land-slide prone area (or setback) (refer to Volume 3, Section 3.2).
B48: 11 | C48: The area available for siting does not meet the minimum horizontal setback requirements (refer to Volume 3, Section 3.2).
B49: 12 | C49: The area available for siting does not meet the minimum vertical setback requirements (refer to Volume 3, Section 3.2, and Appendix D).
B50: 13 | C50: Infiltration is restricted due to contaminated soil or groundwater (refer to Volume 3, Section 3.2).
B51: 14 | C51: Field testing indicates potential drywell site(s) have a measured underlying soil infiltration rate less than 5 inches per hour (Volume 3, Section 5.4.3).
B52: 15 | C52: Where the site cannot be reasonably designed to locate a catch basin between the drywell and point of connection to the public system.
B53: Rain Garden
B54: 1 | C54: Installation requires removal of an existing tree.
B55: 2 | C55: Where BMP installation is prohibited per Regulations for Environmentally Critical Areas (SMC Chapter 25.09).
B56: 3 | C56: Installation would require pumping to a designated point of discharge, but failure of the pump may destabilize a steep slope.
B57: 4 | C57: Unable to maintain a desired access of 36 inches in a required building setback from a property line.
B58: 5 | C58: Unable to maintain clearance for required ingress, egress, or ADA pathways.
B59: 6 | C59: Installation would require a pump when a pump is not already required to provide site storm drainage.
B60: 7 | C60: Infiltration is not recommended due to reasonable concerns about erosion, slope failure, or flooding.
B61: 8 | C61: The area available for siting would threaten the safety or reliability of pre-existing underground utilities, pre-existing underground storage tanks, pre-existing structures, or pre-existing road or parking lot surfaces or subgrades.
B62: 9 | C62: The area available for siting would threaten shoreline structures such as bulkheads.
B63: 10 | C63: Evaluation of infiltration is not required per the “Infiltration Investigation Map”.
B64: 11 | C64: The area available for siting does not allow for overflow conveyance to an approved point of discharge per Volume 3, Section 4.3.2.
B65: 12 | C65: The area available for siting is within a steep slope area or land-slide prone area (or setback) (refer to Volume 3, Section 3.2).
B66: 13 | C66: The area available for siting does not meet the minimum horizontal setback requirements (refer to Volume 3, Section 3.2).
B67: 14 | C67: The area available for siting does not meet the minimum vertical setback requirements (refer to Volume 3, Section 3.2, and Appendix D).
B68: 15 | C68: Infiltration is restricted due to contaminated soil or groundwater (refer to Volume 3, Section 3.2).
B69: 16 | C69: In the right-of-way, the longitudinal road slope exceeds 4 percent.
B70: 17 | C70: The rain garden would have a linear geometry with a longitudinal slope greater than 8 percent.
B71: 18 | C71: The minimum bottom width of the rain garden (12-inch average) cannot be met due to, but not limited to: encroachment within the critical root zone of an existing tree(s) or minimum setbacks to structures, utilities, or property lines.
B72: 19 | C72: The infiltration area is within the minimum vertical or horizontal clearance from utilities, according to clearances required by the utility owner.
B73: 20 | C73: For projects in the right-of-way, the total rain garden top area would be less than 500 square feet and the project discharges to: A designated receiving water body or, A combined system, or A capacity constrained system which does not drain to a creek wetland or small lake.
B74: 21 | C74: Field testing indicates soils have a measured underlying soil infiltration rate less than 0.3 inches per hour.
B75: Infiltrating Bioretention
B76: 1 | C76: Installation requires removal of an existing tree.
B77: 2 | C77: Where BMP installation is prohibited per Regulations for Environmentally Critical Areas (SMC Chapter 25.09).
B78: 3 | C78: Installation would require pumping to a designated point of discharge, but failure of the pump may destabilize a steep slope.
B79: 4 | C79: Unable to maintain a desired access of 36 inches in a required building setback from a property line.
B80: 5 | C80: Unable to maintain clearance for required ingress, egress, or ADA pathways.
B81: 6 | C81: Installation would require a pump when a pump is not already required to provide site storm drainage.
B82: 7 | C82: Infiltration is not recommended due to reasonable concerns about erosion, slope failure, or flooding.
B83: 8 | C83: The area available for siting would threaten the safety or reliability of pre-existing underground utilities, pre-existing underground storage tanks, pre-existing structures, or pre-existing road or parking lot surfaces or subgrades.
B84: 9 | C84: The area available for siting would threaten shoreline structures such as bulkheads.
B85: 10 | C85: Evaluation of infiltration is not required per the “Infiltration Investigation Map”.
B86: 11 | C86: The area available for siting does not allow for overflow conveyance to an approved point of discharge per Volume 3, Section 4.3.2.
B87: 12 | C87: The area available for siting is within a steep slope area or land-slide prone area (or setback) (refer to Volume 3, Section 3.2).
B88: 13 | C88: The area available for siting does not meet the minimum horizontal setback requirements (refer to Volume 3, Section 3.2).
B89: 14 | C89: The area available for siting does not meet the minimum vertical setback requirements (refer to Volume 3, Section 3.2, and Appendix D).
B90: 15 | C90: Infiltration is restricted due to contaminated soil or groundwater (refer to Volume 3, Section 3.2).
B91: 16 | C91: The infiltrating bioretention facility would have a linear geometry with a longitudinal slope greater than 8 percent.
B92: 17 | C92: The minimum bottom width of the infiltrating bioretention facility (2 feet for facilities with vertical sides and 18 inch average for facilities with sloped sides) cannot be met due to, but not limited to: encroachment within the critical root zone of an existing tree(s) or minimum setbacks to structures, utilities, or property lines.
B93: 18 | C93: The infiltration area is within the minimum vertical and horizontal clearance from utilities, according to clearances required by the utility owner.
B94: 19 | C94: Field testing indicates soils have a measured underlying soil infiltration rate less than 0.3 inches per hour.
B95: 20 | C95: Field testing indicates soils have a measured underlying soil infiltration rate less than 0.6 inches per hour and an underdrain cannot be installed per the design criteria.
B96: 21 | C96: The facility with an underdrain would route underdrained water to a nutrient-critical receiving water.
B97: 22 | C97: In the right-of-way, installation requires a vertical walled facility.
B98: Rainwater Harvesting
B99: 1 | C99: Installation requires removal of an existing tree.
B100: 2 | C100: Installation is prohibited per Regulations for Environmentally Critical Areas (SMC Chapter 25.09).
B101: 3 | C101: Installation would require pumping to a designated point of discharge, but failure of the pump may destabilize a steep slope.
B102: 4 | C102: Unable to maintain a desired access of 36 inches in a required building setback from a property line.
B103: 5 | C103: Unable to maintain clearance for required ingress, egress, or ADA pathways.
B104: 6 | C104: Installation would require a pump when a pump is not already required to provide site storm drainage. (Requiring a pump as the result of using the Rainwater Harvesting BMP does not make this BMP infeasible.)
B105: 7 | C105: Project lacks non-pollution-generating roof from which to harvest rainwater.
B106: 8 | C106: Non-potable water demand is insufficient to meet the On-site Performance Standard per modeling conducted in accordance with Volume 3, Section 5.5.1.6.
B107: 9 | C107: Installation is not economically feasible based on reasonable consideration of financial cost (e.g., roof area is less than 20,000 sf or the ratio of roof area to average daily rainwater demand is less than 10,000 square feet/gpm) (refer to Appendix H). Documentation is required.
B108: Permeable Pavement Facility
B109: 1 | C109: Installation requires removal of an existing tree.
B110: 2 | C110: Where BMP installation is prohibited per Regulations for Environmentally Critical Areas (SMC Chapter 25.09).
B111: 3 | C111: Installation would require pumping to a designated point of discharge, but failure of the pump may destabilize a steep slope.
B112: 4 | C112: Installation would require a pump when a pump is not already required to provide site storm drainage.
B113: 5 | C113: Infiltration is not recommended due to reasonable concerns about erosion, slope failure, or flooding.
B114: 6 | C114: The area available for siting would threaten the safety or reliability of pre-existing underground utilities, pre-existing underground storage tanks, pre-existing structures, or pre-existing road or parking lot surfaces or subgrades.
B115: 7 | C115: The area available for siting would threaten shoreline structures such as bulkheads.
B116: 8 | C116: Evaluation of infiltration is not required per the “Infiltration Investigation Map”.
B117: 9 | C117: The area available for siting does not allow for overflow conveyance to an approved point of discharge per Volume 3, Section 4.3.2.
B118: 10 | C118: The area available for siting is within a steep slope area or land-slide prone area (or setback) (refer to Volume 3, Section 3.2).
B119: 11 | C119: The area available for siting does not meet the minimum horizontal setback requirements (refer to Volume 3, Section 3.2).
B120: 12 | C120: The area available for siting does not meet the minimum vertical setback requirements (refer to Volume 3, Section 3.2, and Appendix D).
B121: 13 | C121: Infiltration is restricted due to contaminated soil or groundwater (refer to Volume 3, Section 3.2).
B122: 14 | C122: Infiltrating or ponding water below pavement area would compromise adjacent pavements.
B123: 15 | C123: Fill soils are used that can become unstable when saturated.
B124: 16 | C124: The permeable pavement design does not provide sufficient strength to support heavy loads in areas with “industrial activity” as identified in 40 CFR 122.26(b)(14).
B125: 17 | C125: The subgrade slope exceeds 6 percent after reasonable efforts to grade.
B126: 18 | C126: The permeable pavement wearing course slope exceeds 6 percent after reasonable efforts to grade.
B127: 19 | C127: For projects in the right-of-way, the permeable pavement surface area would be less than 2,000 square feet of contiguous pavement and the project discharges to: a designated receiving water body, a combined system, or a capacity constrained system which does not drain to a creek wetland or small lake.
B128: 20 | C128: The anticipated mature tree spread (based on tree species) would overhang more than 50 percent of permeable pavement area.
B129: 21 | C129: The pavement is over a structure, such as, but not limited to: parking garages, box culverts, and bridges.
B130: 22 | C130: The pavement is subject to long-term excessive sediment deposition (e.g., construction and landscaping material yards).
B131: 23 | C131: Underlying soils are unsuitable for supporting traffic loads when saturated (e.g., a residential access road has a California Bearing Ratio of 5 percent or less).
B132: 24 | C132: Field testing indicates soils have a measured underlying soil infiltration rate less than 0.3 inches per hour.
B133: 25 | C133: Pavement is replacing an existing pollution-generating hard surface in the right-of-way.
B134: 26 | C134: The street type is classified as arterial or collector rather than local access. Refer to RCW 35.78.010, RCW 36.86.070, and RCW 47.05.021. Note: This infeasibility criterion does not extend to sidewalks and other non-traffic bearing surfaces associated with the collector or arterial.
B135: 27 | C135: Streets that receive more than very low traffic volumes, and areas having more than very low truck traffic. Streets with a projected average daily traffic volume of 400 vehicles or less are very low volume roads (AASHTO, 2001)(U.S. Dept. of Transportation, 2013). Areas with very low truck traffic volumes are streets and other areas not subject to through truck traffic but may receive up to weekly use by utility trucks (e.g., garbage, recycling), daily school bus use, and multiple daily use by pick-up trucks, mail/parcel delivery trucks, and maintenance vehicles. Note: This infeasibility criterion does not extend to sidewalks and other non-traffic bearing surfaces.
B136: 28 | C136: The pavement area is defined as a “high use site” in SMC, Section 22.801.090.
B137: 29 | C137: In areas with “industrial activity” as identified in 40 CFR 122.26(b)(14).
B138: 30 | C138: Where the risk of concentrated pollutant spills is more likely, including, but not limited to, gas stations, truck stops, and industrial chemical storage sites.
B139: 31 | C139: In areas where routine, heavy roadway applications of sand occur in frequent snow zones to maintain traction during weeks of snow and ice accumulation, including sidewalks within 7 feet of roadways with sand application.
B140: 32 | C140: Where runon from unstabilized erodible areas would occur without presettling.
B141: 33 | C141: The areas contributing runoff to the permeable pavement facilities exceed the maximum run-on limits: Pollution-generating impervious surfaces (e.g., roadways, parking lots) exceed the maximum run-on area ratio of 2:1, Non-pollution generating impervious surfaces (e.g., roofs, sidewalks) and stabilized pervious surfaces exceed the maximum run-on area ratio of 5:1
B142: 34 | C142: The Director has determined that permeable pavement in active zones of a skate park, bike park, or sport court violates safety standards.
B143: Permeable Pavement Surface
B144: 1 | C144: Installation requires removal of an existing tree.
B145: 2 | C145: Where BMP installation is prohibited per Regulations for Environmentally Critical Areas (SMC Chapter 25.09).
B146: 3 | C146: Installation would require pumping to a designated point of discharge, but failure of the pump may destabilize a steep slope.
B147: 4 | C147: Unable to maintain a desired access of 36 inches in a required building setback from a property line.
B148: 5 | C148: Unable to maintain clearance for required ingress, egress, or ADA pathways.
B149: 6 | C149: Installation would require a pump when a pump is not already required to provide site storm drainage.
B150: 7 | C150: Infiltrating or ponding water below pavement area would compromise adjacent pavements.
B151: 8 | C151: Fill soils are used that can become unstable when saturated.
B152: 9 | C152: The permeable pavement design does not provide sufficient strength to support heavy loads in areas with “industrial activity” as identified in 40 CFR 122.26(b)(14).
B153: 10 | C153: The subgrade slope exceeds 6 percent after reasonable efforts to grade.
B154: 11 | C154: The permeable pavement wearing course slope exceeds 6 percent after reasonable efforts to grade.
B155: 12 | C155: For projects in the right-of-way, the permeable pavement surface area would be less than 2,000 square feet of contiguous pavement and the project discharges to: a designated receiving water body, a combined system, or a capacity constrained system which does not drain to a creek wetland or small lake.
B156: 13 | C156: The anticipated mature tree spread (based on tree species) would overhang more than 50 percent of permeable pavement area.
B157: 14 | C157: The pavement is over a structure, such as, but not limited to: parking garages, box culverts, and bridges.
B158: 15 | C158: The pavement is subject to long-term excessive sediment deposition (e.g., construction and landscaping material yards).
B159: 16 | C159: Underlying soils are unsuitable for supporting traffic loads when saturated (e.g., a residential access road has a California Bearing Ratio of 5 percent or less).
B160: 17 | C160: Field testing indicates soils have a measured underlying soil infiltration rate less than 0.3 inches per hour.
B161: 18 | C161: Pavement is replacing an existing pollution-generating hard surface in the right-of-way.
B162: 19 | C162: The street type is classified as arterial or collector rather than local access. Refer to RCW 35.78.010, RCW 36.86.070, and RCW 47.05.021. Note: This infeasibility criterion does not extend to sidewalks and other non-traffic bearing surfaces associated with the collector or arterial.
B163: 20 | C163: Streets that receive more than very low traffic volumes, and areas having more than very low truck traffic. Streets with a projected average daily traffic volume of 400 vehicles or less are very low volume roads (AASHTO, 2001)(U.S. Dept. of Transportation, 2013). Areas with very low truck traffic volumes are streets and other areas not subject to through truck traffic but may receive up to weekly use by utility trucks (e.g., garbage, recycling), daily school bus use, and multiple daily use by pick-up trucks, mail/parcel delivery trucks, and maintenance vehicles. Note: This infeasibility criterion does not extend to sidewalks and other non-traffic bearing surfaces.
B164: 21 | C164: The pavement area is defined as a “high use site” in SMC, Section 22.801.090.
B165: 22 | C165: In areas with “industrial activity” as identified in 40 CFR 122.26(b)(14).
B166: 23 | C166: Where the risk of concentrated pollutant spills is more likely, including, but not limited to, gas stations, truck stops, and industrial chemical storage sites.
B167: 24 | C167: In areas where routine, heavy roadway applications of sand occur in frequent snow zones to maintain traction during weeks of snow and ice accumulation, including sidewalks within 7 feet of roadways with sand application.
B168: 25 | C168: Where runon from unstabilized erodible areas would occur without presettling.
B169: 26 | C169: Field testing indicates soils have a measured underlying soil infiltration rate less than 0.3 inches per hour (Note: field infiltration tests are not required for permeable pavement surfaces, but must be used to demonstrate infeasibility).
B170: 27 | C170: The site is a contaminated site or abandoned landfill.
B171: 28 | C171: Installation is within 10 feet of a petroleum, chemical, or liquid hazardous waste storage tank or connecting underground pipes.
B172: 29 | C172: Run-on from an adjacent impervious area is greater than 10 percent of the permeable pavement surface area.
B173: 30 | C173: A licensed professional (as defined in Appendix D, Section D-1) recommends permeable pavement not be used anywhere within the project site due to reasonable concerns of erosion, slope failure, or flooding (requires a signed and stamped written determination based on site-specific conditions from a licensed professional).
B174: 31 | C174: The Director has determined that permeable pavement in active zones of a skate park, bike park, or sport court violates safety standards.
B175: 32 | C175: Subsurface investigation demonstrate groundwater or hydraulically-restrictive layer is too shallow per the Minimum Vertical Separation table.
B176: Sidewalk/Trail Compost-Amended Strip
B177: 1 | C177: Installation requires removal of an existing tree.
B178: 2 | C178: Installation is prohibited per Regulations for Environmentally Critical Areas (SMC Chapter 25.09).
B179: 3 | C179: Installation would require pumping to a designated point of discharge, but failure of the pump may destabilize a steep slope.
B180: 4 | C180: Unable to maintain a desired access of 36 inches in a required building setback from a property line.
B181: 5 | C181: Unable to maintain clearance for required ingress, egress, or ADA pathways.
B182: 6 | C182: Installation would require a pump when a pump is not already required to provide site storm drainage.
B183: 7 | C183: A licensed professional recommends dispersion not be used anywhere within project site due to reasonable concerns of erosion, slope failure, or flooding.
B184: 8 | C184: The dispersion flow path area does not provide positive drainage.
B185: 9 | C185: The dispersion flowpath area is within a landslide-prone area (SMC, Section 25.09.080).
B186: 10 | C186: The dispersion flowpath area is within 100 feet of a contaminated site or landfill (active or closed).
B187: 11 | C187: The dispersion flowpath area is in a steep slope area (SMC, Section 25.09.020) or within a setback to a steep slope area (calculated as 10 times the height of the steep slope to a 500 foot maximum setback).
B188: 12 | C188: The dispersion flowpath area is within 10 feet of a proposed or existing septic system or drainfield.
B189: 13 | C189: Infiltration is not recommended due to reasonable concerns about erosion, slope failure, or flooding.
B190: 14 | C190: The area available for siting would threaten the safety or reliability of pre-existing underground utilities, pre-existing underground storage tanks, pre-existing structures, or pre-existing road or parking lot surfaces or subgrades.
B191: 15 | C191: The area available for siting would threaten shoreline structures such as bulkheads.
B192: 16 | C192: Evaluation of infiltration is not required per the “Infiltration Investigation Map”.
B193: 17 | C193: The area available for siting does not allow for overflow conveyance to an approved point of discharge per Volume 3, Section 4.3.2.
B194: 18 | C194: The area available for siting is within a steep slope area or land-slide prone area (or setback) (refer to Volume 3, Section 3.2).
B195: 19 | C195: The area available for siting does not meet the minimum horizontal setback requirements (refer to Volume 3, Section 3.2).
B196: 20 | C196: The area available for siting does not meet the minimum vertical setback requirements (refer to Volume 3, Section 3.2, and Appendix D).
B197: 21 | C197: Infiltration is restricted due to contaminated soil or groundwater (refer to Volume 3, Section 3.2).
B198: 22 | C198: The flowpath downstream of the Sidewalk/Trail Compost-Amended Strip is within 10 feet of a proposed or existing septic system or drainfield, as measured from the toe of the Sidewalk/Trail Compost-Amended Strip slope.
B199: 23 | C199: The sidewalk or trail to be dispersed exceeds a lateral slope of 5 percent or a longitudinal slope of 8 percent.
B200: 24 | C200: The sidewalk or trail to be dispersed has a lateral slope of less than 1 percent.
B201: 25 | C201: Field testing indicates underlying soils have a design soil infiltration rate less than 0.15 inch per hour. Note that field infiltration tests are not required for Sidewalk/Trail Compost-Amended Strip, but must be used to demonstrate infeasibility.
... 128 more rows

Sheet MDC Exhibit A
A1: Exhibit A: On-site Stormwater Management Summary Sheet
A2: Attach to the Memorandum of Drainage Control
A3: This information is taken from the Drainage Control Plan approved as part of a building, site work or master use plan.
A5: Project Information
B6: Site Address | O6: ='Project Summary'!H6 -> 0
B7: SDCI Project Number | O7: ='Project Summary'!AG6 -> 0
B8: Project Type | O8: ='Project Summary'!H10 -> 0
B10: Total Site Area | R10: ='Project Summary'!S20 -> 0 | W10: sf
B11: Existing Hard Surface Area | R11: ='Project Summary'!AK28 -> 0 | W11: sf
B12: Total New plus Replaced Hard Surface Area | R12: ='Project Summary'!S22 -> 0 | W12: sf
B13: Total New and/or Replaced Lawn and Landscaping | R13: ='Project Summary'!S24 -> 0 | W13: sf
B14: Undisturbed and protected site area | R14: ='Project Summary'!S26 -> 0 | W14: sf
A15: Site Information
B16: Approved Point of Stormwater Discharge | O16: ='Project Summary'!Q33 -> 0
B17: Drainage Basin | O17: ='Project Summary'!Q35 -> 0
B18: Approved Point of Wastewater Discharge | O18: =SUBSTITUTE('Project Summary'!Q39,"(King County Public Health Department Approval Required)","") -> 
B19: Approved Point of Sub-Surface Discharge | O19: =SUBSTITUTE(SUBSTITUTE(SUBSTITUTE(SUBSTITUTE('Project Summary'!Q41,"“",""),"”",""),"Public Sanitary","Sanitary"),"on the Site","Onsite") -> 
B20: Flow Control (See Exibit B if required)
B21: Flow Control is required | O21: =IF('Project Summary'!AS47,"Yes","No") -> No
B22: Flow Control Standard(s) | O22: =SUBSTITUTE(SUBSTITUTE(IF('Project Summary'!AU35,'Project Summary'!AV35 & "; ","") & IF('Project Summary'!AU37,'Project Summary'!AV37 & "; ","") & IF('Project Summary'!AU39,'Project Summary'!AV39 & "; ","") & IF('Project Summary'!AU41,'Project Summary'!AV41 & "; ","") & IF('Project Summary'!AU43,'Project Summary'!AV43 & "; ","")&".","; .",""),".","") -> 
B23: Water Quality Treatment (See Exhibit C if required)
B24: Water Quality Treatment is required | O24: =IF('Project Summary'!AS49,"Yes","No") -> No
B25: Water Quality Treatment Standard(s) | O25: =SUBSTITUTE(SUBSTITUTE(IF('Project Summary'!AU47,"Oil Control; ","") & IF('Project Summary'!AU49,"Enhanced; ","") & IF('Project Summary'!AU51,"Basic; ","") &".","; .",""),".","") -> 
B26: Structural Source Control is required (See Exhibit D if required) | O26: ='Project Summary'!AK61 -> 0
A28: On-site Stormwater Management
B29: Surface | E29: Description | J29: On-site BMP | Q29: Contrib. Area (sf) | U29: Facility Size (sf) | Y29: Facility Configuration
B30: =IF(INDIRECT("'Project Summary'!B"&AI30)=AI30-81,INDIRECT("'Project Summary'!B"&AI30),"") ->  | E30: =IF($B30=$AH30,INDIRECT("'Project Summary'!E"&$AI30),"") ->  | J30: =IF($B30=$AH30,INDIRECT("'Project Summary'!k"&$AI30),"") ->  | Q30: =IF($B30=$AH30,INDIRECT("'Project Summary'!w"&$AI30) & " sf","") ->  | U30: =IF($B30=$AH30,INDIRECT("'Project Summary'!aa"&$AI30),"") ->  | Y30: =IF($B30=$AH30,INDIRECT("'Project Summary'!ag"&$AI30),"") ->  | AH30: 1 | AI30: 82
B31: =IF(INDIRECT("'Project Summary'!B"&AI31)=AI31-81,INDIRECT("'Project Summary'!B"&AI31),"") ->  | AH31: 2 | AI31: 83
AH32: 3 | AI32: 84
AH33: 4 | AI33: 85
AH34: 5 | AI34: 86
B35: =IF(INDIRECT("'Project Summary'!B"&AI35)=AI35-81,INDIRECT("'Project Summary'!B"&AI35),"") ->  | AH35: 6 | AI35: 87
B36: =IF(INDIRECT("'Project Summary'!B"&AI36)=AI36-81,INDIRECT("'Project Summary'!B"&AI36),"") ->  | AH36: 7 | AI36: 88
AH37: 8 | AI37: 89
AH38: 9 | AI38: 90
AH39: 10 | AI39: 91
B41: Surface | E41: Description | J41: On-site BMP | Q41: Contrib. Area (sf) | U41: Facility Size (sf) | Y41: Facility Configuration
AH42: 11 | AI42: 92
AH43: 12 | AI43: 93
AH44: 13 | AI44: 94
AH45: 14 | AI45: 95
AH46: 15 | AI46: 96
AH47: 16 | AI47: 97
AH48: 17 | AI48: 98
AH49: 18 | AI49: 99
B50: =IF(INDIRECT("'Project Summary'!B"&AI50)=AI50-81,INDIRECT("'Project Summary'!B"&AI50),"") ->  | AH50: 19 | AI50: 100
AH51: 20 | AI51: 101
